Directorate,Department,Expenditure Type,Ref.Doc.1,Vendor Name,Expenditure Amount (exc VAT),Payment Date
Assurance,Assurance,Professional Services,60094061,ASSOCIATION OF ELECTORAL ADMINISTRA,611.00,11/01/2018
Assurance,Assurance,Postage,60096855,ROYAL MAIL GROUP LIMITED,483.60,29/01/2018
Assurance,Assurance,Postage,60096875,ROYAL MAIL GROUP LIMITED,0.93,29/01/2018
Assurance,Assurance,Rents,60096851,SHRED-IT,540.60,29/01/2018
Assurance,Assurance,General Office Expenses,40002678,OFFICE DEPOT UK LTD,1.00,04/01/2018
Assurance,Assurance,General Office Expenses,40002685,OFFICE DEPOT UK LTD,1.60,10/01/2018
Assurance,Assurance,Printing-Contract,40002677,OFFICE DEPOT UK LTD,127.76,04/01/2018
Assurance,Assurance,Other Indirect Employee Expens,80014760,LBBD,90.00,12/01/2018
Assurance,Assurance,Other Indirect Employee Expens,80014761,HARROW MAYORESS'S BALL,72.00,12/01/2018
Assurance,Assurance,Vehicle Running Costs,80014935,KENT COUNTY CO,55.49,19/01/2018
Assurance,Assurance,Clothing - Uniforms,80015013,MICHAELS CIVI,216.50,26/01/2018
Assurance,Assurance,Rents,60095177,ARTS DEPOT PRODUCTIONS LTD,"1,807.00",08/01/2018
Assurance,Assurance,Subscriptions,80014636,THE INFORMATION COMMISSIONER,35.00,05/01/2018
Assurance,Assurance,Professional Services,60094217,PRICEWATERHOUSE COOPERS,"30,973.44",16/01/2018
Assurance,Assurance,Subscriptions,60096566,COMPANIES HOUSE,6.00,31/01/2018
Assurance,Assurance,Subscriptions,60096636,COMPANIES HOUSE,4.00,31/01/2018
Assurance,Assurance,Subscriptions,60077212,EQUIFAX LTD,4.00,03/01/2018
Assurance,Assurance,Subscriptions,60091496,EQUIFAX LTD,"8,975.00",03/01/2018
Assurance,Assurance,Subscriptions,60095648,INTEC FOR BUSINESS LIMITED,306.80,18/01/2018
Assurance,Assurance,Bank Charges,80014918,RBS LEGAL LITI,60.00,16/01/2018
Assurance,Assurance,Equipment and Materials Purcha,60094202,PRIME PRODUCTION LTD,39.50,03/01/2018
Assurance,Assurance,Equipment and Materials Purcha,60094536,PRIME PRODUCTION LTD,62.00,03/01/2018
Assurance,Assurance,Equipment and Materials Purcha,60095608,PRIME PRODUCTION LTD,39.50,19/01/2018
Assurance,Assurance,Equipment and Materials Purcha,60095634,PRIME PRODUCTION LTD,39.50,19/01/2018
Assurance,Assurance,Equipment and Materials Purcha,60095657,PRIME PRODUCTION LTD,54.50,19/01/2018
Assurance,Assurance,Equipment and Materials Purcha,60095698,PRIME PRODUCTION LTD,39.50,19/01/2018
Assurance,Assurance,Equipment and Materials Purcha,60095749,PRIME PRODUCTION LTD,47.00,19/01/2018
Balance Sheet,Balance Sheet,Net Pay Account,80014679,HENRIETTA BARNETT SCHOOL (ACADEMY),"1,196.84",15/01/2018
Balance Sheet,Balance Sheet,Net Pay Account,80014875,HENRIETTA BARNETT SCHOOL (ACADEMY),"10,000.00",15/01/2018
Balance Sheet,Balance Sheet,Payroll Deductions Account,30174977,HERTFORDSHIRE MAGISTRATES COURT,188.29,10/01/2018
Balance Sheet,Balance Sheet,Payroll Deductions Account,30175001,HERTFORDSHIRE MAGISTRATES COURT,249.96,10/01/2018
Balance Sheet,Balance Sheet,Payroll Deductions Account,30174976,LONDON BOROUGH OF ENFIELD,164.46,10/01/2018
Balance Sheet,Balance Sheet,Payroll Deductions Account,30175000,LONDON BOROUGH OF ENFIELD,164.48,10/01/2018
Balance Sheet,Balance Sheet,4004 Menorah High School,30175082,MENORAH HIGH SCHOOL FOR GIRLS,"3,525.89",11/01/2018
Central Expenses,Central Expenses,Other Establishments - Third P,EBX0208186,LEE VALLEY REGIONAL PARK AUTH.,"30,430.52",17/01/2018
Central Expenses,Central Expenses,Other Establishments - Third P,60096826,RGE SERVICES,106.88,29/01/2018
Central Expenses,Central Expenses,Other Establishments - Third P,60094599,TRANSPORT FOR LONDON,"110,817.86",17/01/2018
Central Expenses,Central Expenses,Bank Charges,80014688,PAYPOINT COLLECTIONS LTD,244.53,11/01/2018
Central Expenses,Central Expenses,Bank Charges,80014587,PAYPOINT NETWORK LTD,731.17,03/01/2018
Central Expenses,Central Expenses,Bank Charges,80014685,PAYPOINT NETWORK LTD,652.05,09/01/2018
Central Expenses,Central Expenses,Bank Charges,80014687,PAYPOINT NETWORK LTD,511.29,11/01/2018
Central Expenses,Central Expenses,Bank Charges,80014924,PAYPOINT NETWORK LTD,"1,412.66",23/01/2018
Central Expenses,Central Expenses,Bank Charges,80015074,PAYPOINT NETWORK LTD,929.43,30/01/2018
Central Expenses,Central Expenses,Audit Fee,60094788,BDO LLP,"5,000.00",22/01/2018
Central Expenses,Central Expenses,Audit Fee,60094816,BDO LLP,"2,750.00",22/01/2018
Central Expenses,Central Expenses,Audit Fee,60094848,BDO LLP,"20,310.00",22/01/2018
Central Expenses,Central Expenses,Insurance Claims,60095306,CLYDE & CO LLP,"3,540.00",09/01/2018
Central Expenses,Central Expenses,Insurance Claims,80014747,DWP COMPENSATION RECOVERY UNIT,665.00,11/01/2018
Central Expenses,Central Expenses,Insurance Claims,60095330,IMCS (UK) PLC,60.00,16/01/2018
Central Expenses,Central Expenses,Insurance Claims,60096924,JOHNSON AUSTIN PARTNERSHIP LLP,375.00,30/01/2018
Central Expenses,Central Expenses,Insurance Claims,60096944,JOHNSON AUSTIN PARTNERSHIP LLP,150.00,30/01/2018
Central Expenses,Central Expenses,Insurance Claims,60096970,JOHNSON AUSTIN PARTNERSHIP LLP,150.00,30/01/2018
Central Expenses,Central Expenses,Insurance Claims,60096977,JOHNSON AUSTIN PARTNERSHIP LLP,500.00,30/01/2018
Central Expenses,Central Expenses,Insurance Claims,60096985,JOHNSON AUSTIN PARTNERSHIP LLP,300.00,30/01/2018
Central Expenses,Central Expenses,Insurance Claims,60096989,JOHNSON AUSTIN PARTNERSHIP LLP,375.00,30/01/2018
Central Expenses,Central Expenses,Insurance Claims,60097001,JOHNSON AUSTIN PARTNERSHIP LLP,420.00,30/01/2018
Central Expenses,Central Expenses,Insurance Claims,80014529,PUBLISH - REDACT NAME,"1,000.00",03/01/2018
Central Expenses,Central Expenses,Insurance Claims,80014581,PUBLISH - REDACT NAME,25.00,03/01/2018
Central Expenses,Central Expenses,Insurance Claims,80014604,INCIDENT MANA,"1,742.40",03/01/2018
Central Expenses,Central Expenses,Insurance Claims,80014626,PROGRESS VEHI,"1,331.64",09/01/2018
Central Expenses,Central Expenses,Insurance Claims,80014638,ADVANTAGE SOL,"5,889.37",04/01/2018
Central Expenses,Central Expenses,Insurance Claims,80014695,ESURE INSURAN,"1,030.70",08/01/2018
Central Expenses,Central Expenses,Insurance Claims,80014699,PUBLISH - REDACT NAME,120.00,08/01/2018
Central Expenses,Central Expenses,Insurance Claims,80014705,PUBLISH - REDACT NAME,100.00,09/01/2018
Central Expenses,Central Expenses,Insurance Claims,80014707,PUBLISH - REDACT NAME,29.99,15/01/2018
Central Expenses,Central Expenses,Insurance Claims,80014715,INFINITY FOOD,31.53,09/01/2018
Central Expenses,Central Expenses,Insurance Claims,80014729,PUBLISH - REDACT NAME,"3,000.00",11/01/2018
Central Expenses,Central Expenses,Insurance Claims,80014746,IRWIN MITCHEL,"6,754.21",11/01/2018
Central Expenses,Central Expenses,Insurance Claims,80014762,PUBLISH - REDACT NAME,500.00,11/01/2018
Central Expenses,Central Expenses,Insurance Claims,80014764,SLATER GORDON,"1,000.00",11/01/2018
Central Expenses,Central Expenses,Insurance Claims,80014832,WIGMORE CONTR,258.19,15/01/2018
Central Expenses,Central Expenses,Insurance Claims,80014834,LEIGHDAY SOLI,"100,650.00",18/01/2018
Central Expenses,Central Expenses,Insurance Claims,80014872,LV=,"2,319.12",15/01/2018
Central Expenses,Central Expenses,Insurance Claims,80014874,TRADE UNION LE,360.00,15/01/2018
Central Expenses,Central Expenses,Insurance Claims,80014885,PLEXUS LAW,"8,000.00",15/01/2018
Central Expenses,Central Expenses,Insurance Claims,80014901,PUBLISH - REDACT NAME,"1,339.44",17/01/2018
Central Expenses,Central Expenses,Insurance Claims,80014904,PUBLISH - REDACT NAME,"1,770.00",17/01/2018
Central Expenses,Central Expenses,Insurance Claims,80014986,LEIGH DAY CLIE,"16,100.00",23/01/2018
Central Expenses,Central Expenses,Insurance Claims,80015028,PUBLISH - REDACT NAME,119.46,23/01/2018
Central Expenses,Central Expenses,Insurance Claims,80015030,PUBLISH - REDACT NAME,"1,850.00",23/01/2018
Central Expenses,Central Expenses,Insurance Claims,80015041,LEIGHDAY & CO,"12,771.85",23/01/2018
Central Expenses,Central Expenses,Insurance Claims,80015042,LEIGHDAY & CO,"1,560.00",24/01/2018
Central Expenses,Central Expenses,Insurance Claims,80015108,ZURICH MUNICI,"17,394.80",30/01/2018
Central Expenses,Central Expenses,Insurance Claims,80015126,TRADE UNION LE,"3,127.00",30/01/2018
Central Expenses,Central Expenses,Insurance Claims,80015143,NEWLAW SOLICI,"2,240.00",30/01/2018
Central Expenses,Central Expenses,Insurance Claims,80015144,NEWLAW SOLICI,"2,432.40",30/01/2018
Central Expenses,Central Expenses,Insurance Claims,80015145,PUBLISH - REDACT NAME,180.00,30/01/2018
Central Expenses,Central Expenses,Insurance Claims,80015146,CHURCHILL INS,75.00,30/01/2018
Central Expenses,Central Expenses,Insurance Claims,80015147,GARVINS SOLIC,312.00,30/01/2018
Central Expenses,Central Expenses,Insurance Claims,80015149,SLATER GORDON,"4,171.00",30/01/2018
Central Expenses,Central Expenses,Insurance Claims,80015158,OAK LODGE MEDI,25.00,30/01/2018
Central Expenses,Central Expenses,Grant Payments,60095833,LONDON FIRE AND EMERGENCY,"15,000.00",15/01/2018
Commercial,Customer Support Group,Building Repairs & Maintenance,60096707,AJS LTD,193.18,24/01/2018
Commercial,Customer Support Group,Building Repairs & Maintenance,60091369,HERTEL (UK) LTD,24.94,30/01/2018
Commercial,Customer Support Group,Building Repairs & Maintenance,60094720,HERTEL (UK) LTD,34.91,03/01/2018
Commercial,Customer Support Group,Building Repairs & Maintenance,60094770,HERTEL (UK) LTD,34.91,03/01/2018
Commercial,Customer Support Group,Building Repairs & Maintenance,60094845,HERTEL (UK) LTD,34.91,03/01/2018
Commercial,Customer Support Group,Building Repairs & Maintenance,60094908,HERTEL (UK) LTD,34.91,03/01/2018
Commercial,Customer Support Group,Building Repairs & Maintenance,60094915,HERTEL (UK) LTD,34.91,03/01/2018
Commercial,Customer Support Group,Building Repairs & Maintenance,60094933,HERTEL (UK) LTD,34.91,03/01/2018
Commercial,Customer Support Group,Building Repairs & Maintenance,60094946,HERTEL (UK) LTD,34.91,03/01/2018
Commercial,Customer Support Group,Building Repairs & Maintenance,60095054,HERTEL (UK) LTD,34.91,05/01/2018
Commercial,Customer Support Group,Building Repairs & Maintenance,60095058,HERTEL (UK) LTD,34.91,05/01/2018
Commercial,Customer Support Group,Building Repairs & Maintenance,60095066,HERTEL (UK) LTD,34.91,05/01/2018
Commercial,Customer Support Group,Building Repairs & Maintenance,60095074,HERTEL (UK) LTD,34.91,05/01/2018
Commercial,Customer Support Group,Building Repairs & Maintenance,60095075,HERTEL (UK) LTD,34.91,05/01/2018
Commercial,Customer Support Group,Building Repairs & Maintenance,60095079,HERTEL (UK) LTD,34.91,05/01/2018
Commercial,Customer Support Group,Building Repairs & Maintenance,60095090,HERTEL (UK) LTD,34.91,05/01/2018
Commercial,Customer Support Group,Building Repairs & Maintenance,60095092,HERTEL (UK) LTD,34.91,05/01/2018
Commercial,Customer Support Group,Building Repairs & Maintenance,60095094,HERTEL (UK) LTD,34.91,05/01/2018
Commercial,Customer Support Group,Building Repairs & Maintenance,60095095,HERTEL (UK) LTD,34.91,05/01/2018
Commercial,Customer Support Group,Building Repairs & Maintenance,60095099,HERTEL (UK) LTD,34.91,08/01/2018
Commercial,Customer Support Group,Building Repairs & Maintenance,60095108,HERTEL (UK) LTD,34.91,08/01/2018
Commercial,Customer Support Group,Building Repairs & Maintenance,60095115,HERTEL (UK) LTD,34.91,05/01/2018
Commercial,Customer Support Group,Building Repairs & Maintenance,60095604,HERTEL (UK) LTD,34.91,15/01/2018
Commercial,Customer Support Group,Building Repairs & Maintenance,60095621,HERTEL (UK) LTD,34.91,15/01/2018
Commercial,Customer Support Group,Building Repairs & Maintenance,60095629,HERTEL (UK) LTD,34.91,15/01/2018
Commercial,Customer Support Group,Building Repairs & Maintenance,60095635,HERTEL (UK) LTD,34.91,15/01/2018
Commercial,Customer Support Group,Building Repairs & Maintenance,60095652,HERTEL (UK) LTD,34.91,15/01/2018
Commercial,Customer Support Group,Building Repairs & Maintenance,60095669,HERTEL (UK) LTD,34.91,12/01/2018
Commercial,Customer Support Group,Building Repairs & Maintenance,60095688,HERTEL (UK) LTD,34.91,12/01/2018
Commercial,Customer Support Group,Building Repairs & Maintenance,60095699,HERTEL (UK) LTD,34.91,12/01/2018
Commercial,Customer Support Group,Building Repairs & Maintenance,60095728,HERTEL (UK) LTD,34.91,12/01/2018
Commercial,Customer Support Group,Building Repairs & Maintenance,60095746,HERTEL (UK) LTD,34.91,12/01/2018
Commercial,Customer Support Group,Building Repairs & Maintenance,60095754,HERTEL (UK) LTD,34.91,12/01/2018
Commercial,Customer Support Group,Building Repairs & Maintenance,60095822,HERTEL (UK) LTD,34.91,15/01/2018
Commercial,Customer Support Group,Building Repairs & Maintenance,60095835,HERTEL (UK) LTD,34.91,15/01/2018
Commercial,Customer Support Group,Building Repairs & Maintenance,60095839,HERTEL (UK) LTD,34.91,15/01/2018
Commercial,Customer Support Group,Building Repairs & Maintenance,60095860,HERTEL (UK) LTD,34.91,16/01/2018
Commercial,Customer Support Group,Building Repairs & Maintenance,60095869,HERTEL (UK) LTD,34.91,15/01/2018
Commercial,Customer Support Group,Building Repairs & Maintenance,60095902,HERTEL (UK) LTD,34.91,15/01/2018
Commercial,Customer Support Group,Building Repairs & Maintenance,60095903,HERTEL (UK) LTD,34.91,15/01/2018
Commercial,Customer Support Group,Building Repairs & Maintenance,60095907,HERTEL (UK) LTD,34.91,15/01/2018
Commercial,Customer Support Group,Building Repairs & Maintenance,60095915,HERTEL (UK) LTD,34.91,15/01/2018
Commercial,Customer Support Group,Building Repairs & Maintenance,60095918,HERTEL (UK) LTD,149.63,15/01/2018
Commercial,Customer Support Group,Building Repairs & Maintenance,60095929,HERTEL (UK) LTD,34.91,15/01/2018
Commercial,Customer Support Group,Building Repairs & Maintenance,60095946,HERTEL (UK) LTD,34.91,15/01/2018
Commercial,Customer Support Group,Building Repairs & Maintenance,60095949,HERTEL (UK) LTD,34.91,15/01/2018
Commercial,Customer Support Group,Building Repairs & Maintenance,60095957,HERTEL (UK) LTD,34.91,15/01/2018
Commercial,Customer Support Group,Building Repairs & Maintenance,60095976,HERTEL (UK) LTD,34.91,15/01/2018
Commercial,Customer Support Group,Building Repairs & Maintenance,60095984,HERTEL (UK) LTD,34.91,15/01/2018
Commercial,Customer Support Group,Building Repairs & Maintenance,60096013,HERTEL (UK) LTD,34.91,15/01/2018
Commercial,Customer Support Group,Building Repairs & Maintenance,60092252,LIFT & ENGINEERING SERVICES LTD,66.94,18/01/2018
Commercial,Customer Support Group,Building Repairs & Maintenance,60092265,LIFT & ENGINEERING SERVICES LTD,66.94,08/01/2018
Commercial,Customer Support Group,Building Repairs & Maintenance,60093543,LIFT & ENGINEERING SERVICES LTD,66.94,08/01/2018
Commercial,Customer Support Group,Building Repairs & Maintenance,60091680,OAKRAY LIMITED,313.20,09/01/2018
Commercial,Customer Support Group,Building Repairs & Maintenance,60091687,OAKRAY LIMITED,313.20,09/01/2018
Commercial,Customer Support Group,Building Repairs & Maintenance,60091697,OAKRAY LIMITED,313.20,09/01/2018
Commercial,Customer Support Group,Building Repairs & Maintenance,60091702,OAKRAY LIMITED,313.20,09/01/2018
Commercial,Customer Support Group,Building Repairs & Maintenance,60091704,OAKRAY LIMITED,313.20,09/01/2018
Commercial,Customer Support Group,Building Repairs & Maintenance,60091707,OAKRAY LIMITED,313.20,09/01/2018
Commercial,Customer Support Group,Building Repairs & Maintenance,60091708,OAKRAY LIMITED,313.20,09/01/2018
Commercial,Customer Support Group,Building Repairs & Maintenance,60091710,OAKRAY LIMITED,313.20,09/01/2018
Commercial,Customer Support Group,Building Repairs & Maintenance,60091711,OAKRAY LIMITED,313.20,09/01/2018
Commercial,Customer Support Group,Building Repairs & Maintenance,60091716,OAKRAY LIMITED,313.20,09/01/2018
Commercial,Customer Support Group,Building Repairs & Maintenance,60091723,OAKRAY LIMITED,313.20,09/01/2018
Commercial,Customer Support Group,Building Repairs & Maintenance,60091731,OAKRAY LIMITED,313.20,09/01/2018
Commercial,Customer Support Group,Building Repairs & Maintenance,60091735,OAKRAY LIMITED,313.20,09/01/2018
Commercial,Customer Support Group,Building Repairs & Maintenance,60091737,OAKRAY LIMITED,313.20,09/01/2018
Commercial,Customer Support Group,Building Repairs & Maintenance,60091744,OAKRAY LIMITED,313.20,09/01/2018
Commercial,Customer Support Group,Building Repairs & Maintenance,60091745,OAKRAY LIMITED,303.20,09/01/2018
Commercial,Customer Support Group,Building Repairs & Maintenance,60091746,OAKRAY LIMITED,313.20,09/01/2018
Commercial,Customer Support Group,Building Repairs & Maintenance,60093614,RGE SERVICES,127.47,04/01/2018
Commercial,Customer Support Group,Building Repairs & Maintenance,60093618,RGE SERVICES,141.08,04/01/2018
Commercial,Customer Support Group,Building Repairs & Maintenance,60093663,RGE SERVICES,25.65,04/01/2018
Commercial,Customer Support Group,Building Repairs & Maintenance,60093675,RGE SERVICES,187.71,04/01/2018
Commercial,Customer Support Group,Building Repairs & Maintenance,60093861,RGE SERVICES,64.13,04/01/2018
Commercial,Customer Support Group,Building Repairs & Maintenance,60093904,RGE SERVICES,153.93,11/01/2018
Commercial,Customer Support Group,Building Repairs & Maintenance,60095101,RGE SERVICES,47.03,05/01/2018
Commercial,Customer Support Group,Building Repairs & Maintenance,60095103,RGE SERVICES,233.71,05/01/2018
Commercial,Customer Support Group,Building Repairs & Maintenance,60095129,RGE SERVICES,335.26,08/01/2018
Commercial,Customer Support Group,Building Repairs & Maintenance,60095156,RGE SERVICES,98.33,09/01/2018
Commercial,Customer Support Group,Building Repairs & Maintenance,60095203,RGE SERVICES,115.43,10/01/2018
Commercial,Customer Support Group,Building Repairs & Maintenance,60095204,RGE SERVICES,220.04,10/01/2018
Commercial,Customer Support Group,Building Repairs & Maintenance,60095206,RGE SERVICES,828.69,09/01/2018
Commercial,Customer Support Group,Building Repairs & Maintenance,60095209,RGE SERVICES,64.13,10/01/2018
Commercial,Customer Support Group,Building Repairs & Maintenance,60095227,RGE SERVICES,218.03,10/01/2018
Commercial,Customer Support Group,Building Repairs & Maintenance,60095229,RGE SERVICES,446.41,10/01/2018
Commercial,Customer Support Group,Building Repairs & Maintenance,60095259,RGE SERVICES,272.86,10/01/2018
Commercial,Customer Support Group,Building Repairs & Maintenance,60095270,RGE SERVICES,147.34,10/01/2018
Commercial,Customer Support Group,Building Repairs & Maintenance,60095314,RGE SERVICES,64.13,11/01/2018
Commercial,Customer Support Group,Building Repairs & Maintenance,60095392,RGE SERVICES,330.08,25/01/2018
Commercial,Customer Support Group,Building Repairs & Maintenance,60095424,RGE SERVICES,141.03,25/01/2018
Commercial,Customer Support Group,Building Repairs & Maintenance,60095430,RGE SERVICES,383.85,10/01/2018
Commercial,Customer Support Group,Building Repairs & Maintenance,60096646,RGE SERVICES,94.05,24/01/2018
Commercial,Customer Support Group,Building Repairs & Maintenance,60096964,RGE SERVICES,363.95,30/01/2018
Commercial,Customer Support Group,Cleaning and domestic material,60093063,CHURCHILL CONTRACT SERVICES,"1,032.37",08/01/2018
Commercial,Customer Support Group,Cleaning and domestic material,60095068,CHURCHILL CONTRACT SERVICES,"1,032.37",30/01/2018
Commercial,Customer Support Group,Water Services,60094958,AFFINITY WATER LIMITED,569.05,03/01/2018
Commercial,Customer Support Group,Water Services,60095883,ANGEL SPRINGS LTD,138.00,29/01/2018
Commercial,Customer Support Group,Other Services,60095238,BLUE 9 SECURITY LIMITED,"17,364.79",16/01/2018
Commercial,Customer Support Group,Cleaning and domestic material,60093128,CHURCHILL CONTRACT SERVICES,"11,562.54",08/01/2018
Commercial,Customer Support Group,Cleaning and domestic material,60095102,CHURCHILL CONTRACT SERVICES,"11,562.54",30/01/2018
Commercial,Customer Support Group,Building Repairs & Maintenance,60090913,DOORWAY-MAINTENANCE CO.,160.00,04/01/2018
Commercial,Customer Support Group,Building Repairs & Maintenance,60092069,DOORWAY-MAINTENANCE CO.,220.00,04/01/2018
Commercial,Customer Support Group,Building Repairs & Maintenance,60095969,HERTEL (UK) LTD,34.91,15/01/2018
Commercial,Customer Support Group,Cleaning and domestic material,60095195,HERTFORDSHIRE COUNTY COUNCIL,"1,040.75",09/01/2018
Commercial,Customer Support Group,Cleaning and domestic material,60095269,HERTFORDSHIRE COUNTY COUNCIL,593.85,09/01/2018
Commercial,Customer Support Group,Building Repairs & Maintenance,60095107,LIFT & ENGINEERING SERVICES LTD,"5,400.00",09/01/2018
Commercial,Customer Support Group,Building Repairs & Maintenance,60095334,LIFT & ENGINEERING SERVICES LTD,145.00,10/01/2018
Commercial,Customer Support Group,Building Repairs & Maintenance,60095336,LIFT & ENGINEERING SERVICES LTD,116.00,10/01/2018
Commercial,Customer Support Group,Building Repairs & Maintenance,60095370,LIFT & ENGINEERING SERVICES LTD,405.90,10/01/2018
Commercial,Customer Support Group,Furniture-Purchase-Repair,60094466,LYCO DIRECT LTD,99.07,17/01/2018
Commercial,Customer Support Group,Building Repairs & Maintenance,60091606,OAKRAY LIMITED,192.00,09/01/2018
Commercial,Customer Support Group,Building Repairs & Maintenance,60091672,OAKRAY LIMITED,231.33,09/01/2018
Commercial,Customer Support Group,Building Repairs & Maintenance,60093993,OAKRAY LIMITED,80.00,05/01/2018
Commercial,Customer Support Group,Building Repairs & Maintenance,60093996,OAKRAY LIMITED,518.28,15/01/2018
Commercial,Customer Support Group,Building Repairs & Maintenance,60094021,OAKRAY LIMITED,"1,189.45",05/01/2018
Commercial,Customer Support Group,Rubbish Collection,60095841,PEARCE RECYCLING CO. LTD,21.00,29/01/2018
Commercial,Customer Support Group,Rubbish Collection,60095858,PREMIER SHREDDING,60.00,15/01/2018
Commercial,Customer Support Group,Building Repairs & Maintenance,60093368,RGE SERVICES,124.00,03/01/2018
Commercial,Customer Support Group,Building Repairs & Maintenance,60094227,RGE SERVICES,818.43,11/01/2018
Commercial,Customer Support Group,Building Repairs & Maintenance,60095326,RGE SERVICES,62.00,25/01/2018
Commercial,Customer Support Group,Building Repairs & Maintenance,60096123,RGE SERVICES,124.00,18/01/2018
Commercial,Customer Support Group,Building Repairs & Maintenance,60096196,RGE SERVICES,124.00,25/01/2018
Commercial,Customer Support Group,Building Repairs & Maintenance,60096249,RGE SERVICES,"2,039.74",17/01/2018
Commercial,Customer Support Group,Building Repairs & Maintenance,60096272,RGE SERVICES,120.00,25/01/2018
Commercial,Customer Support Group,Building Repairs & Maintenance,60096284,RGE SERVICES,227.64,25/01/2018
Commercial,Customer Support Group,Building Repairs & Maintenance,60096339,RGE SERVICES,290.17,18/01/2018
Commercial,Customer Support Group,Building Repairs & Maintenance,60096365,RGE SERVICES,368.94,18/01/2018
Commercial,Customer Support Group,Building Repairs & Maintenance,60096839,RGE SERVICES,444.59,29/01/2018
Commercial,Customer Support Group,Building Repairs & Maintenance,60096109,S W BRUCE & CO LTD,133.13,17/01/2018
Commercial,Customer Support Group,Building Repairs & Maintenance,60096175,S W BRUCE & CO LTD,228.22,17/01/2018
Commercial,Customer Support Group,Building Repairs & Maintenance,60096178,S W BRUCE & CO LTD,148.99,17/01/2018
Commercial,Customer Support Group,Building Repairs & Maintenance,60096224,S W BRUCE & CO LTD,230.35,17/01/2018
Commercial,Customer Support Group,Building Repairs & Maintenance,60096233,S W BRUCE & CO LTD,63.68,17/01/2018
Commercial,Customer Support Group,Building Repairs & Maintenance,60096237,S W BRUCE & CO LTD,85.50,17/01/2018
Commercial,Customer Support Group,Building Repairs & Maintenance,60096253,S W BRUCE & CO LTD,164.31,17/01/2018
Commercial,Customer Support Group,Furniture-Purchase-Repair,60096398,SCREWFIX DIRECT LTD,123.03,23/01/2018
Commercial,Customer Support Group,Training,60094877,SKILLS TRAINING CENTRE LTD,250.00,03/01/2018
Commercial,Customer Support Group,Training,60096950,SKILLS TRAINING CENTRE LTD,165.00,31/01/2018
Commercial,Customer Support Group,Water Services,60095919,ANGEL SPRINGS LTD,56.00,29/01/2018
Commercial,Customer Support Group,Equipment and Materials Purcha,60096372,AUDITEL SYSTEMS,595.00,18/01/2018
Commercial,Customer Support Group,Other Services,60095210,BLUE 9 SECURITY LIMITED,"5,404.91",11/01/2018
Commercial,Customer Support Group,Cleaning and domestic material,60093131,CHURCHILL CONTRACT SERVICES,"1,133.45",08/01/2018
Commercial,Customer Support Group,Cleaning and domestic material,60095063,CHURCHILL CONTRACT SERVICES,"1,133.45",30/01/2018
Commercial,Customer Support Group,Electricity,20035437,E-ON ENERGY,152.85,15/01/2018
Commercial,Customer Support Group,Rubbish Collection,60095416,G.B.HOLDINGS LTD,186.00,10/01/2018
Commercial,Customer Support Group,Building Repairs & Maintenance,60094659,HERTEL (UK) LTD,34.91,03/01/2018
Commercial,Customer Support Group,Building Repairs & Maintenance,60095878,HERTEL (UK) LTD,34.91,15/01/2018
Commercial,Customer Support Group,Cleaning and domestic material,60095193,HERTFORDSHIRE COUNTY COUNCIL,196.96,09/01/2018
Commercial,Customer Support Group,Building Repairs & Maintenance,60095320,LIFT & ENGINEERING SERVICES LTD,49.58,19/01/2018
Commercial,Customer Support Group,Building Repairs & Maintenance,60093514,RGE SERVICES,664.75,03/01/2018
Commercial,Customer Support Group,Building Repairs & Maintenance,60096137,S W BRUCE & CO LTD,209.21,17/01/2018
Commercial,Customer Support Group,Building Repairs & Maintenance,60096138,S W BRUCE & CO LTD,140.00,17/01/2018
Commercial,Customer Support Group,Books-CDs-Audio-Video,60094200,SM ELECTRICAL SERVICES,300.00,11/01/2018
Commercial,Customer Support Group,Water Services,60094538,CASTLE WATER LTD,172.14,03/01/2018
Commercial,Customer Support Group,Building Repairs & Maintenance,60095987,HERTEL (UK) LTD,34.91,15/01/2018
Commercial,Customer Support Group,Gas,60093701,KENT COUNTY COUNCIL (KCS),376.86,03/01/2018
Commercial,Customer Support Group,Electricity,60094979,KENT COUNTY COUNCIL (KCS),"1,074.10",08/01/2018
Commercial,Customer Support Group,Electricity,60095955,KENT COUNTY COUNCIL (KCS),411.61,24/01/2018
Commercial,Customer Support Group,Gas,60096548,KENT COUNTY COUNCIL (KCS),637.60,31/01/2018
Commercial,Customer Support Group,Building Repairs & Maintenance,60094008,OAKRAY LIMITED,96.00,05/01/2018
Commercial,Customer Support Group,Building Repairs & Maintenance,60094036,OAKRAY LIMITED,811.75,05/01/2018
Commercial,Customer Support Group,Building Repairs & Maintenance,60096041,OAKRAY LIMITED,"2,025.00",25/01/2018
Commercial,Customer Support Group,Building Repairs & Maintenance,60093839,RGE SERVICES,106.88,04/01/2018
Commercial,Customer Support Group,Building Repairs & Maintenance,60095845,HERTEL (UK) LTD,34.91,16/01/2018
Commercial,Customer Support Group,Building Repairs & Maintenance,60095868,HERTEL (UK) LTD,34.91,16/01/2018
Commercial,Customer Support Group,Building Repairs & Maintenance,60095889,HERTEL (UK) LTD,34.91,19/01/2018
Commercial,Customer Support Group,Building Repairs & Maintenance,60095909,HERTEL (UK) LTD,34.91,19/01/2018
Commercial,Customer Support Group,Building Repairs & Maintenance,60095920,HERTEL (UK) LTD,34.91,19/01/2018
Commercial,Customer Support Group,Building Repairs & Maintenance,60095921,HERTEL (UK) LTD,34.91,19/01/2018
Commercial,Customer Support Group,Building Repairs & Maintenance,60095941,HERTEL (UK) LTD,34.91,19/01/2018
Commercial,Customer Support Group,Building Repairs & Maintenance,60095993,HERTEL (UK) LTD,34.91,18/01/2018
Commercial,Customer Support Group,Building Repairs & Maintenance,60095995,HERTEL (UK) LTD,34.91,18/01/2018
Commercial,Customer Support Group,Other Services,60095241,BLUE 9 SECURITY LIMITED,"11,584.08",11/01/2018
Commercial,Customer Support Group,Equipment and Materials Purcha,60074580,BRITA WATER FILTER SYSTEMS LIMITED,203.21,03/01/2018
Commercial,Customer Support Group,Cleaning and domestic material,60093052,CHURCHILL CONTRACT SERVICES,"7,329.82",08/01/2018
Commercial,Customer Support Group,Cleaning and domestic material,60095105,CHURCHILL CONTRACT SERVICES,"7,329.82",30/01/2018
Commercial,Customer Support Group,Building Repairs & Maintenance,60091576,OAKRAY LIMITED,96.00,09/01/2018
Commercial,Customer Support Group,Building Repairs & Maintenance,60091577,OAKRAY LIMITED,161.89,09/01/2018
Commercial,Customer Support Group,Building Repairs & Maintenance,60091614,OAKRAY LIMITED,64.00,09/01/2018
Commercial,Customer Support Group,Rubbish Collection,60095977,PEARCE RECYCLING CO. LTD,22.50,29/01/2018
Commercial,Customer Support Group,Rubbish Collection,60095959,PREMIER SHREDDING,60.00,15/01/2018
Commercial,Customer Support Group,Building Repairs & Maintenance,60095307,RGE SERVICES,62.00,25/01/2018
Commercial,Customer Support Group,Building Repairs & Maintenance,60095381,RGE SERVICES,62.00,25/01/2018
Commercial,Customer Support Group,Building Repairs & Maintenance,60096251,RGE SERVICES,142.77,25/01/2018
Commercial,Customer Support Group,Building Repairs & Maintenance,60096849,RGE SERVICES,93.00,29/01/2018
Commercial,Customer Support Group,Furniture-Purchase-Repair,10013947,UNIQUE OFFICE SOLUTIONS LTD,11.90,24/01/2018
Commercial,Customer Support Group,Furniture-Purchase-Repair,60094263,WAGSTAFF INTERIORS GROUP,20.00,16/01/2018
Commercial,Customer Support Group,Furniture-Purchase-Repair,60094460,WAGSTAFF INTERIORS GROUP,100.00,17/01/2018
Commercial,Customer Support Group,Furniture-Purchase-Repair,60094861,WAGSTAFF INTERIORS GROUP,10.00,18/01/2018
Commercial,Customer Support Group,Other Services,60093261,BLUE 9 SECURITY LIMITED,21.22,03/01/2018
Commercial,Customer Support Group,Cleaning and domestic material,60093062,CHURCHILL CONTRACT SERVICES,661.80,08/01/2018
Commercial,Customer Support Group,Cleaning and domestic material,60095067,CHURCHILL CONTRACT SERVICES,661.80,30/01/2018
Commercial,Customer Support Group,Rubbish Collection,60095413,G.B.HOLDINGS LTD,25.20,10/01/2018
Commercial,Customer Support Group,Building Repairs & Maintenance,60094740,HERTEL (UK) LTD,34.91,03/01/2018
Commercial,Customer Support Group,Building Repairs & Maintenance,60095587,HERTEL (UK) LTD,34.91,12/01/2018
Commercial,Customer Support Group,Gas,60092536,KENT COUNTY COUNCIL (KCS),64.59,03/01/2018
Commercial,Customer Support Group,Electricity,60094965,KENT COUNTY COUNCIL (KCS),503.23,04/01/2018
Commercial,Customer Support Group,Electricity,60095469,KENT COUNTY COUNCIL (KCS),233.26,11/01/2018
Commercial,Customer Support Group,Gas,60095486,KENT COUNTY COUNCIL (KCS),145.69,11/01/2018
Commercial,Customer Support Group,Gas,60096637,KENT COUNTY COUNCIL (KCS),171.40,31/01/2018
Commercial,Customer Support Group,Building Repairs & Maintenance,60095332,LIFT & ENGINEERING SERVICES LTD,"1,440.00",18/01/2018
Commercial,Customer Support Group,Building Repairs & Maintenance,60094056,OAKRAY LIMITED,96.00,05/01/2018
Commercial,Customer Support Group,Building Repairs & Maintenance,60093772,RGE SERVICES,253.57,04/01/2018
Commercial,Customer Support Group,Building Repairs & Maintenance,60096854,RGE SERVICES,62.00,29/01/2018
Commercial,Customer Support Group,Building Repairs & Maintenance,60096899,RGE SERVICES,179.04,29/01/2018
Commercial,Customer Support Group,CSG Services Contract Payment,60096314,CAPITA BUSINESS SERVICES LTD,"14,583.00",29/01/2018
Commercial,Customer Support Group,CSG Services Contract Payment,60096359,CAPITA BUSINESS SERVICES LTD,"232,456.48",29/01/2018
Commercial,Customer Support Group,CSG Services Contract Payment,60096430,CAPITA BUSINESS SERVICES LTD,"34,690.00",30/01/2018
Commercial,Customer Support Group,CSG Services Contract Payment,60096446,CAPITA BUSINESS SERVICES LTD,"236,719.58",30/01/2018
Commercial,Customer Support Group,CSG Services Contract Payment,60094018,CAPITA BUSINESS SERVICES LTD,"3,187.50",25/01/2018
Commercial,Customer Support Group,CSG Services Contract Payment,60094226,CAPITA BUSINESS SERVICES LTD,"4,030.00",08/01/2018
Commercial,Customer Support Group,CSG Services Contract Payment,60094970,CAPITA BUSINESS SERVICES LTD,"9,061.15",04/01/2018
Commercial,Customer Support Group,CSG Services Contract Payment,60096075,CAPITA BUSINESS SERVICES LTD,"40,797.78",16/01/2018
Commercial,Customer Support Group,CSG Services Contract Payment,60096122,CAPITA BUSINESS SERVICES LTD,"6,227.05",29/01/2018
Commercial,Customer Support Group,Water Services,60096200,AFFINITY WATER LIMITED,257.09,22/01/2018
Commercial,Customer Support Group,Water Services,60096257,AFFINITY WATER LIMITED,50.00,22/01/2018
Commercial,Customer Support Group,Water Services,60096261,AFFINITY WATER LIMITED,50.00,22/01/2018
Commercial,Customer Support Group,Water Services,60096280,AFFINITY WATER LIMITED,355.45,22/01/2018
Commercial,Customer Support Group,Building Repairs & Maintenance,60095194,AJS LTD,52.01,09/01/2018
Commercial,Customer Support Group,Building Repairs & Maintenance,60095208,AJS LTD,7.43,09/01/2018
Commercial,Customer Support Group,Building Repairs & Maintenance,60095243,AJS LTD,44.58,09/01/2018
Commercial,Customer Support Group,Building Repairs & Maintenance,60095248,AJS LTD,7.43,09/01/2018
Commercial,Customer Support Group,Building Repairs & Maintenance,60096308,AJS LTD,29.72,18/01/2018
Commercial,Customer Support Group,Building Repairs & Maintenance,60096374,AJS LTD,37.15,18/01/2018
Commercial,Customer Support Group,Building Repairs & Maintenance,60096379,AJS LTD,86.24,18/01/2018
Commercial,Customer Support Group,Other Services,60095441,BLUE 9 SECURITY LIMITED,53.72,11/01/2018
Commercial,Customer Support Group,Other Services,60095452,BLUE 9 SECURITY LIMITED,214.88,11/01/2018
Commercial,Customer Support Group,Electricity,10013939,BRITISH GAS BUSINESS,82.84,03/01/2018
Commercial,Customer Support Group,Electricity,10013950,BRITISH GAS BUSINESS,63.01,29/01/2018
Commercial,Customer Support Group,Electricity,10013951,BRITISH GAS BUSINESS,58.44,29/01/2018
Commercial,Customer Support Group,Electricity,60096153,BRITISH GAS BUSINESS(ELEC),"2,857.87",18/01/2018
Commercial,Customer Support Group,Electricity,60096194,BRITISH GAS BUSINESS(ELEC),"12,208.60",18/01/2018
Commercial,Customer Support Group,Electricity,60096207,BRITISH GAS BUSINESS(ELEC),"7,879.72",25/01/2018
Commercial,Customer Support Group,Electricity,60096240,BRITISH GAS BUSINESS(ELEC),"38,608.71",17/01/2018
Commercial,Customer Support Group,Rents,60096703,CANAL & RIVER TRUST,"2,000.00",24/01/2018
Commercial,Customer Support Group,Water Services,60093334,CASTLE WATER LTD,84.00,03/01/2018
Commercial,Customer Support Group,Cleaning and domestic material,60093066,CHURCHILL CONTRACT SERVICES,294.16,08/01/2018
Commercial,Customer Support Group,Cleaning and domestic material,60095049,CHURCHILL CONTRACT SERVICES,294.16,30/01/2018
Commercial,Customer Support Group,Cleaning and domestic material,60095279,CHURCHILL CONTRACT SERVICES,658.45,30/01/2018
Commercial,Customer Support Group,Building Repairs & Maintenance,10013271,D LONG (CONSTRUCTION) LTD,660.00,03/01/2018
Commercial,Customer Support Group,Electricity,60085749,E-ON ENERGY,204.29,16/01/2018
Commercial,Customer Support Group,Electricity,60096174,E-ON ENERGY,160.56,17/01/2018
Commercial,Customer Support Group,Electricity,60096187,E-ON ENERGY,482.27,18/01/2018
Commercial,Customer Support Group,Electricity,60096269,E-ON ENERGY,686.66,17/01/2018
Commercial,Customer Support Group,Electricity,60096825,E-ON ENERGY,23.24,26/01/2018
Commercial,Customer Support Group,Building Repairs & Maintenance,60096786,GRISTWOOD & TOM LTD,380.00,29/01/2018
Commercial,Customer Support Group,Building Repairs & Maintenance,60096793,GRISTWOOD & TOM LTD,450.00,29/01/2018
Commercial,Customer Support Group,Building Repairs & Maintenance,60094624,HERTEL (UK) LTD,34.91,03/01/2018
Commercial,Customer Support Group,Building Repairs & Maintenance,60094630,HERTEL (UK) LTD,34.91,03/01/2018
Commercial,Customer Support Group,Building Repairs & Maintenance,60094638,HERTEL (UK) LTD,34.91,03/01/2018
Commercial,Customer Support Group,Building Repairs & Maintenance,60094657,HERTEL (UK) LTD,34.91,03/01/2018
Commercial,Customer Support Group,Building Repairs & Maintenance,60094662,HERTEL (UK) LTD,34.91,03/01/2018
Commercial,Customer Support Group,Building Repairs & Maintenance,60094696,HERTEL (UK) LTD,34.91,03/01/2018
Commercial,Customer Support Group,Building Repairs & Maintenance,60094704,HERTEL (UK) LTD,34.91,03/01/2018
Commercial,Customer Support Group,Building Repairs & Maintenance,60094705,HERTEL (UK) LTD,34.91,03/01/2018
Commercial,Customer Support Group,Building Repairs & Maintenance,60094731,HERTEL (UK) LTD,34.91,03/01/2018
Commercial,Customer Support Group,Building Repairs & Maintenance,60094773,HERTEL (UK) LTD,34.91,03/01/2018
Commercial,Customer Support Group,Building Repairs & Maintenance,60094831,HERTEL (UK) LTD,34.91,03/01/2018
Commercial,Customer Support Group,Building Repairs & Maintenance,60094857,HERTEL (UK) LTD,34.91,03/01/2018
Commercial,Customer Support Group,Building Repairs & Maintenance,60095064,HERTEL (UK) LTD,34.91,05/01/2018
Commercial,Customer Support Group,Building Repairs & Maintenance,60095073,HERTEL (UK) LTD,34.91,05/01/2018
Commercial,Customer Support Group,Building Repairs & Maintenance,60095583,HERTEL (UK) LTD,104.74,12/01/2018
Commercial,Customer Support Group,Building Repairs & Maintenance,60095585,HERTEL (UK) LTD,34.91,12/01/2018
Commercial,Customer Support Group,Building Repairs & Maintenance,60095615,HERTEL (UK) LTD,34.91,12/01/2018
Commercial,Customer Support Group,Building Repairs & Maintenance,60095636,HERTEL (UK) LTD,104.74,12/01/2018
Commercial,Customer Support Group,Building Repairs & Maintenance,60095650,HERTEL (UK) LTD,34.91,12/01/2018
Commercial,Customer Support Group,Building Repairs & Maintenance,60095685,HERTEL (UK) LTD,34.91,12/01/2018
Commercial,Customer Support Group,Building Repairs & Maintenance,60095687,HERTEL (UK) LTD,34.91,12/01/2018
Commercial,Customer Support Group,Building Repairs & Maintenance,60095694,HERTEL (UK) LTD,34.91,12/01/2018
Commercial,Customer Support Group,Building Repairs & Maintenance,60095714,HERTEL (UK) LTD,34.91,12/01/2018
Commercial,Customer Support Group,Building Repairs & Maintenance,60095725,HERTEL (UK) LTD,34.91,12/01/2018
Commercial,Customer Support Group,Building Repairs & Maintenance,60095726,HERTEL (UK) LTD,34.91,12/01/2018
Commercial,Customer Support Group,Building Repairs & Maintenance,60095739,HERTEL (UK) LTD,34.91,12/01/2018
Commercial,Customer Support Group,Building Repairs & Maintenance,60095744,HERTEL (UK) LTD,34.91,12/01/2018
Commercial,Customer Support Group,Building Repairs & Maintenance,60095750,HERTEL (UK) LTD,34.91,12/01/2018
Commercial,Customer Support Group,Building Repairs & Maintenance,60095757,HERTEL (UK) LTD,34.91,12/01/2018
Commercial,Customer Support Group,Building Repairs & Maintenance,60095767,HERTEL (UK) LTD,34.91,12/01/2018
Commercial,Customer Support Group,Building Repairs & Maintenance,60095776,HERTEL (UK) LTD,34.91,12/01/2018
Commercial,Customer Support Group,Building Repairs & Maintenance,60095801,HERTEL (UK) LTD,34.91,12/01/2018
Commercial,Customer Support Group,Building Repairs & Maintenance,60095827,HERTEL (UK) LTD,855.00,15/01/2018
Commercial,Customer Support Group,Building Repairs & Maintenance,60095831,HERTEL (UK) LTD,34.91,15/01/2018
Commercial,Customer Support Group,Building Repairs & Maintenance,60095832,HERTEL (UK) LTD,34.91,15/01/2018
Commercial,Customer Support Group,Building Repairs & Maintenance,60095836,HERTEL (UK) LTD,179.55,15/01/2018
Commercial,Customer Support Group,Building Repairs & Maintenance,60095837,HERTEL (UK) LTD,34.91,15/01/2018
Commercial,Customer Support Group,Building Repairs & Maintenance,60095840,HERTEL (UK) LTD,34.91,15/01/2018
Commercial,Customer Support Group,Building Repairs & Maintenance,60095848,HERTEL (UK) LTD,34.91,15/01/2018
Commercial,Customer Support Group,Building Repairs & Maintenance,60095866,HERTEL (UK) LTD,34.91,15/01/2018
Commercial,Customer Support Group,Building Repairs & Maintenance,60095876,HERTEL (UK) LTD,34.91,15/01/2018
Commercial,Customer Support Group,Building Repairs & Maintenance,60095884,HERTEL (UK) LTD,34.91,15/01/2018
Commercial,Customer Support Group,Building Repairs & Maintenance,60095891,HERTEL (UK) LTD,34.91,30/01/2018
Commercial,Customer Support Group,Building Repairs & Maintenance,60095899,HERTEL (UK) LTD,34.91,15/01/2018
Commercial,Customer Support Group,Building Repairs & Maintenance,60095926,HERTEL (UK) LTD,104.74,19/01/2018
Commercial,Customer Support Group,Building Repairs & Maintenance,60095937,HERTEL (UK) LTD,34.91,15/01/2018
Commercial,Customer Support Group,Building Repairs & Maintenance,60095953,HERTEL (UK) LTD,34.91,15/01/2018
Commercial,Customer Support Group,Building Repairs & Maintenance,60095964,HERTEL (UK) LTD,104.74,19/01/2018
Commercial,Customer Support Group,Building Repairs & Maintenance,60095967,HERTEL (UK) LTD,34.91,15/01/2018
Commercial,Customer Support Group,Building Repairs & Maintenance,60095978,HERTEL (UK) LTD,34.91,15/01/2018
Commercial,Customer Support Group,Building Repairs & Maintenance,60095985,HERTEL (UK) LTD,34.91,19/01/2018
Commercial,Customer Support Group,Building Repairs & Maintenance,60095996,HERTEL (UK) LTD,34.91,15/01/2018
Commercial,Customer Support Group,Building Repairs & Maintenance,60096000,HERTEL (UK) LTD,34.91,15/01/2018
Commercial,Customer Support Group,Building Repairs & Maintenance,60096003,HERTEL (UK) LTD,34.91,15/01/2018
Commercial,Customer Support Group,Building Repairs & Maintenance,60096004,HERTEL (UK) LTD,34.91,15/01/2018
Commercial,Customer Support Group,Building Repairs & Maintenance,60096017,HERTEL (UK) LTD,34.91,19/01/2018
Commercial,Customer Support Group,Building Repairs & Maintenance,60096026,HERTEL (UK) LTD,34.91,15/01/2018
Commercial,Customer Support Group,Building Repairs & Maintenance,60096029,HERTEL (UK) LTD,34.91,15/01/2018
Commercial,Customer Support Group,Building Repairs & Maintenance,60096031,HERTEL (UK) LTD,34.91,15/01/2018
Commercial,Customer Support Group,Building Repairs & Maintenance,60096037,HERTEL (UK) LTD,34.91,15/01/2018
Commercial,Customer Support Group,Building Repairs & Maintenance,60096312,HERTEL (UK) LTD,270.00,18/01/2018
Commercial,Customer Support Group,Building Repairs & Maintenance,60096333,HERTEL (UK) LTD,180.00,18/01/2018
Commercial,Customer Support Group,Building Repairs & Maintenance,60096337,HERTEL (UK) LTD,75.00,18/01/2018
Commercial,Customer Support Group,Building Repairs & Maintenance,60096346,HERTEL (UK) LTD,295.00,18/01/2018
Commercial,Customer Support Group,Building Repairs & Maintenance,60096353,HERTEL (UK) LTD,45.00,18/01/2018
Commercial,Customer Support Group,Building Repairs & Maintenance,60096535,HERTEL (UK) LTD,90.00,23/01/2018
Commercial,Customer Support Group,Building Repairs & Maintenance,60096553,HERTEL (UK) LTD,135.00,23/01/2018
Commercial,Customer Support Group,Building Repairs & Maintenance,60096554,HERTEL (UK) LTD,150.00,23/01/2018
Commercial,Customer Support Group,Building Repairs & Maintenance,60096571,HERTEL (UK) LTD,75.00,23/01/2018
Commercial,Customer Support Group,Building Repairs & Maintenance,60096574,HERTEL (UK) LTD,90.00,23/01/2018
Commercial,Customer Support Group,Building Repairs & Maintenance,60096612,HERTEL (UK) LTD,81.00,23/01/2018
Commercial,Customer Support Group,Building Repairs & Maintenance,60096618,HERTEL (UK) LTD,75.00,23/01/2018
Commercial,Customer Support Group,Electricity,60092129,KENT COUNTY COUNCIL (KCS),121.44,03/01/2018
Commercial,Customer Support Group,Gas,60092534,KENT COUNTY COUNCIL (KCS),207.91,03/01/2018
Commercial,Customer Support Group,Electricity,60093277,KENT COUNTY COUNCIL (KCS),231.22,03/01/2018
Commercial,Customer Support Group,Electricity,60094389,KENT COUNTY COUNCIL (KCS),"2,067.55",04/01/2018
Commercial,Customer Support Group,Gas,60094893,KENT COUNTY COUNCIL (KCS),520.65,03/01/2018
Commercial,Customer Support Group,Electricity,60094919,KENT COUNTY COUNCIL (KCS),201.87,04/01/2018
Commercial,Customer Support Group,Electricity,60095863,KENT COUNTY COUNCIL (KCS),365.53,16/01/2018
Commercial,Customer Support Group,Electricity,60095874,KENT COUNTY COUNCIL (KCS),472.23,16/01/2018
Commercial,Customer Support Group,Gas,60096625,KENT COUNTY COUNCIL (KCS),15.88,31/01/2018
Commercial,Customer Support Group,Gas,60096722,KENT COUNTY COUNCIL (KCS),57.35,31/01/2018
Commercial,Customer Support Group,Electricity,60096723,KENT COUNTY COUNCIL (KCS),366.13,31/01/2018
Commercial,Customer Support Group,Gas,60096727,KENT COUNTY COUNCIL (KCS),252.84,31/01/2018
Commercial,Customer Support Group,Gas,60096738,KENT COUNTY COUNCIL (KCS),345.21,31/01/2018
Commercial,Customer Support Group,Gas,60096749,KENT COUNTY COUNCIL (KCS),69.50,31/01/2018
Commercial,Customer Support Group,Gas,60096754,KENT COUNTY COUNCIL (KCS),696.53,31/01/2018
Commercial,Customer Support Group,Gas,60096774,KENT COUNTY COUNCIL (KCS),158.89,31/01/2018
Commercial,Customer Support Group,Electricity,60096831,KENT COUNTY COUNCIL (KCS),37.50,26/01/2018
Commercial,Customer Support Group,Gas,60096870,KENT COUNTY COUNCIL (KCS),28.57,29/01/2018
Commercial,Customer Support Group,Gas,60096872,KENT COUNTY COUNCIL (KCS),29.33,29/01/2018
Commercial,Customer Support Group,Gas,60096881,KENT COUNTY COUNCIL (KCS),29.33,29/01/2018
Commercial,Customer Support Group,Gas,60096904,KENT COUNTY COUNCIL (KCS),28.25,29/01/2018
Commercial,Customer Support Group,Service Charges,60096652,LAZARI INVESTMENTS LTD,183.36,24/01/2018
Commercial,Customer Support Group,Service Charges,60096688,LAZARI INVESTMENTS LTD,"27,966.24",24/01/2018
Commercial,Customer Support Group,Building Repairs & Maintenance,60096909,LEE SECURITY LONDON LIMITED,32.60,30/01/2018
Commercial,Customer Support Group,Building Repairs & Maintenance,60082441,LIFT & ENGINEERING SERVICES LTD,66.94,10/01/2018
Commercial,Customer Support Group,Building Repairs & Maintenance,60095391,LIFT & ENGINEERING SERVICES LTD,99.17,19/01/2018
Commercial,Customer Support Group,Land Registry Fees,80014759,NORTH LONDON WASTE AUTHORITY,"25,739.00",11/01/2018
Commercial,Customer Support Group,Building Repairs & Maintenance,60089560,OAKRAY LIMITED,48.00,10/01/2018
Commercial,Customer Support Group,Building Repairs & Maintenance,60089565,OAKRAY LIMITED,48.00,10/01/2018
Commercial,Customer Support Group,Building Repairs & Maintenance,60089566,OAKRAY LIMITED,64.00,10/01/2018
Commercial,Customer Support Group,Building Repairs & Maintenance,60089568,OAKRAY LIMITED,41.25,10/01/2018
Commercial,Customer Support Group,Building Repairs & Maintenance,60089569,OAKRAY LIMITED,48.00,10/01/2018
Commercial,Customer Support Group,Building Repairs & Maintenance,60089570,OAKRAY LIMITED,121.50,10/01/2018
Commercial,Customer Support Group,Building Repairs & Maintenance,60089591,OAKRAY LIMITED,64.00,10/01/2018
Commercial,Customer Support Group,Building Repairs & Maintenance,60089595,OAKRAY LIMITED,114.50,10/01/2018
Commercial,Customer Support Group,Building Repairs & Maintenance,60089596,OAKRAY LIMITED,64.00,10/01/2018
Commercial,Customer Support Group,Building Repairs & Maintenance,60089598,OAKRAY LIMITED,41.25,10/01/2018
Commercial,Customer Support Group,Building Repairs & Maintenance,60089609,OAKRAY LIMITED,64.00,10/01/2018
Commercial,Customer Support Group,Building Repairs & Maintenance,60089610,OAKRAY LIMITED,48.00,10/01/2018
Commercial,Customer Support Group,Building Repairs & Maintenance,60089614,OAKRAY LIMITED,48.00,10/01/2018
Commercial,Customer Support Group,Building Repairs & Maintenance,60089616,OAKRAY LIMITED,96.00,10/01/2018
Commercial,Customer Support Group,Building Repairs & Maintenance,60089630,OAKRAY LIMITED,73.25,10/01/2018
Commercial,Customer Support Group,Building Repairs & Maintenance,60089635,OAKRAY LIMITED,64.00,10/01/2018
Commercial,Customer Support Group,Building Repairs & Maintenance,60089650,OAKRAY LIMITED,41.25,10/01/2018
Commercial,Customer Support Group,Building Repairs & Maintenance,60089659,OAKRAY LIMITED,48.00,10/01/2018
Commercial,Customer Support Group,Building Repairs & Maintenance,60089660,OAKRAY LIMITED,97.50,10/01/2018
Commercial,Customer Support Group,Building Repairs & Maintenance,60091521,OAKRAY LIMITED,80.00,09/01/2018
Commercial,Customer Support Group,Building Repairs & Maintenance,60091534,OAKRAY LIMITED,135.00,09/01/2018
Commercial,Customer Support Group,Building Repairs & Maintenance,60091540,OAKRAY LIMITED,189.00,09/01/2018
Commercial,Customer Support Group,Building Repairs & Maintenance,60091542,OAKRAY LIMITED,96.00,09/01/2018
Commercial,Customer Support Group,Building Repairs & Maintenance,60091551,OAKRAY LIMITED,135.00,09/01/2018
Commercial,Customer Support Group,Building Repairs & Maintenance,60091561,OAKRAY LIMITED,192.00,09/01/2018
Commercial,Customer Support Group,Building Repairs & Maintenance,60091571,OAKRAY LIMITED,64.00,09/01/2018
Commercial,Customer Support Group,Building Repairs & Maintenance,60091588,OAKRAY LIMITED,64.00,09/01/2018
Commercial,Customer Support Group,Building Repairs & Maintenance,60091624,OAKRAY LIMITED,96.00,09/01/2018
Commercial,Customer Support Group,Building Repairs & Maintenance,60091636,OAKRAY LIMITED,96.00,09/01/2018
Commercial,Customer Support Group,Building Repairs & Maintenance,60091640,OAKRAY LIMITED,64.00,09/01/2018
Commercial,Customer Support Group,Building Repairs & Maintenance,60091648,OAKRAY LIMITED,108.00,09/01/2018
Commercial,Customer Support Group,Building Repairs & Maintenance,60091655,OAKRAY LIMITED,80.00,09/01/2018
Commercial,Customer Support Group,Building Repairs & Maintenance,60091663,OAKRAY LIMITED,187.59,09/01/2018
Commercial,Customer Support Group,Building Repairs & Maintenance,60091668,OAKRAY LIMITED,64.00,09/01/2018
Commercial,Customer Support Group,Building Repairs & Maintenance,60091724,OAKRAY LIMITED,348.00,09/01/2018
Commercial,Customer Support Group,Building Repairs & Maintenance,60093986,OAKRAY LIMITED,96.00,05/01/2018
Commercial,Customer Support Group,Building Repairs & Maintenance,60093989,OAKRAY LIMITED,96.00,05/01/2018
Commercial,Customer Support Group,Building Repairs & Maintenance,60093998,OAKRAY LIMITED,709.89,05/01/2018
Commercial,Customer Support Group,Building Repairs & Maintenance,60094004,OAKRAY LIMITED,96.00,05/01/2018
Commercial,Customer Support Group,Building Repairs & Maintenance,60094005,OAKRAY LIMITED,967.30,16/01/2018
Commercial,Customer Support Group,Building Repairs & Maintenance,60094007,OAKRAY LIMITED,282.42,05/01/2018
Commercial,Customer Support Group,Building Repairs & Maintenance,60094019,OAKRAY LIMITED,216.00,05/01/2018
Commercial,Customer Support Group,Building Repairs & Maintenance,60094031,OAKRAY LIMITED,108.00,05/01/2018
Commercial,Customer Support Group,Building Repairs & Maintenance,60094043,OAKRAY LIMITED,96.00,05/01/2018
Commercial,Customer Support Group,Building Repairs & Maintenance,60094058,OAKRAY LIMITED,162.00,05/01/2018
Commercial,Customer Support Group,Building Repairs & Maintenance,60094062,OAKRAY LIMITED,216.00,05/01/2018
Commercial,Customer Support Group,Building Repairs & Maintenance,60094067,OAKRAY LIMITED,64.00,08/01/2018
Commercial,Customer Support Group,Building Repairs & Maintenance,60094082,OAKRAY LIMITED,96.00,08/01/2018
Commercial,Customer Support Group,Building Repairs & Maintenance,60094087,OAKRAY LIMITED,64.00,08/01/2018
Commercial,Customer Support Group,Building Repairs & Maintenance,60095735,OAKRAY LIMITED,112.00,12/01/2018
Commercial,Customer Support Group,Building Repairs & Maintenance,60096103,OAKRAY LIMITED,292.45,25/01/2018
Commercial,Customer Support Group,Consultants Fees,80015054,SBH PAGE & READ,"3,000.00",26/01/2018
Commercial,Customer Support Group,Building Repairs & Maintenance,60092761,PUBLIC CLOCKS LTD,46.35,19/01/2018
Commercial,Customer Support Group,Building Repairs & Maintenance,20035539,RGE SERVICES,123.98,31/01/2018
Commercial,Customer Support Group,Building Repairs & Maintenance,60093306,RGE SERVICES,111.17,03/01/2018
Commercial,Customer Support Group,Building Repairs & Maintenance,60093318,RGE SERVICES,50.42,03/01/2018
Commercial,Customer Support Group,Building Repairs & Maintenance,60093456,RGE SERVICES,93.00,03/01/2018
Commercial,Customer Support Group,Building Repairs & Maintenance,60093470,RGE SERVICES,103.13,03/01/2018
Commercial,Customer Support Group,Building Repairs & Maintenance,60093498,RGE SERVICES,62.00,03/01/2018
Commercial,Customer Support Group,Building Repairs & Maintenance,60093518,RGE SERVICES,124.00,03/01/2018
Commercial,Customer Support Group,Building Repairs & Maintenance,60093613,RGE SERVICES,63.27,04/01/2018
Commercial,Customer Support Group,Building Repairs & Maintenance,60093632,RGE SERVICES,222.59,04/01/2018
Commercial,Customer Support Group,Building Repairs & Maintenance,60093672,RGE SERVICES,47.11,04/01/2018
Commercial,Customer Support Group,Building Repairs & Maintenance,60093682,RGE SERVICES,138.91,04/01/2018
Commercial,Customer Support Group,Building Repairs & Maintenance,60093824,RGE SERVICES,73.78,04/01/2018
Commercial,Customer Support Group,Building Repairs & Maintenance,60094913,RGE SERVICES,334.42,03/01/2018
Commercial,Customer Support Group,Building Repairs & Maintenance,60095189,RGE SERVICES,25.65,10/01/2018
Commercial,Customer Support Group,Building Repairs & Maintenance,60095283,RGE SERVICES,84.65,09/01/2018
Commercial,Customer Support Group,Building Repairs & Maintenance,60095302,RGE SERVICES,115.43,10/01/2018
Commercial,Customer Support Group,Building Repairs & Maintenance,60095325,RGE SERVICES,153.91,25/01/2018
Commercial,Customer Support Group,Building Repairs & Maintenance,60095335,RGE SERVICES,47.03,11/01/2018
Commercial,Customer Support Group,Building Repairs & Maintenance,60095337,RGE SERVICES,247.18,25/01/2018
Commercial,Customer Support Group,Building Repairs & Maintenance,60095338,RGE SERVICES,85.73,10/01/2018
Commercial,Customer Support Group,Building Repairs & Maintenance,60095346,RGE SERVICES,25.65,10/01/2018
Commercial,Customer Support Group,Building Repairs & Maintenance,60095351,RGE SERVICES,104.36,25/01/2018
Commercial,Customer Support Group,Building Repairs & Maintenance,60095355,RGE SERVICES,87.21,25/01/2018
Commercial,Customer Support Group,Building Repairs & Maintenance,60095356,RGE SERVICES,43.62,25/01/2018
Commercial,Customer Support Group,Building Repairs & Maintenance,60095357,RGE SERVICES,47.03,11/01/2018
Commercial,Customer Support Group,Building Repairs & Maintenance,60095368,RGE SERVICES,50.42,25/01/2018
Commercial,Customer Support Group,Building Repairs & Maintenance,60095373,RGE SERVICES,62.00,25/01/2018
Commercial,Customer Support Group,Building Repairs & Maintenance,60095384,RGE SERVICES,111.17,10/01/2018
Commercial,Customer Support Group,Building Repairs & Maintenance,60095387,RGE SERVICES,897.75,25/01/2018
Commercial,Customer Support Group,Building Repairs & Maintenance,60095407,RGE SERVICES,324.09,25/01/2018
Commercial,Customer Support Group,Building Repairs & Maintenance,60095412,RGE SERVICES,206.19,25/01/2018
Commercial,Customer Support Group,Building Repairs & Maintenance,60095427,RGE SERVICES,47.03,10/01/2018
Commercial,Customer Support Group,Building Repairs & Maintenance,60095429,RGE SERVICES,62.00,25/01/2018
Commercial,Customer Support Group,Building Repairs & Maintenance,60095806,RGE SERVICES,416.76,12/01/2018
Commercial,Customer Support Group,Building Repairs & Maintenance,60096052,RGE SERVICES,31.00,16/01/2018
Commercial,Customer Support Group,Building Repairs & Maintenance,60096060,RGE SERVICES,34.42,16/01/2018
Commercial,Customer Support Group,Building Repairs & Maintenance,60096112,RGE SERVICES,300.24,25/01/2018
Commercial,Customer Support Group,Building Repairs & Maintenance,60096115,RGE SERVICES,249.95,25/01/2018
Commercial,Customer Support Group,Building Repairs & Maintenance,60096152,RGE SERVICES,62.00,25/01/2018
Commercial,Customer Support Group,Building Repairs & Maintenance,60096180,RGE SERVICES,139.50,25/01/2018
Commercial,Customer Support Group,Building Repairs & Maintenance,60096198,RGE SERVICES,369.10,25/01/2018
Commercial,Customer Support Group,Building Repairs & Maintenance,60096226,RGE SERVICES,150.43,17/01/2018
Commercial,Customer Support Group,Building Repairs & Maintenance,60096266,RGE SERVICES,62.00,25/01/2018
Commercial,Customer Support Group,Building Repairs & Maintenance,60096326,RGE SERVICES,"1,558.20",18/01/2018
Commercial,Customer Support Group,Building Repairs & Maintenance,60096341,RGE SERVICES,325.18,25/01/2018
Commercial,Customer Support Group,Building Repairs & Maintenance,60096348,RGE SERVICES,359.17,18/01/2018
Commercial,Customer Support Group,Building Repairs & Maintenance,60096767,RGE SERVICES,311.36,25/01/2018
Commercial,Customer Support Group,Building Repairs & Maintenance,60096840,RGE SERVICES,89.81,29/01/2018
Commercial,Customer Support Group,Building Repairs & Maintenance,60096843,RGE SERVICES,62.00,29/01/2018
Commercial,Customer Support Group,Building Repairs & Maintenance,60096874,RGE SERVICES,62.00,29/01/2018
Commercial,Customer Support Group,Building Repairs & Maintenance,60096888,RGE SERVICES,62.00,29/01/2018
Commercial,Customer Support Group,Building Repairs & Maintenance,60096901,RGE SERVICES,62.00,29/01/2018
Commercial,Customer Support Group,Building Repairs & Maintenance,60094676,S W BRUCE & CO LTD,"21,551.47",10/01/2018
Commercial,Customer Support Group,Building Repairs & Maintenance,60095315,S W BRUCE & CO LTD,90.86,10/01/2018
Commercial,Customer Support Group,Building Repairs & Maintenance,60095399,S W BRUCE & CO LTD,153.01,10/01/2018
Commercial,Customer Support Group,Building Repairs & Maintenance,60095411,S W BRUCE & CO LTD,139.02,10/01/2018
Commercial,Customer Support Group,Building Repairs & Maintenance,60095421,S W BRUCE & CO LTD,"1,460.00",15/01/2018
Commercial,Customer Support Group,Building Repairs & Maintenance,60096124,S W BRUCE & CO LTD,25.00,17/01/2018
Commercial,Customer Support Group,Building Repairs & Maintenance,60096128,S W BRUCE & CO LTD,25.00,17/01/2018
Commercial,Customer Support Group,Building Repairs & Maintenance,60096131,S W BRUCE & CO LTD,25.00,17/01/2018
Commercial,Customer Support Group,Building Repairs & Maintenance,60096145,S W BRUCE & CO LTD,115.00,17/01/2018
Commercial,Customer Support Group,Building Repairs & Maintenance,60096147,S W BRUCE & CO LTD,147.95,17/01/2018
Commercial,Customer Support Group,Building Repairs & Maintenance,60096157,S W BRUCE & CO LTD,112.36,17/01/2018
Commercial,Customer Support Group,Building Repairs & Maintenance,60096214,S W BRUCE & CO LTD,390.00,17/01/2018
Commercial,Customer Support Group,Building Repairs & Maintenance,60096231,S W BRUCE & CO LTD,105.08,17/01/2018
Commercial,Customer Support Group,Building Repairs & Maintenance,60096248,S W BRUCE & CO LTD,215.81,17/01/2018
Commercial,Customer Support Group,Building Repairs & Maintenance,60096271,S W BRUCE & CO LTD,76.65,17/01/2018
Commercial,Customer Support Group,Building Repairs & Maintenance,60096278,S W BRUCE & CO LTD,25.00,17/01/2018
Commercial,Customer Support Group,Building Repairs & Maintenance,60096291,S W BRUCE & CO LTD,25.00,17/01/2018
Commercial,Customer Support Group,Building Repairs & Maintenance,60091062,TANN SYNCHRONOME LTD,126.00,05/01/2018
Commercial,Customer Support Group,Building Repairs & Maintenance,60096084,TANN SYNCHRONOME LTD,250.00,18/01/2018
Commercial,Customer Support Group,Gas,60095654,TOTAL GAS & POWER LTD,990.74,12/01/2018
Commercial,Customer Support Group,Ttl IT & Comms,60094487,TELEFONICA UK LTD,63.17,03/01/2018
Commercial,Customer Support Group,Ttl IT & Comms,60094509,TELEFONICA UK LTD,60.43,03/01/2018
Commercial,Customer Support Group,Ttl IT & Comms,60094532,TELEFONICA UK LTD,60.00,03/01/2018
Commercial,Customer Support Group,Ttl IT & Comms,60094537,TELEFONICA UK LTD,60.00,03/01/2018
Commercial,Customer Support Group,Ttl IT & Comms,60094592,TELEFONICA UK LTD,51.33,04/01/2018
Commercial,Customer Support Group,Ttl IT & Comms,60094605,TELEFONICA UK LTD,60.00,04/01/2018
Commercial,Customer Support Group,Ttl IT & Comms,60094608,TELEFONICA UK LTD,"1,444.31",03/01/2018
Commercial,Customer Support Group,Ttl IT & Comms,60094613,TELEFONICA UK LTD,62.25,03/01/2018
Commercial,Customer Support Group,Ttl IT & Comms,60096024,TELEFONICA UK LTD,"16,398.67",17/01/2018
Commercial,Customer Support Group,Ttl IT & Comms,60096099,TELEFONICA UK LTD,"3,124.48",16/01/2018
Commercial,Customer Support Group,Ttl IT & Comms,60095100,VODAFONE LTD (BILLS ONLY),618.83,05/01/2018
Commercial,Customer Support Group,Ttl IT & Comms,60095809,VODAFONE LTD (BILLS ONLY),595.85,12/01/2018
Commercial,Customer Support Group,Professional Services,60096313,ROSSENDALES (COLLECT) LTD,789.04,30/01/2018
Commercial,Customer Support Group,Professional Services,60096638,ROSSENDALES (COLLECT) LTD,3.57,26/01/2018
Commercial,Customer Support Group,Professional Services,60096640,ROSSENDALES (COLLECT) LTD,3.57,23/01/2018
Commercial,Customer Support Group,Postage,60094853,ENVOPRINT,238.55,18/01/2018
Commercial,Customer Support Group,Postage,60095019,PULSTAR DATAPRINT LTD,248.00,04/01/2018
Commercial,Customer Support Group,Postage,60095952,ROYAL MAIL GROUP LIMITED,"1,619.73",15/01/2018
Commercial,Customer Support Group,Other Services,60095202,BLUE 9 SECURITY LIMITED,"22,773.84",11/01/2018
Commercial,Customer Support Group,Other Services,60095305,BLUE 9 SECURITY LIMITED,"3,876.93",11/01/2018
Commercial,Customer Support Group,Cleaning and domestic material,60095252,HERTFORDSHIRE COUNTY COUNCIL,363.48,09/01/2018
Commercial,Customer Support Group,Electricity,60096012,KENT COUNTY COUNCIL (KCS),109.24,15/01/2018
Commercial,Customer Support Group,Gas,60096690,KENT COUNTY COUNCIL (KCS),893.42,31/01/2018
Commercial,Customer Support Group,Rubbish Collection,60095950,PEARCE RECYCLING CO. LTD,3.00,29/01/2018
Commercial,Customer Support Group,Other Services,60096902,RE (REGIONAL ENTERPRISE) LIMITED,"1,050.00",29/01/2018
Commercial,Customer Support Group,Grounds maintenance,60096081,RIBBEX UK LTD,695.00,18/01/2018
Commercial,Customer Support Group,Furniture-Purchase-Repair,60092193,SENATOR INTERNATIONAL,716.10,12/01/2018
Commercial,Customer Support Group,Vending Machines,60083307,SIEMENS FINANCIAL SERVICES LTD,664.04,03/01/2018
Commercial,Customer Support Group,CSG Services Contract Payment,60096056,CAPITA BUSINESS SERVICES LTD,"20,352.54",16/01/2018
Commercial,Customer Support Group,Other Services,60095607,BLUE 9 SECURITY LIMITED,"2,864.88",15/01/2018
Commercial,Customer Support Group,Other Services,60095647,BLUE 9 SECURITY LIMITED,602.00,15/01/2018
Commercial,Customer Support Group,Other Services,60095658,BLUE 9 SECURITY LIMITED,"12,705.12",15/01/2018
Commercial,Customer Support Group,Other Services,60095696,BLUE 9 SECURITY LIMITED,"11,584.08",12/01/2018
Commercial,Customer Support Group,Other Services,60095704,BLUE 9 SECURITY LIMITED,966.00,12/01/2018
Commercial,Customer Support Group,Building Repairs & Maintenance,60095398,RGE SERVICES,616.21,25/01/2018
Commercial,Customer Support Group,Building Repairs & Maintenance,60095420,RGE SERVICES,159.88,25/01/2018
Commercial,Customer Support Group,Building Repairs & Maintenance,60095638,S W BRUCE & CO LTD,"1,581.10",12/01/2018
Commercial,Customer Support Group,Equipment and Materials Purcha,60096166,S W BRUCE & CO LTD,231.15,17/01/2018
Commercial,Housing Needs Resources,Private Contractors - Third Pa,60094124,THE BARNETGROUP LIMITED,"1,853,222.33",03/01/2018
Commercial,Housing Needs Resources,Other Services,60094195,THE BARNETGROUP LIMITED,"23,800.61",03/01/2018
Commercial,Housing Needs Resources,Private Contractors - Third Pa,60095502,THE BARNETGROUP LIMITED,"276,367.33",16/01/2018
Commercial,Housing Needs Resources,Private Contractors - Third Pa,60095543,THE BARNETGROUP LIMITED,"582,304.65",16/01/2018
Commercial,Housing Needs Resources,Private Contractors - Third Pa,60095561,THE BARNETGROUP LIMITED,"2,700,723.95",16/01/2018
Commercial,Housing Needs Resources,Other Services,60096322,THE BARNETGROUP LIMITED,"12,642.54",18/01/2018
Commercial,Housing Needs Resources,Other Services,60096330,THE BARNETGROUP LIMITED,"23,800.61",19/01/2018
Commercial,Housing Needs Resources,Private Contractors - Third Pa,60096350,THE BARNETGROUP LIMITED,"1,853,222.33",19/01/2018
Commercial,HRA,Consultants Fees,60095453,GVA GRIMLEY LTD,"2,000.00",22/01/2018
Commercial,HRA,Consultants Fees,60096684,P P C R ASSOCIATES LTD,432.68,24/01/2018
Commercial,HRA,Consultants Fees,60093478,PRIORITY ESTATES PROJECT LTD,"2,200.28",04/01/2018
Commercial,HRA,Consultants Fees,60095445,THE BARNETGROUP LIMITED,"2,295.40",11/01/2018
Commercial,HRA,Consultants Fees,60095482,THE BARNETGROUP LIMITED,390.00,15/01/2018
Commercial,HRA,Consultants Fees,60095550,THE BARNETGROUP LIMITED,380.25,15/01/2018
Commercial,HRA,Consultants Fees,60097069,THE BARNETGROUP LIMITED,"1,675.25",31/01/2018
Commercial,HRA,Water Services,10013944,THAMES WATER UTILITIES,"292,459.15",17/01/2018
Commercial,HRA,Other Services,60094131,THE BARNETGROUP LIMITED,"2,048,526.26",03/01/2018
Commercial,HRA,Other Services,60096345,THE BARNETGROUP LIMITED,"2,048,526.26",19/01/2018
Commercial,Parking & Infrastructure,Equipment and Materials Purcha,60093400,GREENHAM TRADING LIMITED,69.22,03/01/2018
Commercial,Parking & Infrastructure,Equipment and Materials Purcha,60093557,GREENHAM TRADING LIMITED,413.33,04/01/2018
Commercial,Parking & Infrastructure,Equipment and Materials Purcha,60094120,GREENHAM TRADING LIMITED,299.17,11/01/2018
Commercial,Parking & Infrastructure,Equipment and Materials Purcha,60094155,GREENHAM TRADING LIMITED,202.48,11/01/2018
Commercial,Parking & Infrastructure,Equipment and Materials Purcha,60094941,GREENHAM TRADING LIMITED,712.50,18/01/2018
Commercial,Parking & Infrastructure,Equipment and Materials Purcha,60093742,LAFARGE TARMAC TRADING LIMITED,127.86,04/01/2018
Commercial,Parking & Infrastructure,Equipment and Materials Purcha,60093785,LAFARGE TARMAC TRADING LIMITED,103.46,04/01/2018
Commercial,Parking & Infrastructure,Equipment and Materials Purcha,60095040,LAFARGE TARMAC TRADING LIMITED,232.29,18/01/2018
Commercial,Parking & Infrastructure,Equipment and Materials Purcha,60095369,LAFARGE TARMAC TRADING LIMITED,628.54,18/01/2018
Commercial,Parking & Infrastructure,Equipment and Materials Purcha,60096097,LAFARGE TARMAC TRADING LIMITED,115.13,18/01/2018
Commercial,Parking & Infrastructure,Equipment and Materials Purcha,60096085,COMPASS MINERALS,"2,539.29",17/01/2018
Commercial,Parking & Infrastructure,Equipment and Materials Purcha,60096098,COMPASS MINERALS,"2,487.45",17/01/2018
Commercial,Parking & Infrastructure,Equipment and Materials Purcha,60094851,SKILLS TRAINING CENTRE LTD,"1,725.00",03/01/2018
Commercial,Parking & Infrastructure,Equipment and Materials Purcha,60096223,SKILLS TRAINING CENTRE LTD,"1,275.00",17/01/2018
Commercial,Parking & Infrastructure,Equipment and Materials Purcha,60096252,SKILLS TRAINING CENTRE LTD,"6,624.00",17/01/2018
Commercial,Parking & Infrastructure,Fees and Charges,60094170,REDCORN LTD,190.00,09/01/2018
Commercial,Parking & Infrastructure,Other Services,60093635,LONDON COUNCILS,"32,000.00",04/01/2018
Commercial,Parking & Infrastructure,Professional Services,60094797,NSL LTD,"11,990.62",03/01/2018
Commercial,Parking & Infrastructure,Other Services,60094815,NSL LTD,"1,969.65",03/01/2018
Commercial,Parking & Infrastructure,Software Licences & Support,60094903,NSL LTD,"36,525.65",03/01/2018
Commercial,Parking & Infrastructure,Software Licences & Support,60094909,NSL LTD,"9,287.10",03/01/2018
Commercial,Parking & Infrastructure,Professional Services,60095213,NSL LTD,66.00,11/01/2018
Commercial,Parking & Infrastructure,Professional Services,60095499,NSL LTD,"17,985.00",11/01/2018
Commercial,Parking & Infrastructure,Software Licences & Support,60095916,NSL LTD,"27,856.63",23/01/2018
Commercial,Parking & Infrastructure,Software Licences & Support,60095938,NSL LTD,"7,938.00",24/01/2018
Commercial,Parking & Infrastructure,Miscellaneous Expenses,60094101,OAKLAWN CONSULTING LTD,"5,500.00",09/01/2018
Commercial,Parking & Infrastructure,Miscellaneous Expenses,60095300,OPENVIEW SECURITY SOLUTIONS LTD,"1,400.00",25/01/2018
Commercial,Parking & Infrastructure,Other Services,60093985,PARKEON LIMITED,810.00,10/01/2018
Commercial,Parking & Infrastructure,Other Services,60094020,PARKEON LIMITED,"2,320.40",10/01/2018
Commercial,Parking & Infrastructure,Other Services,60094127,PARKEON LIMITED,562.00,11/01/2018
Commercial,Parking & Infrastructure,Travelling Expenses,60090438,TRANSPORT FOR LONDON,10.00,02/01/2018
Commercial,Parking & Infrastructure,Other Services,60094937,BARNET LIGHTING SERVICES LTD,"551,879.06",03/01/2018
Commercial,Public Health,Other Transfer Payments to Soc,60094370,CENTRAL LONDONCOMMUNITY HEALTHCARE,"356,000.00",04/01/2018
Commercial,Public Health,Professional Services,60094362,CENTRAL LONDONCOMMUNITY HEALTHCARE,"85,834.00",04/01/2018
Commercial,Public Health,Professional Services,60094453,CENTRAL LONDONCOMMUNITY HEALTHCARE,"9,583.00",04/01/2018
Commercial,Public Health,Other Transfer Payments to Soc,60094314,CENTRAL LONDONCOMMUNITY HEALTHCARE,"29,167.00",04/01/2018
Commercial,Public Health,Professional Services,60094424,CENTRAL LONDONCOMMUNITY HEALTHCARE,"4,917.00",04/01/2018
Commercial,Regional Enterprise,Refunds,80015011,BARNET HOMES L,"2,695.00",22/01/2018
Commercial,Regional Enterprise,Legal and Court Fees,80015072,PUBLISH - REDACT NAME,"2,310.00",23/01/2018
Commercial,Regional Enterprise,Other Services,60094759,CONWAY AECOM LTD,"21,165.24",03/01/2018
Commercial,Regional Enterprise,Advertising,60092558,TMP (UK) LTD,188.00,03/01/2018
Commercial,Regional Enterprise,Advertising,60093025,TMP (UK) LTD,108.00,03/01/2018
Commercial,Regional Enterprise,Advertising,60094802,TMP (UK) LTD,90.00,19/01/2018
Commercial,Regional Enterprise,Advertising,60095942,TMP (UK) LTD,170.00,19/01/2018
Commercial,Regional Enterprise,Advertising,60095887,TMP (UK) LTD,624.00,16/01/2018
Commercial,Regional Enterprise,Other Services,60094516,SARG ENGINEERING (UK) LIMITED,"20,250.00",02/01/2018
Commercial,Regional Enterprise,Professional Services,60093845,LONDON BOROUGH OF BRENT,100.00,03/01/2018
Commercial,Regional Enterprise,Professional Services,60096775,LONDON BOROUGH OF ENFIELD,100.00,26/01/2018
Commercial,Regional Enterprise,Other Services,60094486,CONWAY AECOM LTD,18.94,10/01/2018
Commercial,Regional Enterprise,Other Services,60094578,CONWAY AECOM LTD,12.29,10/01/2018
Commercial,Regional Enterprise,Advertising,60094197,TMP (UK) LTD,678.00,19/01/2018
Commercial,Regional Enterprise,Equipment and Materials Purcha,80014411,CHURCHILL CONTRACT SERVICES,82.00,11/01/2018
Commercial,Regional Enterprise,Equipment and Materials Purcha,80014906,CHURCHILL CON,16.40,23/01/2018
Commercial,Regional Enterprise,Other Services,60095308,CONWAY AECOM LTD,239.51,10/01/2018
Commercial,Regional Enterprise,Other Services,60095311,CONWAY AECOM LTD,51.74,10/01/2018
Commercial,Regional Enterprise,Other Services,60095316,CONWAY AECOM LTD,50.60,10/01/2018
Commercial,Regional Enterprise,Other Services,60095317,CONWAY AECOM LTD,40.75,10/01/2018
Commercial,Regional Enterprise,Other Services,60095319,CONWAY AECOM LTD,50.60,10/01/2018
Commercial,Regional Enterprise,Other Services,60095340,CONWAY AECOM LTD,90.61,10/01/2018
Commercial,Regional Enterprise,Other Services,60095342,CONWAY AECOM LTD,100.37,10/01/2018
Commercial,Regional Enterprise,Other Services,60095349,CONWAY AECOM LTD,181.21,10/01/2018
Commercial,Regional Enterprise,Other Services,60095350,CONWAY AECOM LTD,51.74,10/01/2018
Commercial,Regional Enterprise,Other Services,60095354,CONWAY AECOM LTD,573.35,10/01/2018
Commercial,Regional Enterprise,Other Services,60095371,CONWAY AECOM LTD,91.42,10/01/2018
Commercial,Regional Enterprise,Other Services,60095374,CONWAY AECOM LTD,100.91,10/01/2018
Commercial,Regional Enterprise,Other Services,60095378,CONWAY AECOM LTD,50.60,10/01/2018
Commercial,Regional Enterprise,Other Services,60095386,CONWAY AECOM LTD,184.53,10/01/2018
Commercial,Regional Enterprise,Other Services,60095388,CONWAY AECOM LTD,211.31,10/01/2018
Commercial,Regional Enterprise,Other Services,60095389,CONWAY AECOM LTD,64.23,10/01/2018
Commercial,Regional Enterprise,Other Services,60095395,CONWAY AECOM LTD,342.18,10/01/2018
Commercial,Regional Enterprise,Other Services,60095401,CONWAY AECOM LTD,63.80,10/01/2018
Commercial,Regional Enterprise,Other Services,60095405,CONWAY AECOM LTD,150.55,10/01/2018
Commercial,Regional Enterprise,Other Services,60095406,CONWAY AECOM LTD,153.76,10/01/2018
Commercial,Regional Enterprise,Other Services,60095419,CONWAY AECOM LTD,56.21,10/01/2018
Commercial,Regional Enterprise,Other Services,60095422,CONWAY AECOM LTD,68.37,10/01/2018
Commercial,Regional Enterprise,Other Services,60095423,CONWAY AECOM LTD,82.32,10/01/2018
Commercial,Regional Enterprise,Other Services,60095425,CONWAY AECOM LTD,100.37,10/01/2018
Commercial,Regional Enterprise,Other Services,60096441,RM COUNTRYSIDE SERVICES LTD,210.00,19/01/2018
Commercial,Regional Enterprise,General Sales,80014632,PUBLISH - REDACT NAME,"1,013.20",05/01/2018
Commercial,Regional Enterprise,Other Services,60075448,CONWAY AECOM LTD,191.62,10/01/2018
Commercial,Regional Enterprise,Grant Payments,80015131,G J PULHAM LIMITED,"1,440.00",29/01/2018
Commercial,Regional Enterprise,Grant Payments,80014920,H D PROPERTY SERVICES LTD,"4,043.55",19/01/2018
Commercial,Regional Enterprise,Grant Payments,80015090,H D PROPERTY SERVICES LTD,183.75,29/01/2018
Commercial,Regional Enterprise,Grant Payments,80014964,MCP PROPERTY SERVICES LTD,"3,517.50",25/01/2018
Commercial,Regional Enterprise,Grant Payments,80014603,RE REGIONAL EN,264.00,04/01/2018
Commercial,Regional Enterprise,Grant Payments,80014923,GB PLUMBING & H,"2,677.50",19/01/2018
Commercial,Regional Enterprise,Other Establishments - Third P,80015005,TRANSPORT FOR LONDON,"284,114.21",23/01/2018
Commercial,Regional Enterprise,Consultants Fees,60089920,GROUNDWORK LONDON,"1,000.00",29/01/2018
Commercial,Regional Enterprise,Consultants Fees,60094813,GOWLING WLG,"4,864.00",03/01/2018
Commercial,Regional Enterprise,Consultants Fees,60094869,GOWLING WLG,930.00,03/01/2018
Commercial,Regional Enterprise,Consultants Fees,60094873,GOWLING WLG,"1,292.00",03/01/2018
Commercial,Regional Enterprise,Consultants Fees,60095117,GOWLING WLG,"2,346.00",08/01/2018
Commercial,Regional Enterprise,Consultants Fees,60095376,TMP (UK) LTD,"1,048.00",10/01/2018
Commercial,Regional Enterprise,Consultants Fees,60095586,TMP (UK) LTD,341.00,12/01/2018
Commercial,Regional Enterprise,Advertising,60095622,TMP (UK) LTD,341.00,12/01/2018
Commercial,Regional Enterprise,Consultants Fees,60096108,31TEN CONSULTING LIMITED,"8,250.00",17/01/2018
Commercial,Regional Enterprise,Consultants Fees,60094823,GOWLING WLG,"2,881.44",03/01/2018
Commercial,Regional Enterprise,Consultants Fees,60094911,GOWLING WLG,"1,386.07",03/01/2018
Commercial,Regional Enterprise,Consultants Fees,60096787,GOWLING WLG,"2,705.90",26/01/2018
Commercial,Regional Enterprise,Consultants Fees,60096809,GOWLING WLG,"6,574.32",26/01/2018
Commercial,Regional Enterprise,Consultants Fees,60096832,GOWLING WLG,"2,351.52",26/01/2018
Commercial,Regional Enterprise,Advertising,60095682,TMP (UK) LTD,341.00,12/01/2018
Commercial,Regional Enterprise,Consultants Fees,60095719,TMP (UK) LTD,670.00,12/01/2018
Commercial,Regional Enterprise,Consultants Fees,60095778,TMP (UK) LTD,341.00,12/01/2018
Commercial,Regional Enterprise,Consultants Fees,60094524,VALUATION OFFICE AGENCY,"32,200.00",16/01/2018
Commercial,Regional Enterprise,Consultants Fees,60090420,WE MADE THAT LLP,449.00,18/01/2018
Commercial,Regional Enterprise,Consultants Fees,60092114,WE MADE THAT LLP,102.06,18/01/2018
Commercial,Regional Enterprise,Consultants Fees,60094645,WE MADE THAT LLP,"5,550.00",18/01/2018
Commercial,Regional Enterprise,RE Services Contract Payment,60095591,RE (REGIONAL ENTERPRISE) LIMITED,"23,581.78",25/01/2018
Commercial,Regional Enterprise,RE Services Contract Payment,60095691,RE (REGIONAL ENTERPRISE) LIMITED,"23,801.25",12/01/2018
Commercial,Regional Enterprise,RE Services Contract Payment,60095730,RE (REGIONAL ENTERPRISE) LIMITED,"23,865.37",25/01/2018
Commercial,Regional Enterprise,RE Services Contract Payment,60095758,RE (REGIONAL ENTERPRISE) LIMITED,"23,828.38",25/01/2018
Commercial,Regional Enterprise,Consultants Fees,60095563,CHIPPING BARNET TOWN TEAM,"4,717.00",12/01/2018
Commercial,Regional Enterprise,Cleaning and domestic material,60093081,CHURCHILL CONTRACT SERVICES,488.56,08/01/2018
Commercial,Regional Enterprise,Cleaning and domestic material,60095045,CHURCHILL CONTRACT SERVICES,488.56,30/01/2018
Commercial,Regional Enterprise,Grant Payments,80014652,AMWELL CONSTRUCTION LTD,"5,838.00",05/01/2018
Commercial,Regional Enterprise,Grant Payments,80014753,ARTHUR J. FERRYMAN ASSOCIATES,720.00,11/01/2018
Commercial,Regional Enterprise,Grant Payments,80014717,DOLPHIN MOBILITY LTD.,"5,650.00",09/01/2018
Commercial,Regional Enterprise,Grant Payments,80014756,DP BUILDERS DISABLED ADAPTATIONS,"9,920.00",18/01/2018
Commercial,Regional Enterprise,Grant Payments,80014938,DP BUILDERS DISABLED ADAPTATIONS,"5,153.00",25/01/2018
Commercial,Regional Enterprise,Grant Payments,80014684,G J PULHAM LIMITED,"5,488.00",05/01/2018
Commercial,Regional Enterprise,Grant Payments,80014706,G J PULHAM LIMITED,"4,618.00",09/01/2018
Commercial,Regional Enterprise,Grant Payments,80014716,G J PULHAM LIMITED,"5,507.00",09/01/2018
Commercial,Regional Enterprise,Grant Payments,80014848,G J PULHAM LIMITED,"6,101.00",15/01/2018
Commercial,Regional Enterprise,Grant Payments,80014953,G J PULHAM LIMITED,"6,624.00",19/01/2018
Commercial,Regional Enterprise,Grant Payments,80015102,G J PULHAM LIMITED,"5,321.00",29/01/2018
Commercial,Regional Enterprise,Grant Payments,80014754,THRESHOLDS SU,"1,380.00",11/01/2018
Commercial,Regional Enterprise,Grant Payments,80014939,DOMESTIC LIFT,"5,865.00",19/01/2018
Commercial,Regional Enterprise,Grant Payments,80015062,TAYLOR DOLMAN,"2,690.00",29/01/2018
Commercial,Regional Enterprise,Grant Payments,80014641,SOUTH HERTFORDSHIRE,"5,477.00",05/01/2018
Commercial,Regional Enterprise,Grant Payments,80014751,SOUTH HERTFORDSHIRE,"5,362.00",10/01/2018
Commercial,Regional Enterprise,Grant Payments,80014980,SOUTH HERTFORDSHIRE,"5,362.00",19/01/2018
Commercial,Regional Enterprise,Grant Payments,80015064,SOUTH HERTFORDSHIRE,"7,980.00",29/01/2018
Commercial,Regional Enterprise,Grant Payments,80014928,STANNAH STAIRLIFTS LTD,"2,217.00",19/01/2018
Commercial,Regional Enterprise,Grant Payments,80014996,STANNAH STAIRLIFTS LTD,"14,423.00",22/01/2018
Commercial,Regional Enterprise,Grant Payments,80015052,STANNAH STAIRLIFTS LTD,"5,780.00",29/01/2018
Commercial,Regional Enterprise,Other Services,60096675,ARTS DEPOT PRODUCTIONS LTD,630.50,24/01/2018
Commercial,Regional Enterprise,Other Services,60093468,METRO RADIO CARS,82.00,26/01/2018
Commercial,Regional Enterprise,Other Services,60055777,CONWAY AECOM LTD,"2,558.41",10/01/2018
Commercial,Regional Enterprise,Other Services,60095611,CYCLE CONFIDENT LTD,"2,701.69",30/01/2018
Commercial,Regional Enterprise,Other Services,60095414,GRASVENOR AVENUE INFANT SCHOOL (ACA,"1,100.00",10/01/2018
Commercial,Regional Enterprise,Other Services,60095144,KONFLUX THEATRE LTD,"9,775.00",30/01/2018
Commercial,Regional Enterprise,Advertising,60090131,TMP (UK) LTD,949.80,19/01/2018
Commercial,Regional Enterprise,Other Services,60096697,SUN HILL SURVEYS,900.00,24/01/2018
Commercial,Regional Enterprise,Advertising,60086326,TMP (UK) LTD,"1,428.60",19/01/2018
Commercial,Regional Enterprise,Other Services,60094478,CONWAY AECOM LTD,"4,333.50",03/01/2018
Commercial,Regional Enterprise,Other Services,60094778,RINGWAY INFRASTRUCTURE SERVICES LTD,"4,110.51",03/01/2018
Commercial,Regional Enterprise,Other Services,60094602,CONWAY AECOM LTD,"6,724.76",10/01/2018
Commercial,Regional Enterprise,Other Services,20035436,LONDON BUSES SERVICES LIMITED,"11,446.93",16/01/2018
Commercial,Regional Enterprise,Equipment and Materials Purcha,60094454,MACLEOD SIMMONDS LTD,"20,610.00",18/01/2018
Commercial,Regional Enterprise,Other Services,60094775,CONWAY AECOM LTD,"7,680.60",03/01/2018
Commercial,Regional Enterprise,Other Services,60094806,CONWAY AECOM LTD,"62,924.90",03/01/2018
Commercial,Regional Enterprise,Other Services,60094811,CONWAY AECOM LTD,"41,372.80",03/01/2018
Commercial,Regional Enterprise,Other Services,60094827,CONWAY AECOM LTD,"51,380.80",03/01/2018
Commercial,Regional Enterprise,Other Services,60094866,CONWAY AECOM LTD,"48,204.80",03/01/2018
Commercial,Regional Enterprise,Other Services,60093611,CONWAY AECOM LTD,"1,648.80",04/01/2018
Commercial,Regional Enterprise,Consultants Fees,10013945,EVERSHEDS LLP,"2,500.00",18/01/2018
Commercial,Regional Enterprise,Consultants Fees,60094948,EVERSHEDS LLP,"227,594.61",03/01/2018
Commercial,Regional Enterprise,Consultants Fees,60094785,GOWLING WLG,"5,169.60",03/01/2018
Commercial,Regional Enterprise,Consultants Fees,60094822,GOWLING WLG,929.17,03/01/2018
Commercial,Regional Enterprise,Consultants Fees,60094826,GOWLING WLG,394.13,03/01/2018
Commercial,Regional Enterprise,Consultants Fees,60094830,GOWLING WLG,"1,669.25",03/01/2018
Commercial,Regional Enterprise,Consultants Fees,60094846,GOWLING WLG,"7,801.60",03/01/2018
Commercial,Regional Enterprise,Consultants Fees,60094854,GOWLING WLG,"2,126.30",03/01/2018
Commercial,Regional Enterprise,Consultants Fees,60094939,GOWLING WLG,"5,949.18",03/01/2018
Commercial,Regional Enterprise,Consultants Fees,60095167,GOWLING WLG,"11,288.95",08/01/2018
Commercial,Regional Enterprise,Consultants Fees,60096794,GOWLING WLG,"1,066.46",29/01/2018
Commercial,Regional Enterprise,Consultants Fees,60096797,GOWLING WLG,"2,344.90",29/01/2018
Commercial,Regional Enterprise,Consultants Fees,60096805,GOWLING WLG,"4,428.14",29/01/2018
Commercial,Regional Enterprise,Consultants Fees,60096835,GOWLING WLG,"3,528.00",29/01/2018
Commercial,Regional Enterprise,Consultants Fees,60093781,HOLIDAY INN LONDON - BRENT CROSS,291.25,03/01/2018
Commercial,Regional Enterprise,Consultants Fees,60093360,SAPIENS CONSULTANCY,690.50,25/01/2018
Commercial,Regional Enterprise,Consultants Fees,60094942,TRANSPORT FOR LONDON,"5,000.00",19/01/2018
Commercial,Regional Enterprise,Capital Construction and Works,60095393,S W BRUCE & CO LTD,"1,421.16",11/01/2018
Commercial,Regional Enterprise,Other Services,60094924,BARNET LIGHTING SERVICES LTD,"1,127.00",03/01/2018
Commercial,Regional Enterprise,Advertising,60092953,TMP (UK) LTD,341.00,19/01/2018
Commissioning,Commissioning,Cleaning and domestic material,60093060,CHURCHILL CONTRACT SERVICES,664.48,08/01/2018
Commissioning,Commissioning,Cleaning and domestic material,60095060,CHURCHILL CONTRACT SERVICES,664.48,30/01/2018
Commissioning,Commissioning,Other Local Authorities - Thir,EBX0206768,NORTH LONDON WASTE,"872,077.00",05/01/2018
Commissioning,Commissioning,Professional Services,60087483,ROSSENDALES (COLLECT) LTD,3.57,08/01/2018
Commissioning,Commissioning,Professional Services,60090276,AIRWAVE SOLUTIONS LIMITED,"2,700.16",30/01/2018
Commissioning,Commissioning,Ttl IT & Comms,60095344,AIRWAVE SOLUTIONS LIMITED,516.18,31/01/2018
Commissioning,Commissioning,Ttl IT & Comms,60095235,STOR-A FILE LTD,"5,726.43",29/01/2018
Commissioning,Commissioning,General Office Expenses,40002679,OFFICE DEPOT UK LTD,1.26,04/01/2018
Commissioning,Commissioning,Professional Services,60094889,L G FUTURES,"1,150.00",03/01/2018
Commissioning,Commissioning,Employee Expenses,60094859,TMP (UK) LTD,885.50,03/01/2018
Commissioning,Commissioning,Employee Expenses,60094090,JOBTARGET LTD T/AS YOURMEMBERSHIP,275.00,11/01/2018
Commissioning,Commissioning,Consultants Fees,60094840,LEIDOS INNOVATIONS UK LTD,"35,884.00",11/01/2018
Commissioning,Commissioning,Other Services,60096316,SHRED-IT,143.78,18/01/2018
Commissioning,Commissioning,Other Services,60096324,SHRED-IT,57.52,18/01/2018
Commissioning,Commissioning,Other Services,60096332,SHRED-IT,95.85,18/01/2018
Commissioning,Commissioning,Other Services,60096334,SHRED-IT,143.78,18/01/2018
Commissioning,Commissioning,Other Services,60096349,SHRED-IT,57.51,18/01/2018
Commissioning,Commissioning,Other Services,60096356,SHRED-IT,115.02,19/01/2018
Commissioning,Commissioning,Other Services,60096360,SHRED-IT,57.51,19/01/2018
Commissioning,Commissioning,Other Services,60096366,SHRED-IT,95.85,19/01/2018
Commissioning,Commissioning,Equipment and Materials Purcha,60094735,OCS GROUP UK LIMITED,"2,778.00",03/01/2018
Commissioning,Commissioning,Equipment and Materials Purcha,60096943,OCS GROUP UK LIMITED,"47,050.00",30/01/2018
Commissioning,Commissioning,Consultants Fees,60096281,LONDON BASKETBALL,15.00,26/01/2018
Commissioning,Commissioning,Equipment and Materials Purcha,60095997,EMPOWERING COMMUNITIES,"5,949.00",26/01/2018
Commissioning,Commissioning,Equipment and Materials Purcha,60094694,IC2 CCTV & SECURITY SPECIALISTS (UK) LTD,900.00,03/01/2018
Commissioning,Commissioning,Equipment and Materials Purcha,60095762,IC2 CCTV & SECURITY SPECIALISTS (UK) LTD," 10,000.00 ",12/01/2018
Commissioning,Commissioning,Miscellaneous Expenses,80014775,LJB CLOTHINGS, 150.00 ,22/01/2018
Commissioning,Commissioning,Consultants Fees,60093313,PUBLISH - REDACT NAME, 42.84 ,03/01/2018
Commissioning,Commissioning,Consultants Fees,60095584,PUBLISH - REDACT NAME, 42.84 ,12/01/2018
Commissioning,Commissioning,Consultants Fees,60096813,PUBLISH - REDACT NAME, 21.42 ,26/01/2018
Commissioning,Commissioning,Employee Expenses,60094451,VENN GROUP LIMITED," 11,700.00 ",02/01/2018
Commissioning,Commissioning,Venue Hire,60096181,GREENWICH LEISURE LTD," 1,245.60 ",24/01/2018
Commissioning,Commissioning,Consultants Fees,60095706,JON SHEAFF AND ASSOCIATES," 45,818.50 ",12/01/2018
Commissioning,Commissioning,Consultants Fees,60094284,PELL FRISCHMAN CONSULTING ENGINEERS LTD," 3,250.00 ",04/01/2018
Commissioning,Commissioning,Grounds maintenance,60084432,WINDOW FLOWERS LTD," 4,233.00 ",04/01/2018
Commissioning,Commissioning,Consultants Fees,60094502,LONDON COUNCILS," 10,000.00 ",08/01/2018
Commissioning,Commissioning,Professional Services,80014503,PUBLISH - REDACT NAME, 500.00 ,08/01/2018
Commissioning,Commissioning,Professional Services,80015128,SOLACE, 225.00 ,29/01/2018
Commissioning,Commissioning,Professional Services,60095303,MYSTERY SHOPPERS LTD,399.80,29/01/2018
Commissioning,Commissioning,Publications,60096503,HOOTSUITE  MEDIA INC.," 4,500.00 ",24/01/2018
Commissioning,Commissioning,Venue Hire,80014718,PARISH CHURCH,150.00,18/01/2018
Commissioning,Commissioning,Advertising,60096762,THE BULL THEATRE,50.00,25/01/2018
Commissioning,Commissioning,Consultants Fees,40002693,OFFICE DEPOT UK LTD, 8.80 ,25/01/2018
Commissioning,Commissioning,Ttl IT & Comms,60061218,BIBLIOTHECA LTD,"-2,247.50 ",04/01/2018
Commissioning,Commissioning,Ttl IT & Comms,60063409,BIBLIOTHECA LTD,"-9,444.50 ",04/01/2018
Commissioning,Commissioning,Ttl IT & Comms,60088373,BIBLIOTHECA LTD,"1,500.00",04/01/2018
Commissioning,Commissioning,Other Services,60095438,BLUE 9 SECURITY LIMITED," 2,195.37 ",11/01/2018
Commissioning,Commissioning,Other Services,60095442,BLUE 9 SECURITY LIMITED," 2,008.53 ",11/01/2018
Commissioning,Commissioning,Other Services,60095488,BLUE 9 SECURITY LIMITED," 2,156.45 ",11/01/2018
Commissioning,Commissioning,Other Services,60095532,BLUE 9 SECURITY LIMITED," 2,086.39 ",11/01/2018
Commissioning,Commissioning,Other Services,60095544,BLUE 9 SECURITY LIMITED,"2,179.80",11/01/2018
Commissioning,Commissioning,Other Services,60095567,BLUE 9 SECURITY LIMITED,"2,288.79",11/01/2018
Commissioning,Commissioning,Other Services,60095568,BLUE 9 SECURITY LIMITED," 1,891.76 ",11/01/2018
Commissioning,Commissioning,Other Services,60095570,BLUE 9 SECURITY LIMITED," 4,476.38 ",11/01/2018
Commissioning,Commissioning,Other Services,60095573,BLUE 9 SECURITY LIMITED," 2,281.01 ",11/01/2018
Commissioning,Commissioning,Other Services,60095579,BLUE 9 SECURITY LIMITED," 1,821.69 ",11/01/2018
Commissioning,Commissioning,Equipment and Materials Purcha,60095007,PHS GROUP LTD,500.00,04/01/2018
Commissioning,Commissioning,Professional Services,60093053,MIDDLESEX UNIVERSITY," 16,222.00 ",25/01/2018
Commissioning,Commissioning,Consultants Fees,10013949,ESSEX COUNTY COUNCIL," 5,874.00 ",29/01/2018
Commissioning,Commissioning,Building Repairs & Maintenance,60095205,CONWAY AECOM LTD,"2,201.56",10/01/2018
Commissioning,Commissioning,Building Repairs & Maintenance,60095217,CONWAY AECOM LTD, 664.41 ,10/01/2018
Commissioning,Commissioning,Building Repairs & Maintenance,60096134,RGE SERVICES," 1,125.55 ",25/01/2018
Commissioning,Commissioning,Building Repairs & Maintenance,60094666,S W BRUCE & CO LTD," 8,959.09 ",10/01/2018
Commissioning,Commissioning,Building Repairs & Maintenance,60095402,S W BRUCE & CO LTD,"16,874.41",12/01/2018
Commissioning,Commissioning,Consultants Fees,10013941,BUFFALO7 LTD," 3,095.00 ",08/01/2018
Commissioning,Commissioning,Consultants Fees,60096677,E-CAR CLUB, 857.63 ,24/01/2018
Commissioning,Commissioning,Consultants Fees,60096055,GALLIFORD TRY," 1,338,541.69 ",29/01/2018
Commissioning,Commissioning,Consultants Fees,60095982,S W BRUCE & CO LTD, 672.00 ,15/01/2018
Commissioning,Commissioning,Advertising,60091781,TMP (UK) LTD, 734.30 ,19/01/2018
Commissioning,Commissioning,Advertising,60092938,TMP (UK) LTD, 296.00 ,19/01/2018
Commissioning,Commissioning,Advertising,60088781,TMP (UK) LTD, 751.40 ,19/01/2018
Corporate Accounting,Corporate Accounting,Government departments - Third,80015106,DEPARTMENT FOR COMMUNITIES & LOCAL GOV.," 468,573.71 ",30/01/2018
Corporate Accounting,Corporate Accounting,Other Establishments - Third P,30175974,CLAREMONT PRIMARY SCHOOL ACADEMY," 3,010.00 ",29/01/2018
Corporate Accounting,Corporate Accounting,Other Establishments - Third P,30175976,COPTHALL SCHOOL (ACADEMY)," 28,700.00 ",29/01/2018
Corporate Accounting,Corporate Accounting,Other Establishments - Third P,30176039,COPTHALL SCHOOL (ACADEMY)," 13,300.00 ",29/01/2018
Corporate Accounting,Corporate Accounting,Other Establishments - Third P,30175968,MENORAH HIGH SCHOOL FOR GIRLS,"1,966.95",29/01/2018
Corporate Accounting,Corporate Accounting,Other Establishments - Third P,30175977,QUEEN ELIZABETH'S GIRLS ACADEMY," 7,700.00 ",29/01/2018
Corporate Accounting,Corporate Accounting,Other Establishments - Third P,30176040,QUEEN ELIZABETH'S GIRLS ACADEMY,"1,262.80",29/01/2018
Corporate Accounting,Corporate Accounting,Other Establishments - Third P,30175975,THE HYDE EF ACADEMY," 2,474.73 ",29/01/2018
Corporate Accounting,Corporate Accounting,Other Establishments - Third P,30175982,CLAREMONT PRIMARY SCHOOL ACADEMY," 2,614.18 ",29/01/2018
Corporate Accounting,Corporate Accounting,Other Establishments - Third P,30176008,COPTHALL SCHOOL (ACADEMY)," 10,500.00 ",29/01/2018
Corporate Accounting,Corporate Accounting,Grant Payments,80014662,FRIARY PARKBO,"2,630.00",17/01/2018
Corporate Accounting,Corporate Accounting,Grant Payments,80014667,HOMESTART BAR," 4,500.00 ",17/01/2018
Corporate Accounting,Corporate Accounting,Grant Payments,80014995,LIVE UNLIMITED," 4,990.00 ",24/01/2018
Corporate Accounting,Corporate Accounting,Grant Payments,80015006,THE LAST CUPPA," 5,000.00 ",30/01/2018
Corporate Accounting,Corporate Accounting,Other Agencies - Third Party P,60094178,THE BARNETGROUP LIMITED," 975,000.00 ",03/01/2018
Corporate Accounting,Corporate Accounting,Other Agencies - Third Party P,60094186,THE BARNETGROUP LIMITED," 91,666.67 ",03/01/2018
Corporate Accounting,Corporate Accounting,Other Agencies - Third Party P,60096321,THE BARNETGROUP LIMITED,"91,666.67",19/01/2018
Corporate Accounting,Corporate Accounting,Other Agencies - Third Party P,60096362,THE BARNETGROUP LIMITED," 1,576,000.00 ",19/01/2018
Corporate Accounting,Corporate Accounting,Other Transfer Payments to Soc,80014943,LIVE UNLIMITED," 1,000.00 ",18/01/2018
Corporate Accounting,Corporate Accounting,Other Transfer Payments to Soc,80014709,WIRECARD (FS INSTANT 2040880892973)," 10,087.22 ",11/01/2018
Corporate Accounting,Corporate Accounting,Other Transfer Payments to Soc,80015018,WIRECARD (FS INSTANT 2040880892973)," 4,853.70 ",23/01/2018
Corporate Accounting,Corporate Accounting,Other Transfer Payments to Soc,80014711,WIRECARD (FS ONGOING 2040881670310," 10,207.39 ",11/01/2018
Corporate Accounting,Corporate Accounting,Other Transfer Payments to Soc,80015020,WIRECARD (FS ONGOING 2040881670310," 11,234.79 ",23/01/2018
Corporate Accounting,Corporate Accounting,Refunds,80015033,MOTT MACDONALD LTD/CAMBRIDGE EDUCATION, 135.00 ,31/01/2018
Corporate Accounting,Corporate Accounting,Refunds,80015040,MOTT MACDONALD LTD/CAMBRIDGE EDUCATION," 1,215.00 ",31/01/2018
Corporate Accounting,Corporate Accounting,Employee Expenses,60094089,EDENRED," 1,506.75 ",04/01/2018
Corporate Accounting,Corporate Accounting,Other Local Authorities - Thir,EBX0207845,GREATER LONDON AUTHORITY," 3,428,215.84 ",12/01/2018
Corporate Accounting,Corporate Accounting,Other Local Authorities - Thir,EBX0208972,GREATER LONDON AUTHORITY,"234,605.00",23/01/2018
Delivery Units,Adults and Communities,Voluntary Associations - Third,30174857,ASRA GREATER LONDON HOUSING ASSOC, 379.30 ,04/01/2018
Delivery Units,Adults and Communities,Voluntary Associations - Third,30175708,ASRA GREATER LONDON HOUSING ASSOC, 379.30 ,25/01/2018
Delivery Units,Adults and Communities,Voluntary Associations - Third,30174859,CHRISTIAN ACTION (ENFIELD), 365.80 ,04/01/2018
Delivery Units,Adults and Communities,Voluntary Associations - Third,30175710,CHRISTIAN ACTION (ENFIELD), 365.80 ,25/01/2018
Delivery Units,Adults and Communities,Voluntary Associations - Third,30174860,ELEANOR PALMER TRUST NO 2 A/C., 486.50 ,04/01/2018
Delivery Units,Adults and Communities,Voluntary Associations - Third,30175711,ELEANOR PALMER TRUST NO 2 A/C., 486.50 ,25/01/2018
Delivery Units,Adults and Communities,Voluntary Associations - Third,30174861,GENESIS HOUSING ASSOCIATION LIMITED," 35,676.00 ",04/01/2018
Delivery Units,Adults and Communities,Voluntary Associations - Third,30174863,HABINTEG HOUSING ASSOCIATION, 446.37 ,04/01/2018
Delivery Units,Adults and Communities,Voluntary Associations - Third,30175713,HABINTEG HOUSING ASSOCIATION, 446.37 ,25/01/2018
Delivery Units,Adults and Communities,Voluntary Associations - Third,30174864,JEWISH COMMUNITY HOUSING ASSOCIATIO, 568.17 ,04/01/2018
Delivery Units,Adults and Communities,Voluntary Associations - Third,30175714,JEWISH COMMUNITY HOUSING ASSOCIATIO, 568.17 ,25/01/2018
Delivery Units,Adults and Communities,Voluntary Associations - Third,30174869,LINEN & WOOLLEN DRAPERS COTTAGE, 730.11 ,04/01/2018
Delivery Units,Adults and Communities,Voluntary Associations - Third,30175719,LINEN & WOOLLEN DRAPERS COTTAGE,730.11,25/01/2018
Delivery Units,Adults and Communities,Voluntary Associations - Third,30174867,ORCHARD HOUSING ASSOCIATION, 196.62 ,05/01/2018
Delivery Units,Adults and Communities,Voluntary Associations - Third,30175717,ORCHARD HOUSING ASSOCIATION, 196.62 ,23/01/2018
Delivery Units,Adults and Communities,Voluntary Associations - Third,30174871,SCOTSCARE, 361.52 ,04/01/2018
Delivery Units,Adults and Communities,Voluntary Associations - Third,30175721,SCOTSCARE, 361.52 ,25/01/2018
Delivery Units,Adults and Communities,Voluntary Associations - Third,30174868,ST PANCRAS & HUMANIST H.A., 661.55 ,04/01/2018
Delivery Units,Adults and Communities,Voluntary Associations - Third,30175718,ST PANCRAS & HUMANIST H.A., 661.55 ,25/01/2018
Delivery Units,Adults and Communities,Other Services,30174872,WILLOW HOUSING & CARE LTD., 711.38 ,04/01/2018
Delivery Units,Adults and Communities,Other Services,30175722,WILLOW HOUSING & CARE LTD.,711.38,25/01/2018
Delivery Units,Adults and Communities,Other Services,60089807,D.A. LANGUAGES LTD, 33.75 ,03/01/2018
Delivery Units,Adults and Communities,Other Services,60091320,D.A. LANGUAGES LTD,44.00,03/01/2018
Delivery Units,Adults and Communities,Other Services,60093477,D.A. LANGUAGES LTD, 29.05 ,04/01/2018
Delivery Units,Adults and Communities,Other Services,60094971,M1 EXPRESS CAR SERVICES, 214.00 ,03/01/2018
Delivery Units,Adults and Communities,Other Services,80012918,SPECIAL AMBUL,184.00,19/01/2018
Delivery Units,Adults and Communities,Other Agencies - Third Party P,90047235,AARANDALE MANOR CARE HOME," 16,427.95 ",03/01/2018
Delivery Units,Adults and Communities,Other Agencies - Third Party P,90051306,ABBEY RAVENSCROFT PARK NURSING HOME," 3,321.43 ",19/01/2018
Delivery Units,Adults and Communities,Other Agencies - Third Party P,90051307,ABBEY RAVENSCROFT PARK NURSING HOME," 3,321.43 ",19/01/2018
Delivery Units,Adults and Communities,Other Agencies - Third Party P,90051309,ABBEY RAVENSCROFT PARK NURSING HOME," 3,321.43 ",19/01/2018
Delivery Units,Adults and Communities,Other Agencies - Third Party P,90051310,ABBEY RAVENSCROFT PARK NURSING HOME,"3,321.43",19/01/2018
Delivery Units,Adults and Communities,Other Agencies - Third Party P,90051314,ABBEY RAVENSCROFT PARK NURSING HOME," 2,788.32 ",19/01/2018
Delivery Units,Adults and Communities,Other Agencies - Third Party P,90051316,ABBEY RAVENSCROFT PARK NURSING HOME," 3,801.88 ",19/01/2018
Delivery Units,Adults and Communities,Other Agencies - Third Party P,90051317,ABBEY RAVENSCROFT PARK NURSING HOME," 2,788.32 ",19/01/2018
Delivery Units,Adults and Communities,Other Agencies - Third Party P,90051318,ABBEY RAVENSCROFT PARK NURSING HOME," 2,788.32 ",19/01/2018
Delivery Units,Adults and Communities,Other Agencies - Third Party P,90051321,ABBEY RAVENSCROFT PARK NURSING HOME," 3,100.00 ",19/01/2018
Delivery Units,Adults and Communities,Other Agencies - Third Party P,90051322,ABBEY RAVENSCROFT PARK NURSING HOME," 2,788.32 ",19/01/2018
Delivery Units,Adults and Communities,Other Agencies - Third Party P,90051324,ABBEY RAVENSCROFT PARK NURSING HOME," 2,788.32 ",19/01/2018
Delivery Units,Adults and Communities,Other Agencies - Third Party P,90051325,ABBEY RAVENSCROFT PARK NURSING HOME," 2,788.32 ",19/01/2018
Delivery Units,Adults and Communities,Other Agencies - Third Party P,90051326,ABBEY RAVENSCROFT PARK NURSING HOME," 3,321.43 ",19/01/2018
Delivery Units,Adults and Communities,Other Agencies - Third Party P,90051327,ABBEY RAVENSCROFT PARK NURSING HOME," 2,788.32 ",19/01/2018
Delivery Units,Adults and Communities,Other Agencies - Third Party P,90051328,ABBEY RAVENSCROFT PARK NURSING HOME," 2,788.32 ",19/01/2018
Delivery Units,Adults and Communities,Other Agencies - Third Party P,90051329,ABBEY RAVENSCROFT PARK NURSING HOME,"3,255.00",19/01/2018
Delivery Units,Adults and Communities,Other Agencies - Third Party P,90048334,AGUDAS ISRAEL HOUSING ASSCTN LTD," 2,736.86 ",15/01/2018
Delivery Units,Adults and Communities,Other Agencies - Third Party P,90049363,APPLE TREE COURT CARE HOME,"2,397.72",12/01/2018
Delivery Units,Adults and Communities,Other Agencies - Third Party P,90049364,APPLE TREE COURT CARE HOME," 2,570.70 ",12/01/2018
Delivery Units,Adults and Communities,Other Agencies - Third Party P,90049365,APPLE TREE COURT CARE HOME," 2,570.70 ",12/01/2018
Delivery Units,Adults and Communities,Other Agencies - Third Party P,90049373,APPLE TREE COURT CARE HOME," 4,871.43 ",12/01/2018
Delivery Units,Adults and Communities,Other Agencies - Third Party P,30175183,ASHTON LODGE CARE CENTRE," 3,119.89 ",17/01/2018
Delivery Units,Adults and Communities,Other Agencies - Third Party P,90047217,ASHTON LODGE CARE CENTRE,"6,642.57",03/01/2018
Delivery Units,Adults and Communities,Other Agencies - Third Party P,90047218,ASHTON LODGE CARE CENTRE," 3,073.43 ",03/01/2018
Delivery Units,Adults and Communities,Other Agencies - Third Party P,90051098,ASHTON LODGE CARE CENTRE," 3,077.64 ",19/01/2018
Delivery Units,Adults and Communities,Other Agencies - Third Party P,90051103,ASHTON LODGE CARE CENTRE," 3,077.64 ",19/01/2018
Delivery Units,Adults and Communities,Other Agencies - Third Party P,90051106,ASHTON LODGE CARE CENTRE,"3,520.49",19/01/2018
Delivery Units,Adults and Communities,Other Agencies - Third Party P,90051108,ASHTON LODGE CARE CENTRE," 3,542.86 ",19/01/2018
Delivery Units,Adults and Communities,Other Agencies - Third Party P,90051109,ASHTON LODGE CARE CENTRE,"2,844.07",19/01/2018
Delivery Units,Adults and Communities,Other Agencies - Third Party P,90051110,ASHTON LODGE CARE CENTRE," 2,936.14 ",19/01/2018
Delivery Units,Adults and Communities,Other Agencies - Third Party P,90051111,ASHTON LODGE CARE CENTRE," 2,844.07 ",19/01/2018
Delivery Units,Adults and Communities,Other Agencies - Third Party P,90051112,ASHTON LODGE CARE CENTRE,"3,077.64",19/01/2018
Delivery Units,Adults and Communities,Other Agencies - Third Party P,90051113,ASHTON LODGE CARE CENTRE," 3,299.06 ",19/01/2018
Delivery Units,Adults and Communities,Other Agencies - Third Party P,90051115,ASHTON LODGE CARE CENTRE," 3,073.43 ",19/01/2018
Delivery Units,Adults and Communities,Other Agencies - Third Party P,90051116,ASHTON LODGE CARE CENTRE," 2,567.95 ",19/01/2018
Delivery Units,Adults and Communities,Other Agencies - Third Party P,90051117,ASHTON LODGE CARE CENTRE," 3,265.85 ",19/01/2018
Delivery Units,Adults and Communities,Other Agencies - Third Party P,90051118,ASHTON LODGE CARE CENTRE,"3,077.64",19/01/2018
Delivery Units,Adults and Communities,Other Agencies - Third Party P,90051119,ASHTON LODGE CARE CENTRE," 3,764.29 ",19/01/2018
Delivery Units,Adults and Communities,Other Agencies - Third Party P,90051120,ASHTON LODGE CARE CENTRE," 2,844.07 ",19/01/2018
Delivery Units,Adults and Communities,Other Agencies - Third Party P,90051121,ASHTON LODGE CARE CENTRE," 3,321.43 ",19/01/2018
Delivery Units,Adults and Communities,Other Agencies - Third Party P,90051122,ASHTON LODGE CARE CENTRE," 2,844.07 ",19/01/2018
Delivery Units,Adults and Communities,Other Agencies - Third Party P,90051123,ASHTON LODGE CARE CENTRE," 3,133.79 ",19/01/2018
Delivery Units,Adults and Communities,Other Agencies - Third Party P,90051861,ASHTON LODGE CARE CENTRE," 2,165.68 ",26/01/2018
Delivery Units,Adults and Communities,Other Agencies - Third Party P,90047153,ASPEN VILLAGES LTD, 85.71 ,03/01/2018
Delivery Units,Adults and Communities,Other Agencies - Third Party P,90047154,ASPEN VILLAGES LTD," 2,657.14 ",03/01/2018
Delivery Units,Adults and Communities,Other Agencies - Third Party P,90047155,ASPEN VILLAGES LTD, 85.66 ,03/01/2018
Delivery Units,Adults and Communities,Other Agencies - Third Party P,90047156,ASPEN VILLAGES LTD," 2,655.55 ",03/01/2018
Delivery Units,Adults and Communities,Other Agencies - Third Party P,90047157,ASPEN VILLAGES LTD," 2,569.89 ",03/01/2018
Delivery Units,Adults and Communities,Other Agencies - Third Party P,90047158,ASPEN VILLAGES LTD," 2,655.55 ",03/01/2018
Delivery Units,Adults and Communities,Other Agencies - Third Party P,90047159,ASPEN VILLAGES LTD," 2,569.89 ",03/01/2018
Delivery Units,Adults and Communities,Other Agencies - Third Party P,90047160,ASPEN VILLAGES LTD," 2,655.55 ",03/01/2018
Delivery Units,Adults and Communities,Other Agencies - Third Party P,90047191,ASPEN VILLAGES LTD,"2,397.72",03/01/2018
Delivery Units,Adults and Communities,Other Agencies - Third Party P,90047192,ASPEN VILLAGES LTD," 2,320.37 ",03/01/2018
Delivery Units,Adults and Communities,Other Agencies - Third Party P,90047193,ASPEN VILLAGES LTD," 2,397.72 ",03/01/2018
Delivery Units,Adults and Communities,Other Agencies - Third Party P,90049271,AUTUMN GARDENS," 4,800.00 ",12/01/2018
Delivery Units,Adults and Communities,Other Agencies - Third Party P,90049272,AUTUMN GARDENS," 4,800.00 ",12/01/2018
Delivery Units,Adults and Communities,Other Agencies - Third Party P,90050379,B & M CARE," 4,207.14 ",16/01/2018
Delivery Units,Adults and Communities,Other Agencies - Third Party P,90052007,BONDCARE LONDON (THE FOUNTAINS)," 2,138.00 ",30/01/2018
Delivery Units,Adults and Communities,Other Agencies - Third Party P,90052008,BONDCARE LONDON (THE FOUNTAINS)," 2,138.00 ",30/01/2018
Delivery Units,Adults and Communities,Other Agencies - Third Party P,90050427,BUPA CARE HOMES," 2,730.97 ",18/01/2018
Delivery Units,Adults and Communities,Other Agencies - Third Party P,90048342,BUPA CARE HOMES," 2,466.05 ",15/01/2018
Delivery Units,Adults and Communities,Other Agencies - Third Party P,90048344,BUPA CARE HOMES," 2,466.05 ",15/01/2018
Delivery Units,Adults and Communities,Other Agencies - Third Party P,90048518,BUPA CARE HOMES," 2,466.76 ",11/01/2018
Delivery Units,Adults and Communities,Other Agencies - Third Party P,90049316,BUPA CARE HOMES," 2,165.68 ",12/01/2018
Delivery Units,Adults and Communities,Other Agencies - Third Party P,90049317,BUPA CARE HOMES," 3,400.00 ",12/01/2018
Delivery Units,Adults and Communities,Other Agencies - Third Party P,90050876,BUPA CARE HOMES," 2,466.76 ",18/01/2018
Delivery Units,Adults and Communities,Other Agencies - Third Party P,90051035,BUPA CARE HOMES," 3,416.11 ",18/01/2018
Delivery Units,Adults and Communities,Other Agencies - Third Party P,90049315,BUPA CARE HOMES LTD (SUTTON LODGE)," 2,420.00 ",12/01/2018
Delivery Units,Adults and Communities,Other Agencies - Third Party P,90049297,BUPA NURSING HOMES LTD - ARKLEY," 2,214.76 ",12/01/2018
Delivery Units,Adults and Communities,Other Agencies - Third Party P,90049298,BUPA NURSING HOMES LTD - ARKLEY," 2,227.40 ",12/01/2018
Delivery Units,Adults and Communities,Other Agencies - Third Party P,90049300,BUPA NURSING HOMES LTD - ARKLEY," 2,227.24 ",12/01/2018
Delivery Units,Adults and Communities,Other Agencies - Third Party P,90049301,BUPA NURSING HOMES LTD - ARKLEY," 2,227.24 ",12/01/2018
Delivery Units,Adults and Communities,Other Agencies - Third Party P,90049302,BUPA NURSING HOMES LTD - ARKLEY," 2,227.52 ",12/01/2018
Delivery Units,Adults and Communities,Other Agencies - Third Party P,90050873,CARE UK COMMUNITY PARTNERSHIPS," 3,426.61 ",18/01/2018
Delivery Units,Adults and Communities,Other Agencies - Third Party P,90047593,CARLTON COURT (TLC GROUP)," 10,474.61 ",03/01/2018
Delivery Units,Adults and Communities,Other Agencies - Third Party P,90047594,CARLTON COURT (TLC GROUP)," 1,808.04 ",03/01/2018
Delivery Units,Adults and Communities,Other Agencies - Third Party P,90048353,CARLTON COURT (TLC GROUP)," 3,736.61 ",08/01/2018
Delivery Units,Adults and Communities,Other Agencies - Third Party P,90050442,CARLTON COURT (TLC GROUP)," 2,857.14 ",16/01/2018
Delivery Units,Adults and Communities,Other Agencies - Third Party P,90050443,CARLTON COURT (TLC GROUP)," 4,428.57 ",16/01/2018
Delivery Units,Adults and Communities,Other Agencies - Third Party P,90050444,CARLTON COURT (TLC GROUP), 844.95 ,16/01/2018
Delivery Units,Adults and Communities,Other Agencies - Third Party P,90050445,CARLTON COURT (TLC GROUP)," 3,621.21 ",16/01/2018
Delivery Units,Adults and Communities,Other Agencies - Third Party P,90050940,CARLTON COURT (TLC GROUP)," 2,655.55 ",18/01/2018
Delivery Units,Adults and Communities,Other Agencies - Third Party P,90050943,CARLTON COURT (TLC GROUP),"3,736.61",18/01/2018
Delivery Units,Adults and Communities,Other Agencies - Third Party P,90050946,CARLTON COURT (TLC GROUP)," 2,448.78 ",18/01/2018
Delivery Units,Adults and Communities,Other Agencies - Third Party P,90050947,CARLTON COURT (TLC GROUP)," 3,741.92 ",18/01/2018
Delivery Units,Adults and Communities,Other Agencies - Third Party P,90050948,CARLTON COURT (TLC GROUP)," 5,314.29 ",18/01/2018
Delivery Units,Adults and Communities,Other Agencies - Third Party P,90050949,CARLTON COURT (TLC GROUP),"3,741.92",18/01/2018
Delivery Units,Adults and Communities,Other Agencies - Third Party P,90050950,CARLTON COURT (TLC GROUP)," 4,428.57 ",18/01/2018
Delivery Units,Adults and Communities,Other Agencies - Third Party P,90050951,CARLTON COURT (TLC GROUP)," 4,428.57 ",18/01/2018
Delivery Units,Adults and Communities,Other Agencies - Third Party P,90051479,CARLTON COURT (TLC GROUP)," 3,621.21 ",23/01/2018
Delivery Units,Adults and Communities,Other Agencies - Third Party P,90051480,CARLTON COURT (TLC GROUP),"3,741.92",23/01/2018
Delivery Units,Adults and Communities,Other Agencies - Third Party P,90051481,CARLTON COURT (TLC GROUP),241.41,23/01/2018
Delivery Units,Adults and Communities,Other Agencies - Third Party P,90051482,CARLTON COURT (TLC GROUP)," 1,028.57 ",23/01/2018
Delivery Units,Adults and Communities,Other Agencies - Third Party P,90051483,CARLTON COURT (TLC GROUP)," 5,142.86 ",23/01/2018
Delivery Units,Adults and Communities,Other Agencies - Third Party P,90046956,CEDARS NURSING HOME,"-2,165.68 ",03/01/2018
Delivery Units,Adults and Communities,Other Agencies - Third Party P,90046962,CEDARS NURSING HOME," 2,655.55 ",03/01/2018
Delivery Units,Adults and Communities,Other Agencies - Third Party P,90046963,CEDARS NURSING HOME," 2,569.89 ",03/01/2018
Delivery Units,Adults and Communities,Other Agencies - Third Party P,90046964,CEDARS NURSING HOME,"2,964.93",03/01/2018
Delivery Units,Adults and Communities,Other Agencies - Third Party P,90046965,CEDARS NURSING HOME," 2,869.29 ",03/01/2018
Delivery Units,Adults and Communities,Other Agencies - Third Party P,90046966,CEDARS NURSING HOME," 2,964.93 ",03/01/2018
Delivery Units,Adults and Communities,Other Agencies - Third Party P,90046968,CEDARS NURSING HOME," 2,397.72 ",03/01/2018
Delivery Units,Adults and Communities,Other Agencies - Third Party P,90046969,CEDARS NURSING HOME," 2,320.37 ",03/01/2018
Delivery Units,Adults and Communities,Other Agencies - Third Party P,90046970,CEDARS NURSING HOME," 5,564.29 ",03/01/2018
Delivery Units,Adults and Communities,Other Agencies - Third Party P,90046971,CEDARS NURSING HOME," 4,207.14 ",03/01/2018
Delivery Units,Adults and Communities,Other Agencies - Third Party P,90046972,CEDARS NURSING HOME," 4,071.43 ",03/01/2018
Delivery Units,Adults and Communities,Other Agencies - Third Party P,90046973,CEDARS NURSING HOME," 4,207.14 ",03/01/2018
Delivery Units,Adults and Communities,Other Agencies - Third Party P,90047151,CEDARS NURSING HOME,"2,397.72",03/01/2018
Delivery Units,Adults and Communities,Other Agencies - Third Party P,90047152,CEDARS NURSING HOME,"2,320.37",03/01/2018
Delivery Units,Adults and Communities,Other Agencies - Third Party P,90048237,CLARE HOUSE NURSING HOME," 2,228.72 ",08/01/2018
Delivery Units,Adults and Communities,Other Agencies - Third Party P,90048352,FERNBANK NURSING HOME.," 2,318.80 ",08/01/2018
Delivery Units,Adults and Communities,Other Agencies - Third Party P,90049313,FERNBANK NURSING HOME.," 1,005.49 ",12/01/2018
Delivery Units,Adults and Communities,Other Agencies - Third Party P,90051042,FERNBANK NURSING HOME.," 2,318.80 ",18/01/2018
Delivery Units,Adults and Communities,Other Agencies - Third Party P,90051044,FERNBANK NURSING HOME.," 2,397.54 ",18/01/2018
Delivery Units,Adults and Communities,Other Agencies - Third Party P,90051045,FERNBANK NURSING HOME.," 2,397.54 ",18/01/2018
Delivery Units,Adults and Communities,Other Agencies - Third Party P,90051046,FERNBANK NURSING HOME.,"1,783.80",18/01/2018
Delivery Units,Adults and Communities,Other Agencies - Third Party P,90051047,FERNBANK NURSING HOME.," 2,318.80 ",18/01/2018
Delivery Units,Adults and Communities,Other Agencies - Third Party P,90051048,FERNBANK NURSING HOME.," 2,397.54 ",18/01/2018
Delivery Units,Adults and Communities,Other Agencies - Third Party P,90051049,FERNBANK NURSING HOME.," 2,397.54 ",18/01/2018
Delivery Units,Adults and Communities,Other Agencies - Third Party P,90052009,FERNBANK NURSING HOME.,"2,413.35",30/01/2018
Delivery Units,Adults and Communities,Other Agencies - Third Party P,90052010,FERNBANK NURSING HOME.," 1,392.09 ",30/01/2018
Delivery Units,Adults and Communities,Other Agencies - Third Party P,90052011,FERNBANK NURSING HOME., 523.63 ,30/01/2018
Delivery Units,Adults and Communities,Other Agencies - Third Party P,90052012,FERNBANK NURSING HOME.," 1,795.17 ",30/01/2018
Delivery Units,Adults and Communities,Other Agencies - Third Party P,90051866,FOUR SEASONS HEALTH CARE," 2,550.72 ",26/01/2018
Delivery Units,Adults and Communities,Other Agencies - Third Party P,90051867,FOUR SEASONS HEALTH CARE," 2,291.36 ",26/01/2018
Delivery Units,Adults and Communities,Other Agencies - Third Party P,90051868,FOUR SEASONS HEALTH CARE," 2,550.72 ",26/01/2018
Delivery Units,Adults and Communities,Other Agencies - Third Party P,90051869,FOUR SEASONS HEALTH CARE," 2,550.72 ",26/01/2018
Delivery Units,Adults and Communities,Other Agencies - Third Party P,90051870,FOUR SEASONS HEALTH CARE," 2,291.36 ",26/01/2018
Delivery Units,Adults and Communities,Other Agencies - Third Party P,90051872,FOUR SEASONS HEALTH CARE," 2,291.36 ",26/01/2018
Delivery Units,Adults and Communities,Other Agencies - Third Party P,90051873,FOUR SEASONS HEALTH CARE," 2,551.52 ",26/01/2018
Delivery Units,Adults and Communities,Other Agencies - Third Party P,90051875,FOUR SEASONS HEALTH CARE," 2,291.36 ",26/01/2018
Delivery Units,Adults and Communities,Other Agencies - Third Party P,90048351,FOUR SEASONS HEALTH CARE (NO.4) LTD," 2,004.00 ",08/01/2018
Delivery Units,Adults and Communities,Other Agencies - Third Party P,90050437,FRISTON HOUSE,"2,979.80",16/01/2018
Delivery Units,Adults and Communities,Other Agencies - Third Party P,90050438,FRISTON HOUSE," 2,979.80 ",16/01/2018
Delivery Units,Adults and Communities,Other Agencies - Third Party P,90050439,FRISTON HOUSE," 2,979.80 ",16/01/2018
Delivery Units,Adults and Communities,Other Agencies - Third Party P,90048244,GCH (HERTFORDSHIRE) LTD T/A," 2,358.76 ",08/01/2018
Delivery Units,Adults and Communities,Other Agencies - Third Party P,90051050,GCH (HERTFORDSHIRE) LTD T/A," 2,358.76 ",18/01/2018
Delivery Units,Adults and Communities,Other Agencies - Third Party P,90051127,HENRY NIHILL HOUSE,"2,165.68",19/01/2018
Delivery Units,Adults and Communities,Other Agencies - Third Party P,90051128,HENRY NIHILL HOUSE," 2,165.68 ",19/01/2018
Delivery Units,Adults and Communities,Other Agencies - Third Party P,90051129,HENRY NIHILL HOUSE," 2,165.68 ",19/01/2018
Delivery Units,Adults and Communities,Other Agencies - Third Party P,90051130,HENRY NIHILL HOUSE,"2,165.68",19/01/2018
Delivery Units,Adults and Communities,Other Agencies - Third Party P,90051131,HENRY NIHILL HOUSE," 2,165.68 ",19/01/2018
Delivery Units,Adults and Communities,Other Agencies - Third Party P,90051133,HENRY NIHILL HOUSE," 2,165.68 ",19/01/2018
Delivery Units,Adults and Communities,Other Agencies - Third Party P,90051134,HENRY NIHILL HOUSE," 2,165.68 ",19/01/2018
Delivery Units,Adults and Communities,Other Agencies - Third Party P,90051135,HENRY NIHILL HOUSE," 2,165.68 ",19/01/2018
Delivery Units,Adults and Communities,Other Agencies - Third Party P,90051136,HENRY NIHILL HOUSE,"2,165.68",19/01/2018
Delivery Units,Adults and Communities,Other Agencies - Third Party P,90051137,HENRY NIHILL HOUSE," 2,165.68 ",19/01/2018
Delivery Units,Adults and Communities,Other Agencies - Third Party P,90051138,HENRY NIHILL HOUSE," 2,165.68 ",19/01/2018
Delivery Units,Adults and Communities,Other Agencies - Third Party P,90051139,HENRY NIHILL HOUSE," 2,165.68 ",19/01/2018
Delivery Units,Adults and Communities,Other Agencies - Third Party P,90051140,HENRY NIHILL HOUSE," 2,165.68 ",19/01/2018
Delivery Units,Adults and Communities,Other Agencies - Third Party P,90051141,HENRY NIHILL HOUSE," 2,165.68 ",19/01/2018
Delivery Units,Adults and Communities,Other Agencies - Third Party P,90051143,HENRY NIHILL HOUSE," 1,082.84 ",19/01/2018
Delivery Units,Adults and Communities,Other Agencies - Third Party P,90051144,HENRY NIHILL HOUSE," 1,082.84 ",19/01/2018
Delivery Units,Adults and Communities,Other Agencies - Third Party P,90051145,HENRY NIHILL HOUSE," 2,165.68 ",19/01/2018
Delivery Units,Adults and Communities,Other Agencies - Third Party P,90048220,JEWISH CARE," 2,319.44 ",08/01/2018
Delivery Units,Adults and Communities,Other Agencies - Third Party P,90048222,JEWISH CARE," 2,319.44 ",08/01/2018
Delivery Units,Adults and Communities,Other Agencies - Third Party P,90048228,JEWISH CARE,"4,059.02",08/01/2018
Delivery Units,Adults and Communities,Other Agencies - Third Party P,90048229,JEWISH CARE," 4,638.88 ",08/01/2018
Delivery Units,Adults and Communities,Other Agencies - Third Party P,90048534,JEWISH CARE," 1,325.39 ",09/01/2018
Delivery Units,Adults and Communities,Other Agencies - Third Party P,90049409,JEWISH CARE," 2,319.44 ",12/01/2018
Delivery Units,Adults and Communities,Other Agencies - Third Party P,90049411,JEWISH CARE," 2,319.44 ",12/01/2018
Delivery Units,Adults and Communities,Other Agencies - Third Party P,90049412,JEWISH CARE,"2,568.84",12/01/2018
Delivery Units,Adults and Communities,Other Agencies - Third Party P,90049413,JEWISH CARE," 2,568.84 ",12/01/2018
Delivery Units,Adults and Communities,Other Agencies - Third Party P,90049414,JEWISH CARE,"2,319.44",12/01/2018
Delivery Units,Adults and Communities,Other Agencies - Third Party P,90049415,JEWISH CARE," 2,319.44 ",12/01/2018
Delivery Units,Adults and Communities,Other Agencies - Third Party P,90049416,JEWISH CARE," 2,568.84 ",12/01/2018
Delivery Units,Adults and Communities,Other Agencies - Third Party P,90049417,JEWISH CARE," 2,319.44 ",12/01/2018
Delivery Units,Adults and Communities,Other Agencies - Third Party P,90049418,JEWISH CARE," 2,568.84 ",12/01/2018
Delivery Units,Adults and Communities,Other Agencies - Third Party P,90049419,JEWISH CARE," 2,568.84 ",12/01/2018
Delivery Units,Adults and Communities,Other Agencies - Third Party P,90049420,JEWISH CARE,"2,568.84",12/01/2018
Delivery Units,Adults and Communities,Other Agencies - Third Party P,90049421,JEWISH CARE," 2,319.44 ",12/01/2018
Delivery Units,Adults and Communities,Other Agencies - Third Party P,90049422,JEWISH CARE," 2,568.84 ",12/01/2018
Delivery Units,Adults and Communities,Other Agencies - Third Party P,90049423,JEWISH CARE,"2,568.84",12/01/2018
Delivery Units,Adults and Communities,Other Agencies - Third Party P,90049424,JEWISH CARE," 2,319.44 ",12/01/2018
Delivery Units,Adults and Communities,Other Agencies - Third Party P,90049425,JEWISH CARE," 2,319.44 ",12/01/2018
Delivery Units,Adults and Communities,Other Agencies - Third Party P,90049427,JEWISH CARE," 2,568.84 ",12/01/2018
Delivery Units,Adults and Communities,Other Agencies - Third Party P,90049428,JEWISH CARE," 2,568.84 ",12/01/2018
Delivery Units,Adults and Communities,Other Agencies - Third Party P,90049429,JEWISH CARE," 2,319.44 ",12/01/2018
Delivery Units,Adults and Communities,Other Agencies - Third Party P,90049430,JEWISH CARE," 2,319.44 ",12/01/2018
Delivery Units,Adults and Communities,Other Agencies - Third Party P,90049431,JEWISH CARE," 2,568.84 ",12/01/2018
Delivery Units,Adults and Communities,Other Agencies - Third Party P,90049699,JEWISH CARE,"-1,656.74 ",12/01/2018
Delivery Units,Adults and Communities,Other Agencies - Third Party P,90049883,JEWISH CARE,"2,319.44",12/01/2018
Delivery Units,Adults and Communities,Other Agencies - Third Party P,90049893,JEWISH CARE," 2,319.44 ",12/01/2018
Delivery Units,Adults and Communities,Other Agencies - Third Party P,90049904,JEWISH CARE," 2,319.44 ",12/01/2018
Delivery Units,Adults and Communities,Other Agencies - Third Party P,90049907,JEWISH CARE," 2,319.44 ",12/01/2018
Delivery Units,Adults and Communities,Other Agencies - Third Party P,90049908,JEWISH CARE," 2,319.44 ",12/01/2018
Delivery Units,Adults and Communities,Other Agencies - Third Party P,90049909,JEWISH CARE,"2,319.44",12/01/2018
Delivery Units,Adults and Communities,Other Agencies - Third Party P,90051148,KARUNA MANOR," 4,207.14 ",19/01/2018
Delivery Units,Adults and Communities,Other Agencies - Third Party P,90050883,LADY OF THE VALE NURSING HOME,"2,657.14",18/01/2018
Delivery Units,Adults and Communities,Other Agencies - Third Party P,90049294,MEERA NURSING HOME LIMITED,"3,200.00",12/01/2018
Delivery Units,Adults and Communities,Other Agencies - Third Party P,90051006,MEERA NURSING HOME LIMITED," 2,708.65 ",18/01/2018
Delivery Units,Adults and Communities,Other Agencies - Third Party P,90051007,MEERA NURSING HOME LIMITED," 2,708.65 ",18/01/2018
Delivery Units,Adults and Communities,Other Agencies - Third Party P,90051008,MEERA NURSING HOME LIMITED," 2,445.68 ",18/01/2018
Delivery Units,Adults and Communities,Other Agencies - Third Party P,90051009,MEERA NURSING HOME LIMITED," 2,445.68 ",18/01/2018
Delivery Units,Adults and Communities,Other Agencies - Third Party P,90051011,MEERA NURSING HOME LIMITED," 2,445.68 ",18/01/2018
Delivery Units,Adults and Communities,Other Agencies - Third Party P,90051012,MEERA NURSING HOME LIMITED," 2,445.68 ",18/01/2018
Delivery Units,Adults and Communities,Other Agencies - Third Party P,90050403,MURRAYFIELD CARE HOME," 2,211.80 ",16/01/2018
Delivery Units,Adults and Communities,Other Agencies - Third Party P,90051637,MURRAYFIELD CARE HOME," 2,211.80 ",24/01/2018
Delivery Units,Adults and Communities,Other Agencies - Third Party P,90051291,NEWCENTURY CARE LTD," 2,397.72 ",19/01/2018
Delivery Units,Adults and Communities,Other Agencies - Third Party P,90051292,NEWCENTURY CARE LTD," 3,764.29 ",19/01/2018
Delivery Units,Adults and Communities,Other Agencies - Third Party P,90051293,NEWCENTURY CARE LTD," 3,764.29 ",19/01/2018
Delivery Units,Adults and Communities,Other Agencies - Third Party P,90051295,NEWCENTURY CARE LTD," 3,985.71 ",19/01/2018
Delivery Units,Adults and Communities,Other Agencies - Third Party P,90051296,NEWCENTURY CARE LTD,"2,655.55",19/01/2018
Delivery Units,Adults and Communities,Other Agencies - Third Party P,90051298,NEWCENTURY CARE LTD," 2,655.55 ",19/01/2018
Delivery Units,Adults and Communities,Other Agencies - Third Party P,90051879,NEWCENTURY CARE LTD," 5,150.26 ",26/01/2018
Delivery Units,Adults and Communities,Other Agencies - Third Party P,90050394,NIGHTINGALE HOUSE," 2,900.71 ",16/01/2018
Delivery Units,Adults and Communities,Other Agencies - Third Party P,90050395,NIGHTINGALE HOUSE," 2,900.71 ",16/01/2018
Delivery Units,Adults and Communities,Other Agencies - Third Party P,90051651,PINELODGE CARE HOME," 26,041.51 ",24/01/2018
Delivery Units,Adults and Communities,Other Agencies - Third Party P,90047224,SAGE NURSING HOME," 1,569.23 ",03/01/2018
Delivery Units,Adults and Communities,Other Agencies - Third Party P,90047225,SAGE NURSING HOME, 750.00 ,03/01/2018
Delivery Units,Adults and Communities,Other Agencies - Third Party P,90051064,SANCTUARY CARE LTD," 2,573.84 ",18/01/2018
Delivery Units,Adults and Communities,Other Agencies - Third Party P,30175682,SONESTA NURSING HOME LTD.," 2,655.55 ",24/01/2018
Delivery Units,Adults and Communities,Other Agencies - Third Party P,30175683,SONESTA NURSING HOME LTD.," 2,655.55 ",24/01/2018
Delivery Units,Adults and Communities,Other Agencies - Third Party P,30175685,SONESTA NURSING HOME LTD.,"2,397.72",24/01/2018
Delivery Units,Adults and Communities,Other Agencies - Third Party P,30175688,SONESTA NURSING HOME LTD.," 2,655.55 ",24/01/2018
Delivery Units,Adults and Communities,Other Agencies - Third Party P,30175690,SONESTA NURSING HOME LTD.,(541.42),24/01/2018
Delivery Units,Adults and Communities,Other Agencies - Third Party P,30175693,SONESTA NURSING HOME LTD.,-342.65 ,24/01/2018
Delivery Units,Adults and Communities,Other Agencies - Third Party P,30175694,SONESTA NURSING HOME LTD.," 2,655.55 ",24/01/2018
Delivery Units,Adults and Communities,Other Agencies - Third Party P,30175696,SONESTA NURSING HOME LTD.," 2,397.72 ",24/01/2018
Delivery Units,Adults and Communities,Other Agencies - Third Party P,90050406,SONESTA NURSING HOME LTD.,"2,397.72",16/01/2018
Delivery Units,Adults and Communities,Other Agencies - Third Party P,90050407,SONESTA NURSING HOME LTD.,"2,397.72",16/01/2018
Delivery Units,Adults and Communities,Other Agencies - Third Party P,90050415,SONESTA NURSING HOME LTD.,"2,655.55",16/01/2018
Delivery Units,Adults and Communities,Other Agencies - Third Party P,90050440,SONESTA NURSING HOME LTD.,"2,655.55",16/01/2018
Delivery Units,Adults and Communities,Other Agencies - Third Party P,90050914,SONESTA NURSING HOME LTD.,"2,397.72",18/01/2018
Delivery Units,Adults and Communities,Other Agencies - Third Party P,90050916,SONESTA NURSING HOME LTD.," 2,655.55 ",18/01/2018
Delivery Units,Adults and Communities,Other Agencies - Third Party P,90048337,ST ANNS HOME-LITTLE SISTERS OF THE POOR,"2,397.73",08/01/2018
Delivery Units,Adults and Communities,Other Agencies - Third Party P,90051092,VICTORIA CARE CENTRE," 2,863.50 ",18/01/2018
Delivery Units,Adults and Communities,Other Agencies - Third Party P,90051093,VICTORIA CARE CENTRE,"2,958.95",18/01/2018
Delivery Units,Adults and Communities,Other Agencies - Third Party P,90050874,WESTGATE HOUSE CARE CENTRE,"3,725.76",19/01/2018
Delivery Units,Adults and Communities,Other Agencies - Third Party P,90050397,WESTMINSTER HEALTH CARE LTD,"2,318.93",16/01/2018
Delivery Units,Adults and Communities,Other Agencies - Third Party P,90049262,AARANDALE LODGE," 2,600.00 ",12/01/2018
Delivery Units,Adults and Communities,Other Agencies - Third Party P,90050911,AARON COURT CARE HOME," 2,216.41 ",18/01/2018
Delivery Units,Adults and Communities,Other Agencies - Third Party P,90051305,ABBEY RAVENSCROFT PARK NURSING HOME,"2,657.14",19/01/2018
Delivery Units,Adults and Communities,Other Agencies - Third Party P,30174952,ACER HEALTHCARE OPERATIONS LTD," 2,985.71 ",10/01/2018
Delivery Units,Adults and Communities,Other Agencies - Third Party P,30174953,ACER HEALTHCARE OPERATIONS LTD,473.96,10/01/2018
Delivery Units,Adults and Communities,Other Agencies - Third Party P,30174954,ACER HEALTHCARE OPERATIONS LTD, 157.99 ,10/01/2018
Delivery Units,Adults and Communities,Other Agencies - Third Party P,90048536,ALEXANDRA HOUSE (RUNWOOD HOMES),"2,262.69",09/01/2018
Delivery Units,Adults and Communities,Other Agencies - Third Party P,90046953,ANASTASIA LODGE,-321.43 ,12/01/2018
Delivery Units,Adults and Communities,Other Agencies - Third Party P,90049266,ANASTASIA LODGE,"2,800.00",12/01/2018
Delivery Units,Adults and Communities,Other Agencies - Third Party P,90051037,ANGEL HEALTHCARE LTD - GLENMUIR HOUSE," 2,211.72 ",18/01/2018
Delivery Units,Adults and Communities,Other Agencies - Third Party P,90048336,APPLE TREE COURT CARE HOME,"2,211.80",08/01/2018
Delivery Units,Adults and Communities,Other Agencies - Third Party P,90049366,APPLE TREE COURT CARE HOME," 2,418.04 ",12/01/2018
Delivery Units,Adults and Communities,Other Agencies - Third Party P,90049368,APPLE TREE COURT CARE HOME," 2,448.78 ",12/01/2018
Delivery Units,Adults and Communities,Other Agencies - Third Party P,90051862,ASHFIELDS RESIDENTIAL CARE HOME," 3,147.86 ",26/01/2018
Delivery Units,Adults and Communities,Other Agencies - Third Party P,90051105,ASHTON LODGE CARE CENTRE," 2,844.07 ",19/01/2018
Delivery Units,Adults and Communities,Other Agencies - Third Party P,90051107,ASHTON LODGE CARE CENTRE," 2,622.64 ",19/01/2018
Delivery Units,Adults and Communities,Other Agencies - Third Party P,90047161,ASPEN VILLAGES LTD,"2,216.41",03/01/2018
Delivery Units,Adults and Communities,Other Agencies - Third Party P,90047162,ASPEN VILLAGES LTD," 2,144.91 ",03/01/2018
Delivery Units,Adults and Communities,Other Agencies - Third Party P,90047163,ASPEN VILLAGES LTD," 2,216.41 ",03/01/2018
Delivery Units,Adults and Communities,Other Agencies - Third Party P,90047167,ASPEN VILLAGES LTD," 3,321.43 ",03/01/2018
Delivery Units,Adults and Communities,Other Agencies - Third Party P,30175697,AUTUMN GARDENS," 5,285.71 ",24/01/2018
Delivery Units,Adults and Communities,Other Agencies - Third Party P,90049267,AUTUMN GARDENS," 3,160.00 ",12/01/2018
Delivery Units,Adults and Communities,Other Agencies - Third Party P,90049268,AUTUMN GARDENS," 2,880.00 ",12/01/2018
Delivery Units,Adults and Communities,Other Agencies - Third Party P,80014621,B & M CARE,"11,968.81",10/01/2018
Delivery Units,Adults and Communities,Other Agencies - Third Party P,90050401,B & M CARE," 3,321.43 ",16/01/2018
Delivery Units,Adults and Communities,Other Agencies - Third Party P,90050952,B & M CARE,"2,316.94",18/01/2018
Delivery Units,Adults and Communities,Other Agencies - Third Party P,90050953,B & M CARE," 2,522.25 ",18/01/2018
Delivery Units,Adults and Communities,Other Agencies - Third Party P,90050957,B & M CARE,"3,321.43",18/01/2018
Delivery Units,Adults and Communities,Other Agencies - Third Party P,90049644,BELMONT LODGE CARE CENTRE," 2,404.71 ",12/01/2018
Delivery Units,Adults and Communities,Other Agencies - Third Party P,90049645,BELMONT LODGE CARE CENTRE," 2,327.14 ",12/01/2018
Delivery Units,Adults and Communities,Other Agencies - Third Party P,90049646,BELMONT LODGE CARE CENTRE," 2,404.71 ",12/01/2018
Delivery Units,Adults and Communities,Other Agencies - Third Party P,90051004,BIRCHWOOD GRANGE CARE HOME," 2,657.14 ",18/01/2018
Delivery Units,Adults and Communities,Other Agencies - Third Party P,90048343,BUPA CARE HOMES,"3,007.40",15/01/2018
Delivery Units,Adults and Communities,Other Agencies - Third Party P,90048515,BUPA CARE HOMES," 2,314.24 ",11/01/2018
Delivery Units,Adults and Communities,Other Agencies - Third Party P,90048516,BUPA CARE HOMES," 2,448.78 ",11/01/2018
Delivery Units,Adults and Communities,Other Agencies - Third Party P,90048517,BUPA CARE HOMES," 2,314.24 ",11/01/2018
Delivery Units,Adults and Communities,Other Agencies - Third Party P,90049299,BUPA NURSING HOMES LTD - ARKLEY,"2,089.68",12/01/2018
Delivery Units,Adults and Communities,Other Agencies - Third Party P,90050937,CARLTON COURT (TLC GROUP),"2,249.45",18/01/2018
Delivery Units,Adults and Communities,Other Transfer Payments to Soc,60096247,CATALYST HOUSING LTD," 224,918.09 ",19/01/2018
Delivery Units,Adults and Communities,Other Agencies - Third Party P,90048357,CATHERINE LODGE," 2,920.00 ",11/01/2018
Delivery Units,Adults and Communities,Other Agencies - Third Party P,90048359,CATHERINE LODGE,"3,040.00",11/01/2018
Delivery Units,Adults and Communities,Other Agencies - Third Party P,90048360,CATHERINE LODGE,"2,211.80",11/01/2018
Delivery Units,Adults and Communities,Other Agencies - Third Party P,90048361,CATHERINE LODGE," 2,211.80 ",11/01/2018
Delivery Units,Adults and Communities,Other Agencies - Third Party P,90049263,CATHERINE LODGE," 1,362.00 ",12/01/2018
Delivery Units,Adults and Communities,Other Agencies - Third Party P,90049295,CATHERINE LODGE," 3,040.00 ",12/01/2018
Delivery Units,Adults and Communities,Other Agencies - Third Party P,90049296,CATHERINE LODGE,"2,211.80",12/01/2018
Delivery Units,Adults and Communities,Other Agencies - Third Party P,90050402,CATHERINE LODGE,"4,770.00",16/01/2018
Delivery Units,Adults and Communities,Other Agencies - Third Party P,90051488,CATHERINE LODGE,"1,778.00",23/01/2018
Delivery Units,Adults and Communities,Other Agencies - Third Party P,90051489,CATHERINE LODGE, 567.86 ,25/01/2018
Delivery Units,Adults and Communities,Other Agencies - Third Party P,90049273,CLOVELLY HOUSE RESID. HOME LTD," 2,211.80 ",12/01/2018
Delivery Units,Adults and Communities,Other Agencies - Third Party P,90049274,CLOVELLY HOUSE RESID. HOME LTD," 2,600.00 ",12/01/2018
Delivery Units,Adults and Communities,Other Agencies - Third Party P,90049275,CLOVELLY HOUSE RESID. HOME LTD,"2,211.80",12/01/2018
Delivery Units,Adults and Communities,Other Agencies - Third Party P,90049276,CLOVELLY HOUSE RESID. HOME LTD,"2,780.00",12/01/2018
Delivery Units,Adults and Communities,Other Agencies - Third Party P,90049277,CLOVELLY HOUSE RESID. HOME LTD," 2,780.00 ",12/01/2018
Delivery Units,Adults and Communities,Other Agencies - Third Party P,90049279,CLOVELLY HOUSE RESID. HOME LTD,"2,600.00",12/01/2018
Delivery Units,Adults and Communities,Other Agencies - Third Party P,90049280,CLOVELLY HOUSE RESID. HOME LTD," 2,780.00 ",12/01/2018
Delivery Units,Adults and Communities,Other Agencies - Third Party P,90049283,CLOVELLY HOUSE RESID. HOME LTD,"2,600.00",12/01/2018
Delivery Units,Adults and Communities,Other Agencies - Third Party P,90050959,DOWNLANDS CARE LTD,"2,079.17",18/01/2018
Delivery Units,Adults and Communities,Other Agencies - Third Party P,90052036,DOWNLANDS CARE LTD,"2,079.17",30/01/2018
Delivery Units,Adults and Communities,Other Agencies - Third Party P,90051165,DR FRENCH MEMORIAL HOME LTD,"2,400.00",19/01/2018
Delivery Units,Adults and Communities,Other Agencies - Third Party P,90051166,DR FRENCH MEMORIAL HOME LTD," 1,028.57 ",19/01/2018
Delivery Units,Adults and Communities,Other Agencies - Third Party P,90051167,DR FRENCH MEMORIAL HOME LTD," 3,428.57 ",19/01/2018
Delivery Units,Adults and Communities,Other Agencies - Third Party P,90051168,DR FRENCH MEMORIAL HOME LTD,"3,542.86",19/01/2018
Delivery Units,Adults and Communities,Other Agencies - Third Party P,90051169,DR FRENCH MEMORIAL HOME LTD,"1,714.29",19/01/2018
Delivery Units,Adults and Communities,Other Agencies - Third Party P,90051170,DR FRENCH MEMORIAL HOME LTD," 3,428.57 ",19/01/2018
Delivery Units,Adults and Communities,Other Agencies - Third Party P,90051171,DR FRENCH MEMORIAL HOME LTD," 3,542.86 ",19/01/2018
Delivery Units,Adults and Communities,Other Agencies - Third Party P,90051438,DR FRENCH MEMORIAL HOME LTD," 8,892.85 ",25/01/2018
Delivery Units,Adults and Communities,Other Agencies - Third Party P,90051439,DR FRENCH MEMORIAL HOME LTD," 2,448.78 ",25/01/2018
Delivery Units,Adults and Communities,Other Agencies - Third Party P,90051440,DR FRENCH MEMORIAL HOME LTD," 3,542.86 ",25/01/2018
Delivery Units,Adults and Communities,Other Agencies - Third Party P,90051441,DR FRENCH MEMORIAL HOME LTD,"3,542.86",25/01/2018
Delivery Units,Adults and Communities,Other Agencies - Third Party P,90051443,DR FRENCH MEMORIAL HOME LTD,"3,542.86",25/01/2018
Delivery Units,Adults and Communities,Other Agencies - Third Party P,90049838,EASTSIDE HOUSE RESIDENTIAL CARE HOM," 3,080.00 ",12/01/2018
Delivery Units,Adults and Communities,Other Agencies - Third Party P,90051426,ELEANOR PALMER TRUST NO 2 A/C.," 2,339.44 ",23/01/2018
Delivery Units,Adults and Communities,Other Agencies - Third Party P,90051427,ELEANOR PALMER TRUST NO 2 A/C.," 2,546.74 ",23/01/2018
Delivery Units,Adults and Communities,Other Agencies - Third Party P,90051429,ELEANOR PALMER TRUST NO 2 A/C.,"2,546.74",23/01/2018
Delivery Units,Adults and Communities,Other Agencies - Third Party P,90051430,ELEANOR PALMER TRUST NO 2 A/C.," 2,339.44 ",23/01/2018
Delivery Units,Adults and Communities,Other Agencies - Third Party P,90051431,ELEANOR PALMER TRUST NO 2 A/C.,-301.86 ,23/01/2018
Delivery Units,Adults and Communities,Other Agencies - Third Party P,90051432,ELEANOR PALMER TRUST NO 2 A/C.,"2,546.74",23/01/2018
Delivery Units,Adults and Communities,Other Agencies - Third Party P,90051433,ELEANOR PALMER TRUST NO 2 A/C.," 2,546.74 ",23/01/2018
Delivery Units,Adults and Communities,Other Agencies - Third Party P,90051434,ELEANOR PALMER TRUST NO 2 A/C.," 2,339.44 ",23/01/2018
Delivery Units,Adults and Communities,Other Agencies - Third Party P,90051435,ELEANOR PALMER TRUST NO 2 A/C.,"2,339.44",23/01/2018
Delivery Units,Adults and Communities,Other Agencies - Third Party P,90051436,ELEANOR PALMER TRUST NO 2 A/C.,"2,339.44",23/01/2018
Delivery Units,Adults and Communities,Other Agencies - Third Party P,90051437,ELEANOR PALMER TRUST NO 2 A/C.," 2,546.74 ",23/01/2018
Delivery Units,Adults and Communities,Other Agencies - Third Party P,30175180,ELIZA HOUSE, 157.98 ,17/01/2018
Delivery Units,Adults and Communities,Other Agencies - Third Party P,90049343,ELM PARK LODGE," 3,170.86 ",17/01/2018
Delivery Units,Adults and Communities,Other Agencies - Third Party P,90049354,ELM PARK LODGE," 3,068.57 ",17/01/2018
Delivery Units,Adults and Communities,Other Agencies - Third Party P,90051646,ELM PARK LODGE," 1,507.89 ",24/01/2018
Delivery Units,Adults and Communities,Other Agencies - Third Party P,90051647,ELM PARK LODGE,"1,459.25",24/01/2018
Delivery Units,Adults and Communities,Other Agencies - Third Party P,90051648,ELM PARK LODGE,"1,507.89",24/01/2018
Delivery Units,Adults and Communities,Other Agencies - Third Party P,90051891,ELM PARK LODGE,"3,170.86",31/01/2018
Delivery Units,Adults and Communities,Other Agencies - Third Party P,90051895,ELM PARK LODGE," 1,507.89 ",31/01/2018
Delivery Units,Adults and Communities,Other Agencies - Third Party P,90052014,ELMHURST RESIDENTIAL HOME," 28,228.57 ",30/01/2018
Delivery Units,Adults and Communities,Other Agencies - Third Party P,90052015,ELMHURST RESIDENTIAL HOME, 466.23 ,30/01/2018
Delivery Units,Adults and Communities,Other Agencies - Third Party P,90052017,ELMHURST RESIDENTIAL HOME," 1,671.28 ",30/01/2018
Delivery Units,Adults and Communities,Other Agencies - Third Party P,90047214,FINBOND LIMITED," 2,448.55 ",03/01/2018
Delivery Units,Adults and Communities,Other Agencies - Third Party P,90050884,FINBOND LIMITED," 2,216.41 ",18/01/2018
Delivery Units,Adults and Communities,Other Agencies - Third Party P,90050885,FINBOND LIMITED," 3,214.29 ",18/01/2018
Delivery Units,Adults and Communities,Other Agencies - Third Party P,90050920,FINBOND LIMITED," 2,448.55 ",18/01/2018
Delivery Units,Adults and Communities,Other Agencies - Third Party P,90047874,FREMANTLE TRUST,"2,096.00",05/01/2018
Delivery Units,Adults and Communities,Other Agencies - Third Party P,90047875,FREMANTLE TRUST," 2,096.00 ",05/01/2018
Delivery Units,Adults and Communities,Other Agencies - Third Party P,90047876,FREMANTLE TRUST," 2,096.00 ",05/01/2018
Delivery Units,Adults and Communities,Other Agencies - Third Party P,90047877,FREMANTLE TRUST,"1,646.86",05/01/2018
Delivery Units,Adults and Communities,Other Agencies - Third Party P,90047878,FREMANTLE TRUST," 2,096.00 ",05/01/2018
Delivery Units,Adults and Communities,Other Agencies - Third Party P,90047879,FREMANTLE TRUST,"2,096.00",05/01/2018
Delivery Units,Adults and Communities,Other Agencies - Third Party P,90047880,FREMANTLE TRUST," 2,096.00 ",05/01/2018
Delivery Units,Adults and Communities,Other Agencies - Third Party P,90047882,FREMANTLE TRUST,"2,096.00",05/01/2018
Delivery Units,Adults and Communities,Other Agencies - Third Party P,90047884,FREMANTLE TRUST," 2,096.00 ",05/01/2018
Delivery Units,Adults and Communities,Other Agencies - Third Party P,90047885,FREMANTLE TRUST," 2,096.00 ",05/01/2018
Delivery Units,Adults and Communities,Other Agencies - Third Party P,90047886,FREMANTLE TRUST,"2,096.00",05/01/2018
Delivery Units,Adults and Communities,Other Agencies - Third Party P,90047888,FREMANTLE TRUST," 2,096.00 ",05/01/2018
Delivery Units,Adults and Communities,Other Agencies - Third Party P,90047889,FREMANTLE TRUST,"2,096.00",05/01/2018
Delivery Units,Adults and Communities,Other Agencies - Third Party P,90047891,FREMANTLE TRUST," 2,096.00 ",05/01/2018
Delivery Units,Adults and Communities,Other Agencies - Third Party P,90047892,FREMANTLE TRUST,"2,284.00",05/01/2018
Delivery Units,Adults and Communities,Other Agencies - Third Party P,90047893,FREMANTLE TRUST," 2,096.00 ",05/01/2018
Delivery Units,Adults and Communities,Other Agencies - Third Party P,90047894,FREMANTLE TRUST,"2,284.00",05/01/2018
Delivery Units,Adults and Communities,Other Agencies - Third Party P,90047895,FREMANTLE TRUST," 2,096.00 ",05/01/2018
Delivery Units,Adults and Communities,Other Agencies - Third Party P,90047896,FREMANTLE TRUST," 2,284.00 ",05/01/2018
Delivery Units,Adults and Communities,Other Agencies - Third Party P,90047897,FREMANTLE TRUST," 2,284.00 ",05/01/2018
Delivery Units,Adults and Communities,Other Agencies - Third Party P,90047898,FREMANTLE TRUST, 163.14 ,05/01/2018
Delivery Units,Adults and Communities,Other Agencies - Third Party P,90047902,FREMANTLE TRUST,"2,284.00",05/01/2018
Delivery Units,Adults and Communities,Other Agencies - Third Party P,90047904,FREMANTLE TRUST," 2,096.00 ",05/01/2018
Delivery Units,Adults and Communities,Other Agencies - Third Party P,90047905,FREMANTLE TRUST,"2,096.00",05/01/2018
Delivery Units,Adults and Communities,Other Agencies - Third Party P,90047906,FREMANTLE TRUST," 2,096.00 ",05/01/2018
Delivery Units,Adults and Communities,Other Agencies - Third Party P,90047907,FREMANTLE TRUST,"2,284.00",05/01/2018
Delivery Units,Adults and Communities,Other Agencies - Third Party P,90047908,FREMANTLE TRUST,"1,549.86",05/01/2018
Delivery Units,Adults and Communities,Other Agencies - Third Party P,90047911,FREMANTLE TRUST,"2,096.00",05/01/2018
Delivery Units,Adults and Communities,Other Agencies - Third Party P,90047912,FREMANTLE TRUST,"2,096.00",05/01/2018
Delivery Units,Adults and Communities,Other Agencies - Third Party P,90047913,FREMANTLE TRUST," 2,284.00 ",05/01/2018
Delivery Units,Adults and Communities,Other Agencies - Third Party P,90047915,FREMANTLE TRUST,"2,284.00",05/01/2018
Delivery Units,Adults and Communities,Other Agencies - Third Party P,90047917,FREMANTLE TRUST,"2,096.00",05/01/2018
Delivery Units,Adults and Communities,Other Agencies - Third Party P,90047918,FREMANTLE TRUST,"2,096.00",05/01/2018
Delivery Units,Adults and Communities,Other Agencies - Third Party P,90047919,FREMANTLE TRUST," 2,039.29 ",05/01/2018
Delivery Units,Adults and Communities,Other Agencies - Third Party P,90047920,FREMANTLE TRUST,"2,096.00",05/01/2018
Delivery Units,Adults and Communities,Other Agencies - Third Party P,90047921,FREMANTLE TRUST," 2,284.00 ",05/01/2018
Delivery Units,Adults and Communities,Other Agencies - Third Party P,90047922,FREMANTLE TRUST,"2,284.00",05/01/2018
Delivery Units,Adults and Communities,Other Agencies - Third Party P,90047923,FREMANTLE TRUST," 2,096.00 ",05/01/2018
Delivery Units,Adults and Communities,Other Agencies - Third Party P,90047924,FREMANTLE TRUST," 2,096.00 ",05/01/2018
Delivery Units,Adults and Communities,Other Agencies - Third Party P,90047925,FREMANTLE TRUST,"2,096.00",05/01/2018
Delivery Units,Adults and Communities,Other Agencies - Third Party P,90048215,FREMANTLE TRUST," 5,195.71 ",08/01/2018
Delivery Units,Adults and Communities,Other Agencies - Third Party P,90048685,FREMANTLE TRUST,"2,284.00",09/01/2018
Delivery Units,Adults and Communities,Other Agencies - Third Party P,90048688,FREMANTLE TRUST," 2,284.00 ",09/01/2018
Delivery Units,Adults and Communities,Other Agencies - Third Party P,90048689,FREMANTLE TRUST," 2,284.00 ",09/01/2018
Delivery Units,Adults and Communities,Other Agencies - Third Party P,90048690,FREMANTLE TRUST,"2,284.00",09/01/2018
Delivery Units,Adults and Communities,Other Agencies - Third Party P,90048691,FREMANTLE TRUST,"2,096.00",09/01/2018
Delivery Units,Adults and Communities,Other Agencies - Third Party P,90048692,FREMANTLE TRUST," 2,284.00 ",09/01/2018
Delivery Units,Adults and Communities,Other Agencies - Third Party P,90048693,FREMANTLE TRUST,"2,096.00",09/01/2018
Delivery Units,Adults and Communities,Other Agencies - Third Party P,90048694,FREMANTLE TRUST," 1,497.14 ",09/01/2018
Delivery Units,Adults and Communities,Other Agencies - Third Party P,90048695,FREMANTLE TRUST,"2,284.00",09/01/2018
Delivery Units,Adults and Communities,Other Agencies - Third Party P,90048696,FREMANTLE TRUST,"2,284.00",09/01/2018
Delivery Units,Adults and Communities,Other Agencies - Third Party P,90048697,FREMANTLE TRUST,"2,284.00",09/01/2018
Delivery Units,Adults and Communities,Other Agencies - Third Party P,90048700,FREMANTLE TRUST," 2,284.00 ",09/01/2018
Delivery Units,Adults and Communities,Other Agencies - Third Party P,90048701,FREMANTLE TRUST," 2,096.00 ",09/01/2018
Delivery Units,Adults and Communities,Other Agencies - Third Party P,90048702,FREMANTLE TRUST,"2,096.00",09/01/2018
Delivery Units,Adults and Communities,Other Agencies - Third Party P,90048703,FREMANTLE TRUST," 2,284.00 ",09/01/2018
Delivery Units,Adults and Communities,Other Agencies - Third Party P,90048704,FREMANTLE TRUST," 2,096.00 ",09/01/2018
Delivery Units,Adults and Communities,Other Agencies - Third Party P,90048705,FREMANTLE TRUST," 2,284.00 ",09/01/2018
Delivery Units,Adults and Communities,Other Agencies - Third Party P,90048707,FREMANTLE TRUST," 2,096.00 ",09/01/2018
Delivery Units,Adults and Communities,Other Agencies - Third Party P,90048708,FREMANTLE TRUST," 2,284.00 ",09/01/2018
Delivery Units,Adults and Communities,Other Agencies - Third Party P,90048710,FREMANTLE TRUST," 2,096.00 ",09/01/2018
Delivery Units,Adults and Communities,Other Agencies - Third Party P,90048713,FREMANTLE TRUST," 2,096.00 ",09/01/2018
Delivery Units,Adults and Communities,Other Agencies - Third Party P,90048714,FREMANTLE TRUST," 2,284.00 ",09/01/2018
Delivery Units,Adults and Communities,Other Agencies - Third Party P,90048716,FREMANTLE TRUST,"2,284.00",09/01/2018
Delivery Units,Adults and Communities,Other Agencies - Third Party P,90048717,FREMANTLE TRUST," 2,096.00 ",09/01/2018
Delivery Units,Adults and Communities,Other Agencies - Third Party P,90048718,FREMANTLE TRUST," 10,604.29 ",09/01/2018
Delivery Units,Adults and Communities,Other Agencies - Third Party P,90048719,FREMANTLE TRUST," 2,284.00 ",09/01/2018
Delivery Units,Adults and Communities,Other Agencies - Third Party P,90048721,FREMANTLE TRUST,"2,284.00",09/01/2018
Delivery Units,Adults and Communities,Other Agencies - Third Party P,90048722,FREMANTLE TRUST,"2,284.00",09/01/2018
Delivery Units,Adults and Communities,Other Agencies - Third Party P,90048723,FREMANTLE TRUST,"2,284.00",09/01/2018
Delivery Units,Adults and Communities,Other Agencies - Third Party P,90048724,FREMANTLE TRUST," 2,096.00 ",09/01/2018
Delivery Units,Adults and Communities,Other Agencies - Third Party P,90048726,FREMANTLE TRUST,"2,096.00",09/01/2018
Delivery Units,Adults and Communities,Other Agencies - Third Party P,90048727,FREMANTLE TRUST," 2,284.00 ",09/01/2018
Delivery Units,Adults and Communities,Other Agencies - Third Party P,90048728,FREMANTLE TRUST," 2,284.00 ",09/01/2018
Delivery Units,Adults and Communities,Other Agencies - Third Party P,90048729,FREMANTLE TRUST,"2,096.00",09/01/2018
Delivery Units,Adults and Communities,Other Agencies - Third Party P,90048730,FREMANTLE TRUST,"2,284.00",09/01/2018
Delivery Units,Adults and Communities,Other Agencies - Third Party P,90047232,FRIERN RESIDENTIAL CARE HOME, 664.95 ,03/01/2018
Delivery Units,Adults and Communities,Other Agencies - Third Party P,90047233,FRIERN RESIDENTIAL CARE HOME,664.95,03/01/2018
Delivery Units,Adults and Communities,Other Agencies - Third Party P,90047234,FRIERN RESIDENTIAL CARE HOME, 643.50 ,03/01/2018
Delivery Units,Adults and Communities,Other Agencies - Third Party P,90050428,FRIERN RESIDENTIAL CARE HOME, 664.95 ,16/01/2018
Delivery Units,Adults and Communities,Other Agencies - Third Party P,90052018,GCH (NORTH LONDON) T/A THE TUDORS," 2,300.00 ",30/01/2018
Delivery Units,Adults and Communities,Other Agencies - Third Party P,90049362,GREEN TREES,"3,321.34",12/01/2018
Delivery Units,Adults and Communities,Other Agencies - Third Party P,90051086,GREEN TREES,"1,607.10",18/01/2018
Delivery Units,Adults and Communities,Other Agencies - Third Party P,90050434,HILTON LODGE LTD.," 2,480.00 ",16/01/2018
Delivery Units,Adults and Communities,Other Agencies - Third Party P,90050435,HILTON LODGE LTD.," 2,880.00 ",16/01/2018
Delivery Units,Adults and Communities,Other Agencies - Third Party P,90050436,HILTON LODGE LTD.," 2,880.00 ",16/01/2018
Delivery Units,Adults and Communities,Other Agencies - Third Party P,30175698,JEWISH CARE,"1,295.25",24/01/2018
Delivery Units,Adults and Communities,Other Agencies - Third Party P,90048219,JEWISH CARE," 2,179.06 ",08/01/2018
Delivery Units,Adults and Communities,Other Agencies - Third Party P,90048221,JEWISH CARE," 1,739.58 ",08/01/2018
Delivery Units,Adults and Communities,Other Agencies - Third Party P,90048223,JEWISH CARE,"2,415.28",08/01/2018
Delivery Units,Adults and Communities,Other Agencies - Third Party P,90048224,JEWISH CARE," 1,466.42 ",08/01/2018
Delivery Units,Adults and Communities,Other Agencies - Third Party P,90048225,JEWISH CARE," 2,415.28 ",08/01/2018
Delivery Units,Adults and Communities,Other Agencies - Third Party P,90048226,JEWISH CARE," 4,437.36 ",08/01/2018
Delivery Units,Adults and Communities,Other Agencies - Third Party P,90048227,JEWISH CARE," 4,830.56 ",08/01/2018
Delivery Units,Adults and Communities,Other Agencies - Third Party P,90048230,JEWISH CARE," 4,830.56 ",08/01/2018
Delivery Units,Adults and Communities,Other Agencies - Third Party P,90048234,JEWISH CARE," 2,133.36 ",08/01/2018
Delivery Units,Adults and Communities,Other Agencies - Third Party P,90048235,JEWISH CARE," 2,133.36 ",08/01/2018
Delivery Units,Adults and Communities,Other Agencies - Third Party P,90048369,JEWISH CARE,(15.85),08/01/2018
Delivery Units,Adults and Communities,Other Agencies - Third Party P,90048731,JEWISH CARE,-862.60 ,09/01/2018
Delivery Units,Adults and Communities,Other Agencies - Third Party P,90048732,JEWISH CARE,-603.82 ,09/01/2018
Delivery Units,Adults and Communities,Other Agencies - Third Party P,90048733,JEWISH CARE,(345.04),09/01/2018
Delivery Units,Adults and Communities,Other Agencies - Third Party P,90048734,JEWISH CARE,-603.82 ,09/01/2018
Delivery Units,Adults and Communities,Other Agencies - Third Party P,90049384,JEWISH CARE," 2,218.68 ",12/01/2018
Delivery Units,Adults and Communities,Other Agencies - Third Party P,90049385,JEWISH CARE,"2,218.68",12/01/2018
Delivery Units,Adults and Communities,Other Agencies - Third Party P,90049386,JEWISH CARE," 2,415.28 ",12/01/2018
Delivery Units,Adults and Communities,Other Agencies - Third Party P,90049387,JEWISH CARE," 2,415.28 ",12/01/2018
Delivery Units,Adults and Communities,Other Agencies - Third Party P,90049388,JEWISH CARE,"2,218.68",12/01/2018
Delivery Units,Adults and Communities,Other Agencies - Third Party P,90049390,JEWISH CARE,"2,415.28",12/01/2018
Delivery Units,Adults and Communities,Other Agencies - Third Party P,90049392,JEWISH CARE," 2,102.00 ",12/01/2018
Delivery Units,Adults and Communities,Other Agencies - Third Party P,90049396,JEWISH CARE,"2,415.28",12/01/2018
Delivery Units,Adults and Communities,Other Agencies - Third Party P,90049397,JEWISH CARE," 2,415.28 ",12/01/2018
Delivery Units,Adults and Communities,Other Agencies - Third Party P,90049401,JEWISH CARE," 2,415.28 ",12/01/2018
Delivery Units,Adults and Communities,Other Agencies - Third Party P,90049403,JEWISH CARE," 2,415.28 ",12/01/2018
Delivery Units,Adults and Communities,Other Agencies - Third Party P,90049405,JEWISH CARE," 2,415.28 ",12/01/2018
Delivery Units,Adults and Communities,Other Agencies - Third Party P,90049406,JEWISH CARE," 2,415.28 ",12/01/2018
Delivery Units,Adults and Communities,Other Agencies - Third Party P,90049408,JEWISH CARE," 2,415.28 ",12/01/2018
Delivery Units,Adults and Communities,Other Agencies - Third Party P,90049432,JEWISH CARE," 2,415.28 ",12/01/2018
Delivery Units,Adults and Communities,Other Agencies - Third Party P,90049433,JEWISH CARE," 2,415.28 ",12/01/2018
Delivery Units,Adults and Communities,Other Agencies - Third Party P,90049652,JEWISH CARE," 2,415.28 ",12/01/2018
Delivery Units,Adults and Communities,Other Agencies - Third Party P,90049653,JEWISH CARE,"2,218.68",12/01/2018
Delivery Units,Adults and Communities,Other Agencies - Third Party P,90049654,JEWISH CARE," 2,218.68 ",12/01/2018
Delivery Units,Adults and Communities,Other Agencies - Third Party P,90049655,JEWISH CARE," 2,218.68 ",12/01/2018
Delivery Units,Adults and Communities,Other Agencies - Third Party P,90049657,JEWISH CARE," 2,415.28 ",12/01/2018
Delivery Units,Adults and Communities,Other Agencies - Third Party P,90049658,JEWISH CARE,"2,415.28",12/01/2018
Delivery Units,Adults and Communities,Other Agencies - Third Party P,90049659,JEWISH CARE,"2,218.68",12/01/2018
Delivery Units,Adults and Communities,Other Agencies - Third Party P,90049661,JEWISH CARE,"2,218.68",12/01/2018
Delivery Units,Adults and Communities,Other Agencies - Third Party P,90049662,JEWISH CARE,"2,218.68",12/01/2018
Delivery Units,Adults and Communities,Other Agencies - Third Party P,90049663,JEWISH CARE," 2,218.68 ",12/01/2018
Delivery Units,Adults and Communities,Other Agencies - Third Party P,90049664,JEWISH CARE," 2,415.28 ",12/01/2018
Delivery Units,Adults and Communities,Other Agencies - Third Party P,90049665,JEWISH CARE," 2,415.28 ",12/01/2018
Delivery Units,Adults and Communities,Other Agencies - Third Party P,90049667,JEWISH CARE,"2,218.68",12/01/2018
Delivery Units,Adults and Communities,Other Agencies - Third Party P,90049669,JEWISH CARE,"2,218.68",12/01/2018
Delivery Units,Adults and Communities,Other Agencies - Third Party P,90049670,JEWISH CARE,"2,218.68",12/01/2018
Delivery Units,Adults and Communities,Other Agencies - Third Party P,90049671,JEWISH CARE," 2,218.68 ",12/01/2018
Delivery Units,Adults and Communities,Other Agencies - Third Party P,90049672,JEWISH CARE," 2,415.28 ",12/01/2018
Delivery Units,Adults and Communities,Other Agencies - Third Party P,90049673,JEWISH CARE," 2,415.28 ",12/01/2018
Delivery Units,Adults and Communities,Other Agencies - Third Party P,90049674,JEWISH CARE," 2,415.28 ",12/01/2018
Delivery Units,Adults and Communities,Other Agencies - Third Party P,90049675,JEWISH CARE,"2,218.68",12/01/2018
Delivery Units,Adults and Communities,Other Agencies - Third Party P,90049676,JEWISH CARE," 2,415.28 ",12/01/2018
Delivery Units,Adults and Communities,Other Agencies - Third Party P,90049677,JEWISH CARE,"2,415.28",12/01/2018
Delivery Units,Adults and Communities,Other Agencies - Third Party P,90049678,JEWISH CARE,"2,218.68",12/01/2018
Delivery Units,Adults and Communities,Other Agencies - Third Party P,90049679,JEWISH CARE," 4,508.00 ",12/01/2018
Delivery Units,Adults and Communities,Other Agencies - Third Party P,90049680,JEWISH CARE," 2,218.68 ",12/01/2018
Delivery Units,Adults and Communities,Other Agencies - Third Party P,90049861,JEWISH CARE,"2,415.28",12/01/2018
Delivery Units,Adults and Communities,Other Agencies - Third Party P,90049862,JEWISH CARE," 2,415.28 ",12/01/2018
Delivery Units,Adults and Communities,Other Agencies - Third Party P,90049863,JEWISH CARE,"2,415.28",12/01/2018
Delivery Units,Adults and Communities,Other Agencies - Third Party P,90049866,JEWISH CARE," 2,415.28 ",12/01/2018
Delivery Units,Adults and Communities,Other Agencies - Third Party P,90049867,JEWISH CARE,"2,218.68",12/01/2018
Delivery Units,Adults and Communities,Other Agencies - Third Party P,90049868,JEWISH CARE," 2,415.28 ",12/01/2018
Delivery Units,Adults and Communities,Other Agencies - Third Party P,90049869,JEWISH CARE,"2,415.28",12/01/2018
Delivery Units,Adults and Communities,Other Agencies - Third Party P,90049870,JEWISH CARE," 2,415.28 ",12/01/2018
Delivery Units,Adults and Communities,Other Agencies - Third Party P,90049872,JEWISH CARE," 2,415.28 ",12/01/2018
Delivery Units,Adults and Communities,Other Agencies - Third Party P,90049873,JEWISH CARE," 2,415.28 ",12/01/2018
Delivery Units,Adults and Communities,Other Agencies - Third Party P,90049874,JEWISH CARE," 2,218.68 ",12/01/2018
Delivery Units,Adults and Communities,Other Agencies - Third Party P,90049875,JEWISH CARE," 2,415.28 ",12/01/2018
Delivery Units,Adults and Communities,Other Agencies - Third Party P,90049876,JEWISH CARE," 2,415.28 ",12/01/2018
Delivery Units,Adults and Communities,Other Agencies - Third Party P,90049877,JEWISH CARE," 2,415.28 ",12/01/2018
Delivery Units,Adults and Communities,Other Agencies - Third Party P,90049879,JEWISH CARE," 2,218.68 ",12/01/2018
Delivery Units,Adults and Communities,Other Agencies - Third Party P,90049881,JEWISH CARE,"2,415.28",12/01/2018
Delivery Units,Adults and Communities,Other Agencies - Third Party P,90049882,JEWISH CARE,"2,415.28",12/01/2018
Delivery Units,Adults and Communities,Other Agencies - Third Party P,90049900,JEWISH CARE,"2,218.68",12/01/2018
Delivery Units,Adults and Communities,Other Agencies - Third Party P,90049901,JEWISH CARE,"2,415.28",12/01/2018
Delivery Units,Adults and Communities,Other Agencies - Third Party P,90049903,JEWISH CARE," 2,415.28 ",12/01/2018
Delivery Units,Adults and Communities,Other Agencies - Third Party P,90049905,JEWISH CARE,"2,218.68",12/01/2018
Delivery Units,Adults and Communities,Other Agencies - Third Party P,90049906,JEWISH CARE,"2,415.28",12/01/2018
Delivery Units,Adults and Communities,Other Agencies - Third Party P,90049910,JEWISH CARE,"2,415.28",12/01/2018
Delivery Units,Adults and Communities,Other Agencies - Third Party P,90051146,KARUNA MANOR,"4,114.14",19/01/2018
Delivery Units,Adults and Communities,Other Agencies - Third Party P,90051147,KARUNA MANOR,"3,985.71",19/01/2018
Delivery Units,Adults and Communities,Other Agencies - Third Party P,90051150,KARUNA MANOR,"4,114.14",19/01/2018
Delivery Units,Adults and Communities,Other Agencies - Third Party P,90050400,LEEMING BAR CARE HOME,999.46,16/01/2018
Delivery Units,Adults and Communities,Other Agencies - Third Party P,90050388,LEWIS.W.HAMMERSON MEMORIAL HOME,"2,387.35",16/01/2018
Delivery Units,Adults and Communities,Other Agencies - Third Party P,90050389,LEWIS.W.HAMMERSON MEMORIAL HOME,"2,387.35",16/01/2018
Delivery Units,Adults and Communities,Other Agencies - Third Party P,90050390,LEWIS.W.HAMMERSON MEMORIAL HOME," 2,387.35 ",16/01/2018
Delivery Units,Adults and Communities,Other Agencies - Third Party P,90050391,LEWIS.W.HAMMERSON MEMORIAL HOME,"2,387.35",16/01/2018
Delivery Units,Adults and Communities,Other Agencies - Third Party P,90050392,LEWIS.W.HAMMERSON MEMORIAL HOME,"2,387.35",16/01/2018
Delivery Units,Adults and Communities,Other Agencies - Third Party P,90050393,LEWIS.W.HAMMERSON MEMORIAL HOME," 2,387.35 ",16/01/2018
Delivery Units,Adults and Communities,Other Agencies - Third Party P,90049831,LIVABILITY,"2,400.00",12/01/2018
Delivery Units,Adults and Communities,Other Agencies - Third Party P,90047223,MADELAYNE COURT," 2,216.41 ",03/01/2018
Delivery Units,Adults and Communities,Other Agencies - Third Party P,90049639,METHODIST HOMES FOR THE AGED," 2,001.92 ",12/01/2018
Delivery Units,Adults and Communities,Other Agencies - Third Party P,90049640,METHODIST HOMES FOR THE AGED,"2,631.76",12/01/2018
Delivery Units,Adults and Communities,Other Agencies - Third Party P,30175184,NAZARETH HOUSE," 5,450.51 ",17/01/2018
Delivery Units,Adults and Communities,Other Agencies - Third Party P,30175185,NAZARETH HOUSE," 2,031.76 ",17/01/2018
Delivery Units,Adults and Communities,Other Agencies - Third Party P,30175186,NAZARETH HOUSE,"2,031.76",17/01/2018
Delivery Units,Adults and Communities,Other Agencies - Third Party P,30175187,NAZARETH HOUSE," 1,223.60 ",17/01/2018
Delivery Units,Adults and Communities,Other Agencies - Third Party P,30175188,NAZARETH HOUSE, 315.97 ,17/01/2018
Delivery Units,Adults and Communities,Other Agencies - Third Party P,30175189,NAZARETH HOUSE, 362.81 ,17/01/2018
Delivery Units,Adults and Communities,Other Agencies - Third Party P,90047216,NAZARETH HOUSE, 48.24 ,03/01/2018
Delivery Units,Adults and Communities,Other Agencies - Third Party P,90050380,NAZARETH HOUSE," 2,031.76 ",16/01/2018
Delivery Units,Adults and Communities,Other Agencies - Third Party P,90050450,NAZARETH HOUSE, 798.19 ,16/01/2018
Delivery Units,Adults and Communities,Other Agencies - Third Party P,90050451,NAZARETH HOUSE,"2,031.76",16/01/2018
Delivery Units,Adults and Communities,Other Agencies - Third Party P,90050452,NAZARETH HOUSE,"2,031.76",16/01/2018
Delivery Units,Adults and Communities,Other Agencies - Third Party P,90050453,NAZARETH HOUSE," 2,031.76 ",16/01/2018
Delivery Units,Adults and Communities,Other Agencies - Third Party P,90050454,NAZARETH HOUSE," 2,031.76 ",16/01/2018
Delivery Units,Adults and Communities,Other Agencies - Third Party P,90050455,NAZARETH HOUSE,"2,031.76",16/01/2018
Delivery Units,Adults and Communities,Other Agencies - Third Party P,90050456,NAZARETH HOUSE," 2,031.76 ",16/01/2018
Delivery Units,Adults and Communities,Other Agencies - Third Party P,90050457,NAZARETH HOUSE," 2,467.14 ",16/01/2018
Delivery Units,Adults and Communities,Other Agencies - Third Party P,90050458,NAZARETH HOUSE,"2,031.76",16/01/2018
Delivery Units,Adults and Communities,Other Agencies - Third Party P,90050459,NAZARETH HOUSE," 2,031.76 ",16/01/2018
Delivery Units,Adults and Communities,Other Agencies - Third Party P,90050460,NAZARETH HOUSE," 1,931.43 ",16/01/2018
Delivery Units,Adults and Communities,Other Agencies - Third Party P,90050461,NAZARETH HOUSE," 2,031.76 ",16/01/2018
Delivery Units,Adults and Communities,Other Agencies - Third Party P,90050462,NAZARETH HOUSE," 2,031.76 ",16/01/2018
Delivery Units,Adults and Communities,Other Agencies - Third Party P,90050463,NAZARETH HOUSE," 2,031.76 ",16/01/2018
Delivery Units,Adults and Communities,Other Agencies - Third Party P,90050469,NAZARETH HOUSE," 1,523.82 ",16/01/2018
Delivery Units,Adults and Communities,Other Agencies - Third Party P,90050960,NAZARETH HOUSE," 2,080.00 ",18/01/2018
Delivery Units,Adults and Communities,Other Agencies - Third Party P,90050961,NAZARETH HOUSE,"2,031.76",18/01/2018
Delivery Units,Adults and Communities,Other Agencies - Third Party P,90050962,NAZARETH HOUSE," 3,036.00 ",18/01/2018
Delivery Units,Adults and Communities,Other Agencies - Third Party P,90050963,NAZARETH HOUSE," 2,031.76 ",18/01/2018
Delivery Units,Adults and Communities,Other Agencies - Third Party P,90050964,NAZARETH HOUSE,"2,031.76",18/01/2018
Delivery Units,Adults and Communities,Other Agencies - Third Party P,90050965,NAZARETH HOUSE," 2,031.76 ",18/01/2018
Delivery Units,Adults and Communities,Other Agencies - Third Party P,90050966,NAZARETH HOUSE," 2,031.76 ",18/01/2018
Delivery Units,Adults and Communities,Other Agencies - Third Party P,90050968,NAZARETH HOUSE," 2,650.40 ",18/01/2018
Delivery Units,Adults and Communities,Other Agencies - Third Party P,90050969,NAZARETH HOUSE," 2,211.80 ",18/01/2018
Delivery Units,Adults and Communities,Other Agencies - Third Party P,90050970,NAZARETH HOUSE," 2,031.76 ",18/01/2018
Delivery Units,Adults and Communities,Other Agencies - Third Party P,90050971,NAZARETH HOUSE," 2,031.76 ",18/01/2018
Delivery Units,Adults and Communities,Other Agencies - Third Party P,90050972,NAZARETH HOUSE," 2,031.76 ",18/01/2018
Delivery Units,Adults and Communities,Other Agencies - Third Party P,90050973,NAZARETH HOUSE," 2,211.80 ",18/01/2018
Delivery Units,Adults and Communities,Other Agencies - Third Party P,90050974,NAZARETH HOUSE," 2,031.76 ",18/01/2018
Delivery Units,Adults and Communities,Other Agencies - Third Party P,90050975,NAZARETH HOUSE," 2,031.76 ",18/01/2018
Delivery Units,Adults and Communities,Other Agencies - Third Party P,90050976,NAZARETH HOUSE,"2,031.76",18/01/2018
Delivery Units,Adults and Communities,Other Agencies - Third Party P,90050977,NAZARETH HOUSE,"2,080.00",18/01/2018
Delivery Units,Adults and Communities,Other Agencies - Third Party P,90050981,NAZARETH HOUSE,"-2,927.57 ",18/01/2018
Delivery Units,Adults and Communities,Other Agencies - Third Party P,90051628,NAZARETH HOUSE,"2,211.80",24/01/2018
Delivery Units,Adults and Communities,Other Agencies - Third Party P,90051629,NAZARETH HOUSE," 2,211.80 ",24/01/2018
Delivery Units,Adults and Communities,Other Agencies - Third Party P,90051630,NAZARETH HOUSE," 2,080.00 ",24/01/2018
Delivery Units,Adults and Communities,Other Agencies - Third Party P,90051631,NAZARETH HOUSE,"2,080.00",24/01/2018
Delivery Units,Adults and Communities,Other Agencies - Third Party P,90051632,NAZARETH HOUSE," 2,080.00 ",24/01/2018
Delivery Units,Adults and Communities,Other Agencies - Third Party P,90051633,NAZARETH HOUSE," 1,560.00 ",24/01/2018
Delivery Units,Adults and Communities,Other Agencies - Third Party P,90051634,NAZARETH HOUSE," 2,080.00 ",24/01/2018
Delivery Units,Adults and Communities,Other Agencies - Third Party P,90050879,ROLAND RESIDENTIAL CARE HOMES LTD," 3,678.02 ",18/01/2018
Delivery Units,Adults and Communities,Other Agencies - Third Party P,90048496,ROSEACRES CARE HOME LIMITED," 3,321.43 ",09/01/2018
Delivery Units,Adults and Communities,Other Agencies - Third Party P,90048498,ROSEACRES CARE HOME LIMITED," 3,321.43 ",09/01/2018
Delivery Units,Adults and Communities,Other Agencies - Third Party P,90048499,ROSEACRES CARE HOME LIMITED," 2,542.31 ",09/01/2018
Delivery Units,Adults and Communities,Other Agencies - Third Party P,90048500,ROSEACRES CARE HOME LIMITED," 2,542.31 ",09/01/2018
Delivery Units,Adults and Communities,Other Agencies - Third Party P,90048502,ROSEACRES CARE HOME LIMITED,"2,335.36",09/01/2018
Delivery Units,Adults and Communities,Other Agencies - Third Party P,90048503,ROSEACRES CARE HOME LIMITED," 2,542.31 ",09/01/2018
Delivery Units,Adults and Communities,Other Agencies - Third Party P,90048504,ROSEACRES CARE HOME LIMITED," 2,542.31 ",09/01/2018
Delivery Units,Adults and Communities,Other Agencies - Third Party P,90048505,ROSEACRES CARE HOME LIMITED," 2,542.31 ",09/01/2018
Delivery Units,Adults and Communities,Other Agencies - Third Party P,90048507,ROSEACRES CARE HOME LIMITED,"2,892.13",09/01/2018
Delivery Units,Adults and Communities,Other Agencies - Third Party P,90048509,ROSEACRES CARE HOME LIMITED," 2,542.31 ",09/01/2018
Delivery Units,Adults and Communities,Other Agencies - Third Party P,90048510,ROSEACRES CARE HOME LIMITED," 2,542.18 ",09/01/2018
Delivery Units,Adults and Communities,Other Agencies - Third Party P,90048512,ROSEACRES CARE HOME LIMITED," 2,448.78 ",09/01/2018
Delivery Units,Adults and Communities,Other Agencies - Third Party P,90048513,ROSEACRES CARE HOME LIMITED,"3,321.43",09/01/2018
Delivery Units,Adults and Communities,Other Agencies - Third Party P,90050990,SCIMITAR CARE HOTELS PLC,"3,985.71",30/01/2018
Delivery Units,Adults and Communities,Other Agencies - Third Party P,90050991,SCIMITAR CARE HOTELS PLC,"3,421.07",30/01/2018
Delivery Units,Adults and Communities,Other Agencies - Third Party P,90050906,SEAFORTH LODGE," 2,448.78 ",18/01/2018
Delivery Units,Adults and Communities,Other Agencies - Third Party P,90050907,SEAFORTH LODGE,"2,448.78",18/01/2018
Delivery Units,Adults and Communities,Other Agencies - Third Party P,90050908,SEAFORTH LODGE," 2,448.78 ",18/01/2018
Delivery Units,Adults and Communities,Other Agencies - Third Party P,90050909,SEAFORTH LODGE,"2,448.78",18/01/2018
Delivery Units,Adults and Communities,Other Agencies - Third Party P,90050910,SEAFORTH LODGE," 2,657.14 ",18/01/2018
Delivery Units,Adults and Communities,Other Agencies - Third Party P,90051039,SEVA CARE HOME,"2,216.41",18/01/2018
Delivery Units,Adults and Communities,Other Agencies - Third Party P,90051040,SEVA CARE HOME," 2,216.41 ",18/01/2018
Delivery Units,Adults and Communities,Other Agencies - Third Party P,90015482,SONNET CARE HOMES (ESSEX) LTD,"4,871.43",18/01/2018
Delivery Units,Adults and Communities,Other Agencies - Third Party P,90050992,SONNET CARE HOMES (ESSEX) LTD,"4,871.43",30/01/2018
Delivery Units,Adults and Communities,Other Agencies - Third Party P,90050383,SPRINGDENE,"3,321.43",16/01/2018
Delivery Units,Adults and Communities,Other Agencies - Third Party P,90050384,SPRINGVIEW,"3,100.00",16/01/2018
Delivery Units,Adults and Communities,Other Agencies - Third Party P,90051299,SUNRIDGE HOUSING ASSOCIATION LTD,"2,989.58",19/01/2018
Delivery Units,Adults and Communities,Other Agencies - Third Party P,90051300,SUNRIDGE HOUSING ASSOCIATION LTD," 2,902.40 ",19/01/2018
Delivery Units,Adults and Communities,Other Agencies - Third Party P,90051063,TENTERDEN HOUSE,"3,957.50",18/01/2018
